Workbook

Sheet Tableau de bord
A7: =IF(ISBLANK(Paramètres!$K$4)=TRUE,TODAY()-WEEKDAY(TODAY(),2),Paramètres!$K$4+7-WEEKDAY(Paramètres!$K$4,2)) -> 2023-12-31 | E7: =NOW() -> 2024-01-17T05:16:32.830

Sheet Indicateurs
A1: Article | B1: Type | C1: Semaine du | D1: Au | E1: Qté Bonne | F1: Qté KO | G1: Temps Prévu | H1: Temps Réel | I1: Obj Qté | J1: TQ | K1: TC | L1: TD | M1: Perf Total
A2: Tous | B2: Court Terme | C2: =IF(ISBLANK(Paramètres!$K$4)=TRUE,TODAY()-WEEKDAY(TODAY(),2)-6-(VLOOKUP("Durée court terme en S",parametre,2,FALSE)-1)*7,Paramètres!$K$4-WEEKDAY(Paramètres!$K$4,2)+1-(VLOOKUP("Durée court terme en S",parametre,2,FALSE)-1)*7) -> 2023-12-25 | D2: =C2+6+7*(Paramètres!$K$2-1) -> 2023-12-31 | E2: =SUM(E4,E6,E8,E10) -> 49869 | F2: =SUM(F4,F6,F8,F10) -> 1210 | G2: 647.6525 | H2: 649.979048 | I2: =SUM(I4,I6,I8,I10) -> 52500 | J2: =IFERROR(E2/(E2+F2),0) -> 0.9763112042 | K2: =IFERROR(G2/H2,0) -> 0.99642058 | L2: =E2/I2 -> 0.9498857143 | M2: =J2*K2*L2 -> 0.9240645685
A3: Tous | B3: Long Terme | C3: =IF(ISBLANK(Paramètres!$K$4)=TRUE,TODAY()-WEEKDAY(TODAY(),2)-6-(VLOOKUP("Durée long terme en S",parametre,2,FALSE)-1)*7,Paramètres!$K$4-WEEKDAY(Paramètres!$K$4,2)+1-(VLOOKUP("Durée long terme en S",parametre,2,FALSE)-1)*7) -> 2023-10-23 | D3: =C3+6+7*(Paramètres!$K$3-1) -> 2023-12-31 | E3: =SUM(E5,E7,E9,E11) -> 506937 | F3: =SUM(F5,F7,F9,F11) -> 17890 | G3: 6275.329444 | H3: 6348.834719 | I3: =SUM(I5,I7,I9,I11) -> 525000 | J3: =E3/(E3+F3) -> 0.9659125769 | K3: =G3/H3 -> 0.9884222416 | L3: =E3/I3 -> 0.9655942857 | M3: 0.9218813249
A4: 653 | B4: Court Terme | C4: =C2 -> 2023-12-25 | D4: =D2 -> 2023-12-31 | E4: =SUMIFS('Base de données'!$C:$C,'Base de données'!$F:$F,$A4,'Base de données'!$B:$B,">="&Indicateurs!$C4,'Base de données'!$B:$B,"<"&(Indicateurs!$D4+1)) -> 7563 | F4: =SUMIFS('Base de données'!$D:$D,'Base de données'!$F:$F,$A4,'Base de données'!$B:$B,">="&Indicateurs!$C4,'Base de données'!$B:$B,"<"&(Indicateurs!$D4+1)) -> 226 | G4: =_xlfn.XLOOKUP($A4,article,tpsTheorique,0,0)*SUM($E4:$F4)/3600 -> 129.8166667 | H4: =SUMIFS('Base de données'!$G:$G,'Base de données'!$F:$F,$A4,'Base de données'!$B:$B,">="&Indicateurs!$C4,'Base de données'!$B:$B,"<"&(Indicateurs!$D4+1))/3600 -> 133.1325495 | I4: =_xlfn.XLOOKUP($A4,article,objectifHebdo,0,0)*Paramètres!$K$2 -> 9500 | J4: 0.970984722 | K4: 0.9750933722 | L4: 0.7961052632 | M4: 0.7537530738
A5: 653 | B5: Long Terme | C5: =C3 -> 2023-10-23 | D5: 2023-12-31 | E5: =SUMIFS('Base de données'!$C:$C,'Base de données'!$F:$F,$A5,'Base de données'!$B:$B,">="&Indicateurs!$C5,'Base de données'!$B:$B,"<"&(Indicateurs!$D5+1)) -> 82235 | F5: =SUMIFS('Base de données'!$D:$D,'Base de données'!$F:$F,$A5,'Base de données'!$B:$B,">="&Indicateurs!$C5,'Base de données'!$B:$B,"<"&(Indicateurs!$D5+1)) -> 2958 | G5: =_xlfn.XLOOKUP($A5,article,tpsTheorique,0,0)*SUM($E5:$F5)/3600 -> 1419.883333 | H5: =SUMIFS('Base de données'!$G:$G,'Base de données'!$F:$F,$A5,'Base de données'!$B:$B,">="&Indicateurs!$C5,'Base de données'!$B:$B,"<"&(Indicateurs!$D5+1))/3600 -> 1448.877336 | I5: =_xlfn.XLOOKUP($A5,article,objectifHebdo,0,0)*Paramètres!$K$3 -> 95000 | J5: 0.9652788375 | K5: 0.9799886426 | L5: 0.8656315789 | M5: 0.8188548373
A6: 654 | B6: Court Terme | C6: =C4 -> 2023-12-25 | D6: 2023-12-31 | E6: =SUMIFS('Base de données'!$C:$C,'Base de données'!$F:$F,$A6,'Base de données'!$B:$B,">="&Indicateurs!$C6,'Base de données'!$B:$B,"<"&(Indicateurs!$D6+1)) -> 13703 | F6: =SUMIFS('Base de données'!$D:$D,'Base de données'!$F:$F,$A6,'Base de données'!$B:$B,">="&Indicateurs!$C6,'Base de données'!$B:$B,"<"&(Indicateurs!$D6+1)) -> 321 | G6: =_xlfn.XLOOKUP($A6,article,tpsTheorique,0,0)*SUM($E6:$F6)/3600 -> 128.5533333 | H6: =SUMIFS('Base de données'!$G:$G,'Base de données'!$F:$F,$A6,'Base de données'!$B:$B,">="&Indicateurs!$C6,'Base de données'!$B:$B,"<"&(Indicateurs!$D6+1))/3600 -> 128.0985446 | I6: =_xlfn.XLOOKUP($A6,article,objectifHebdo,0,0)*Paramètres!$K$2 -> 17000 | J6: 0.9771106674 | K6: 1.003550304 | L6: 0.8060588235 | M6: 0.7904049249
A7: 654 | B7: Long Terme | C7: =C5 -> 2023-10-23 | D7: 2023-12-31 | E7: =SUMIFS('Base de données'!$C:$C,'Base de données'!$F:$F,$A7,'Base de données'!$B:$B,">="&Indicateurs!$C7,'Base de données'!$B:$B,"<"&(Indicateurs!$D7+1)) -> 162280 | F7: =SUMIFS('Base de données'!$D:$D,'Base de données'!$F:$F,$A7,'Base de données'!$B:$B,">="&Indicateurs!$C7,'Base de données'!$B:$B,"<"&(Indicateurs!$D7+1)) -> 5763 | G7: =_xlfn.XLOOKUP($A7,article,tpsTheorique,0,0)*SUM($E7:$F7)/3600 -> 1540.394167 | H7: =SUMIFS('Base de données'!$G:$G,'Base de données'!$F:$F,$A7,'Base de données'!$B:$B,">="&Indicateurs!$C7,'Base de données'!$B:$B,"<"&(Indicateurs!$D7+1))/3600 -> 1556.533846 | I7: =_xlfn.XLOOKUP($A7,article,objectifHebdo,0,0)*Paramètres!$K$3 -> 170000 | J7: 0.9657052064 | K7: 0.989631013 | L7: 0.9545882353 | M7: 0.9122921696
A8: 655 | B8: Court Terme | C8: =C6 -> 2023-12-25 | D8: 2023-12-31 | E8: =SUMIFS('Base de données'!$C:$C,'Base de données'!$F:$F,$A8,'Base de données'!$B:$B,">="&Indicateurs!$C8,'Base de données'!$B:$B,"<"&(Indicateurs!$D8+1)) -> 15731 | F8: =SUMIFS('Base de données'!$D:$D,'Base de données'!$F:$F,$A8,'Base de données'!$B:$B,">="&Indicateurs!$C8,'Base de données'!$B:$B,"<"&(Indicateurs!$D8+1)) -> 252 | G8: =_xlfn.XLOOKUP($A8,article,tpsTheorique,0,0)*SUM($E8:$F8)/3600 -> 142.0711111 | H8: =SUMIFS('Base de données'!$G:$G,'Base de données'!$F:$F,$A8,'Base de données'!$B:$B,">="&Indicateurs!$C8,'Base de données'!$B:$B,"<"&(Indicateurs!$D8+1))/3600 -> 139.4521101 | I8: =_xlfn.XLOOKUP($A8,article,objectifHebdo,0,0)*Paramètres!$K$2 -> 17500 | J8: 0.9842332478 | K8: 1.018780648 | L8: 0.8989142857 | M8: 0.9013573427
A9: 655 | B9: Long Terme | C9: =C7 -> 2023-10-23 | D9: 2023-12-31 | E9: =SUMIFS('Base de données'!$C:$C,'Base de données'!$F:$F,$A9,'Base de données'!$B:$B,">="&Indicateurs!$C9,'Base de données'!$B:$B,"<"&(Indicateurs!$D9+1)) -> 172823 | F9: =SUMIFS('Base de données'!$D:$D,'Base de données'!$F:$F,$A9,'Base de données'!$B:$B,">="&Indicateurs!$C9,'Base de données'!$B:$B,"<"&(Indicateurs!$D9+1)) -> 6103 | G9: =_xlfn.XLOOKUP($A9,article,tpsTheorique,0,0)*SUM($E9:$F9)/3600 -> 1590.453333 | H9: =SUMIFS('Base de données'!$G:$G,'Base de données'!$F:$F,$A9,'Base de données'!$B:$B,">="&Indicateurs!$C9,'Base de données'!$B:$B,"<"&(Indicateurs!$D9+1))/3600 -> 1582.960565 | I9: =_xlfn.XLOOKUP($A9,article,objectifHebdo,0,0)*Paramètres!$K$3 -> 175000 | J9: 0.965890927 | K9: 1.004733389 | L9: 0.98756 | M9: 0.9583903068
A10: 656 | B10: Court Terme | C10: =C8 -> 2023-12-25 | D10: 2023-12-31 | E10: =SUMIFS('Base de données'!$C:$C,'Base de données'!$F:$F,$A10,'Base de données'!$B:$B,">="&Indicateurs!$C10,'Base de données'!$B:$B,"<"&(Indicateurs!$D10+1)) -> 12872 | F10: =SUMIFS('Base de données'!$D:$D,'Base de données'!$F:$F,$A10,'Base de données'!$B:$B,">="&Indicateurs!$C10,'Base de données'!$B:$B,"<"&(Indicateurs!$D10+1)) -> 411 | G10: =_xlfn.XLOOKUP($A10,article,tpsTheorique,0,0)*SUM($E10:$F10)/3600 -> 247.2113889 | H10: =SUMIFS('Base de données'!$G:$G,'Base de données'!$F:$F,$A10,'Base de données'!$B:$B,">="&Indicateurs!$C10,'Base de données'!$B:$B,"<"&(Indicateurs!$D10+1))/3600 -> 249.2958438 | I10: =_xlfn.XLOOKUP($A10,article,objectifHebdo,0,0)*Paramètres!$K$2 -> 8500 | J10: 0.9690581947 | K10: 0.9916386294 | L10: 1.514352941 | M10: 1.455225848
A11: 656 | B11: Long Terme | C11: =C9 -> 2023-10-23 | D11: 2023-12-31 | E11: =SUMIFS('Base de données'!$C:$C,'Base de données'!$F:$F,$A11,'Base de données'!$B:$B,">="&Indicateurs!$C11,'Base de données'!$B:$B,"<"&(Indicateurs!$D11+1)) -> 89599 | F11: =SUMIFS('Base de données'!$D:$D,'Base de données'!$F:$F,$A11,'Base de données'!$B:$B,">="&Indicateurs!$C11,'Base de données'!$B:$B,"<"&(Indicateurs!$D11+1)) -> 3066 | G11: =_xlfn.XLOOKUP($A11,article,tpsTheorique,0,0)*SUM($E11:$F11)/3600 -> 1724.598611 | H11: =SUMIFS('Base de données'!$G:$G,'Base de données'!$F:$F,$A11,'Base de données'!$B:$B,">="&Indicateurs!$C11,'Base de données'!$B:$B,"<"&(Indicateurs!$D11+1))/3600 -> 1760.462973 | I11: =_xlfn.XLOOKUP($A11,article,objectifHebdo,0,0)*Paramètres!$K$3 -> 85000 | J11: 0.966913074 | K11: 0.9796278806 | L11: 1.054105882 | M11: 0.998464909
A14: Données pour le graphique performance totale production
A15: Performance | B15: Performance | C15: Performance | D15: Objectifs | E15: Objectifs | F15: Objectifs
A16: =IF(M2<1,MAX(M2,0.75),MIN(1.05,M2-0.001)) -> 0.9240645685 | B16: 0.0001 | C16: =1-B16-A16 -> 0.07583543153 | D16: =Paramètres!G5 -> 0.79515 | E16: =Paramètres!H5-D16 -> 0.117426 | F16: =2-D16-E16 -> 1.087424
A19: Données pour les cadrans
A20: TQ | B20: 0.1 | C20: =Paramètres!$H$2-Paramètres!$G$2 -> 0.03 | D20: =1.05-Paramètres!$H$2 -> 0.09 | E20: =B20+C20+D20 -> 0.22
A21: =J2 -> 0.9763112042 | B21: =IF(A21>1.05,1.05,MAX(($A$21-Paramètres!$G$2+Indicateurs!$B$20)*1000,0)) -> 146.3112042 | C21: 0.01 | D21: =IF(A21>1.05,1.05*1000,(1.05-$J$2)*1000+(1.05-Paramètres!$G$2+Indicateurs!$B$20)*1000) -> 293.6887958
A23: TC | B23: 0.1 | C23: =Paramètres!$H$3-Paramètres!$G$3 -> 0.02 | D23: =1.05-Paramètres!$H$3 -> 0.08 | E23: =B23+C23+D23 -> 0.2
A24: =K2 -> 0.99642058 | B24: =IF(A24>1.05,1.05*1000,MAX(($A$24-Paramètres!$G$3+Indicateurs!$B$23)*1000,0)) -> 146.42058 | C24: 0.01 | D24: =IF(A24>1.05,1.05*1000,(1.05-$K$2)*1000+(1.05-Paramètres!$G$3+Indicateurs!$B$23)*1000) -> 253.57942
A26: TD | B26: 0.1 | C26: =Paramètres!$H$4-Paramètres!$G$4 -> 0.08 | D26: =1.05-Paramètres!$H$4 -> 0.07 | E26: =B26+C26+D26 -> 0.25
A27: =L2 -> 0.9498857143 | B27: =IF(A27>1.05,1.05*1000,MAX(($A$27-Paramètres!$G$4+Indicateurs!$B$26)*1000,0)) -> 149.8857143 | C27: 0.01 | D27: =IF(A27>1.05,1.05*1000,(1.05-$L$2)*1000+(1.05-Paramètres!$G$4+Indicateurs!$B$26)*1000) -> 350.1142857
A30: Données pour l'évolution jusqu'à 52 sem
C31: N° Sem | D31: TQ | E31: TC | F31: TD | G31: Total | H31: 653 | M31: 654 | R31: 655 | W31: 656
A32: =IF(ISBLANK(Paramètres!$K$4)=TRUE,TODAY()-WEEKDAY(TODAY(),2)-6-(VLOOKUP("Durée long terme en S",parametre,2,FALSE)-1)*7,Paramètres!$K$4-WEEKDAY(Paramètres!$K$4,2)+1-(VLOOKUP("Durée long terme en S",parametre,2,FALSE)-1)*7) -> 2023-10-23 | B32: =IF(A32<>"",A32+6,"") -> 2023-10-29 | C32: =_xlfn.ISOWEEKNUM(A32) -> 43 | D32: =SUM(H32,M32,R32,W32)/SUM(H32:I32,M32:N32,R32:S32,W32:X32) -> 0.9677100038 | E32: =SUM(J32,O32,T32,Y32)/SUM(Z32,U32,P32,K32) -> 0.9876215054 | F32: =SUM(H32,M32,R32,W32)/SUM(AA32,V32,Q32,L32) -> 0.931047619 | G32: =F32*D32*E32 -> 0.8898312682 | H32: =SUMIFS('Base de données'!$C:$C,'Base de données'!$F:$F,H$31,'Base de données'!$B:$B,">="&Indicateurs!$A32,'Base de données'!$B:$B,"<"&(Indicateurs!$B32+1)) -> 7299 | I32: =SUMIFS('Base de données'!$D:$D,'Base de données'!$F:$F,H$31,'Base de données'!$B:$B,">="&Indicateurs!$A32,'Base de données'!$B:$B,"<"&(Indicateurs!$B32+1)) -> 256 | J32: =_xlfn.XLOOKUP(H$31,article,tpsTheorique,0,0)*SUM($H32:$I32)/3600 -> 125.9166667 | K32: =SUMIFS('Base de données'!$G:$G,'Base de données'!$F:$F,H$31,'Base de données'!$B:$B,">="&Indicateurs!$A32,'Base de données'!$B:$B,"<"&(Indicateurs!$B32+1))/3600 -> 126.3051487 | L32: =_xlfn.XLOOKUP(H$31,article,objectifHebdo,0,0)*Paramètres!$K$2 -> 9500 | M32: =SUMIFS('Base de données'!$C:$C,'Base de données'!$F:$F,M$31,'Base de données'!$B:$B,">="&Indicateurs!$A32,'Base de données'!$B:$B,"<"&(Indicateurs!$B32+1)) -> 11993 | N32: =SUMIFS('Base de données'!$D:$D,'Base de données'!$F:$F,M$31,'Base de données'!$B:$B,">="&Indicateurs!$A32,'Base de données'!$B:$B,"<"&(Indicateurs!$B32+1)) -> 265 | O32: =_xlfn.XLOOKUP(M$31,article,tpsTheorique,0,0)*SUM($M32:$N32)/3600 -> 112.365 | P32: =SUMIFS('Base de données'!$G:$G,'Base de données'!$F:$F,M$31,'Base de données'!$B:$B,">="&Indicateurs!$A32,'Base de données'!$B:$B,"<"&(Indicateurs!$B32+1))/3600 -> 111.2789608 | Q32: =_xlfn.XLOOKUP(M$31,article,objectifHebdo,0,0)*Paramètres!$K$2 -> 17000 | R32: =SUMIFS('Base de données'!$C:$C,'Base de données'!$F:$F,R$31,'Base de données'!$B:$B,">="&Indicateurs!$A32,'Base de données'!$B:$B,"<"&(Indicateurs!$B32+1)) -> 21339 | S32: =SUMIFS('Base de données'!$D:$D,'Base de données'!$F:$F,R$31,'Base de données'!$B:$B,">="&Indicateurs!$A32,'Base de données'!$B:$B,"<"&(Indicateurs!$B32+1)) -> 821 | T32: =_xlfn.XLOOKUP(R$31,article,tpsTheorique,0,0)*SUM($R32:$S32)/3600 -> 196.9777778 | U32: =SUMIFS('Base de données'!$G:$G,'Base de données'!$F:$F,R$31,'Base de données'!$B:$B,">="&Indicateurs!$A32,'Base de données'!$B:$B,"<"&(Indicateurs!$B32+1))/3600 -> 197.9340494 | V32: =_xlfn.XLOOKUP(R$31,article,objectifHebdo,0,0)*Paramètres!$K$2 -> 17500 | W32: =SUMIFS('Base de données'!$C:$C,'Base de données'!$F:$F,W$31,'Base de données'!$B:$B,">="&Indicateurs!$A32,'Base de données'!$B:$B,"<"&(Indicateurs!$B32+1)) -> 8249 | X32: =SUMIFS('Base de données'!$D:$D,'Base de données'!$F:$F,W$31,'Base de données'!$B:$B,">="&Indicateurs!$A32,'Base de données'!$B:$B,"<"&(Indicateurs!$B32+1)) -> 289 | Y32: =_xlfn.XLOOKUP(W$31,article,tpsTheorique,0,0)*SUM($W32:$X32)/3600 -> 158.9016667 | Z32: =SUMIFS('Base de données'!$G:$G,'Base de données'!$F:$F,W$31,'Base de données'!$B:$B,">="&Indicateurs!$A32,'Base de données'!$B:$B,"<"&(Indicateurs!$B32+1))/3600 -> 166.089955 | AA32: =_xlfn.XLOOKUP(W$31,article,objectifHebdo,0,0)*Paramètres!$K$2 -> 8500
A33: =IF(COUNTA($A$32:A32)<Paramètres!$K$3,Indicateurs!A32+7,"") -> 2023-10-30 | B33: =IF(A33<>"",A33+6,"") -> 2023-11-05 | C33: =_xlfn.ISOWEEKNUM(A33) -> 44 | D33: 0.9618496846 | E33: 0.975490686 | F33: 0.8015047619 | G33: =F33*D33*E33 -> 0.752032208 | H33: =SUMIFS('Base de données'!$C:$C,'Base de données'!$F:$F,H$31,'Base de données'!$B:$B,">="&Indicateurs!$A33,'Base de données'!$B:$B,"<"&(Indicateurs!$B33+1)) -> 7430 | I33: =SUMIFS('Base de données'!$D:$D,'Base de données'!$F:$F,H$31,'Base de données'!$B:$B,">="&Indicateurs!$A33,'Base de données'!$B:$B,"<"&(Indicateurs!$B33+1)) -> 401 | J33: =_xlfn.XLOOKUP(H$31,article,tpsTheorique,0,0)*SUM($H33:$I33)/3600 -> 130.5166667 | K33: =SUMIFS('Base de données'!$G:$G,'Base de données'!$F:$F,H$31,'Base de données'!$B:$B,">="&Indicateurs!$A33,'Base de données'!$B:$B,"<"&(Indicateurs!$B33+1))/3600 -> 130.3907547 | L33: =_xlfn.XLOOKUP(H$31,article,objectifHebdo,0,0)*Paramètres!$K$2 -> 9500 | M33: =SUMIFS('Base de données'!$C:$C,'Base de données'!$F:$F,M$31,'Base de données'!$B:$B,">="&Indicateurs!$A33,'Base de données'!$B:$B,"<"&(Indicateurs!$B33+1)) -> 20003 | N33: =SUMIFS('Base de données'!$D:$D,'Base de données'!$F:$F,M$31,'Base de données'!$B:$B,">="&Indicateurs!$A33,'Base de données'!$B:$B,"<"&(Indicateurs!$B33+1)) -> 845 | O33: =_xlfn.XLOOKUP(M$31,article,tpsTheorique,0,0)*SUM($M33:$N33)/3600 -> 191.1066667 | P33: =SUMIFS('Base de données'!$G:$G,'Base de données'!$F:$F,M$31,'Base de données'!$B:$B,">="&Indicateurs!$A33,'Base de données'!$B:$B,"<"&(Indicateurs!$B33+1))/3600 -> 198.949488 | Q33: =_xlfn.XLOOKUP(M$31,article,objectifHebdo,0,0)*Paramètres!$K$2 -> 17000 | R33: =SUMIFS('Base de données'!$C:$C,'Base de données'!$F:$F,R$31,'Base de données'!$B:$B,">="&Indicateurs!$A33,'Base de données'!$B:$B,"<"&(Indicateurs!$B33+1)) -> 8248 | S33: =SUMIFS('Base de données'!$D:$D,'Base de données'!$F:$F,R$31,'Base de données'!$B:$B,">="&Indicateurs!$A33,'Base de données'!$B:$B,"<"&(Indicateurs!$B33+1)) -> 209 | T33: =_xlfn.XLOOKUP(R$31,article,tpsTheorique,0,0)*SUM($R33:$S33)/3600 -> 75.17333333 | U33: =SUMIFS('Base de données'!$G:$G,'Base de données'!$F:$F,R$31,'Base de données'!$B:$B,">="&Indicateurs!$A33,'Base de données'!$B:$B,"<"&(Indicateurs!$B33+1))/3600 -> 73.24131455 | V33: =_xlfn.XLOOKUP(R$31,article,objectifHebdo,0,0)*Paramètres!$K$2 -> 17500 | W33: =SUMIFS('Base de données'!$C:$C,'Base de données'!$F:$F,W$31,'Base de données'!$B:$B,">="&Indicateurs!$A33,'Base de données'!$B:$B,"<"&(Indicateurs!$B33+1)) -> 6398 | X33: =SUMIFS('Base de données'!$D:$D,'Base de données'!$F:$F,W$31,'Base de données'!$B:$B,">="&Indicateurs!$A33,'Base de données'!$B:$B,"<"&(Indicateurs!$B33+1)) -> 214 | Y33: =_xlfn.XLOOKUP(W$31,article,tpsTheorique,0,0)*SUM($W33:$X33)/3600 -> 123.0566667 | Z33: =SUMIFS('Base de données'!$G:$G,'Base de données'!$F:$F,W$31,'Base de données'!$B:$B,">="&Indicateurs!$A33,'Base de données'!$B:$B,"<"&(Indicateurs!$B33+1))/3600 -> 130.3331499 | AA33: =_xlfn.XLOOKUP(W$31,article,objectifHebdo,0,0)*Paramètres!$K$2 -> 8500
A34: =IF(COUNTA($A$32:A33)<Paramètres!$K$3,Indicateurs!A33+7,"") -> 2023-11-06 | B34: 2023-11-12 | C34: 45 | D34: 0.9696948228 | E34: 1.001777989 | F34: 1.042819048 | G34: 1.013014163 | H34: =SUMIFS('Base de données'!$C:$C,'Base de données'!$F:$F,H$31,'Base de données'!$B:$B,">="&Indicateurs!$A34,'Base de données'!$B:$B,"<"&(Indicateurs!$B34+1)) -> 9234 | I34: =SUMIFS('Base de données'!$D:$D,'Base de données'!$F:$F,H$31,'Base de données'!$B:$B,">="&Indicateurs!$A34,'Base de données'!$B:$B,"<"&(Indicateurs!$B34+1)) -> 287 | J34: =_xlfn.XLOOKUP(H$31,article,tpsTheorique,0,0)*SUM($H34:$I34)/3600 -> 158.6833333 | K34: =SUMIFS('Base de données'!$G:$G,'Base de données'!$F:$F,H$31,'Base de données'!$B:$B,">="&Indicateurs!$A34,'Base de données'!$B:$B,"<"&(Indicateurs!$B34+1))/3600 -> 160.9733477 | L34: =_xlfn.XLOOKUP(H$31,article,objectifHebdo,0,0)*Paramètres!$K$2 -> 9500 | M34: =SUMIFS('Base de données'!$C:$C,'Base de données'!$F:$F,M$31,'Base de données'!$B:$B,">="&Indicateurs!$A34,'Base de données'!$B:$B,"<"&(Indicateurs!$B34+1)) -> 18532 | N34: =SUMIFS('Base de données'!$D:$D,'Base de données'!$F:$F,M$31,'Base de données'!$B:$B,">="&Indicateurs!$A34,'Base de données'!$B:$B,"<"&(Indicateurs!$B34+1)) -> 595 | O34: =_xlfn.XLOOKUP(M$31,article,tpsTheorique,0,0)*SUM($M34:$N34)/3600 -> 175.3308333 | P34: =SUMIFS('Base de données'!$G:$G,'Base de données'!$F:$F,M$31,'Base de données'!$B:$B,">="&Indicateurs!$A34,'Base de données'!$B:$B,"<"&(Indicateurs!$B34+1))/3600 -> 174.1361901 | Q34: =_xlfn.XLOOKUP(M$31,article,objectifHebdo,0,0)*Paramètres!$K$2 -> 17000 | R34: =SUMIFS('Base de données'!$C:$C,'Base de données'!$F:$F,R$31,'Base de données'!$B:$B,">="&Indicateurs!$A34,'Base de données'!$B:$B,"<"&(Indicateurs!$B34+1)) -> 22256 | S34: =SUMIFS('Base de données'!$D:$D,'Base de données'!$F:$F,R$31,'Base de données'!$B:$B,">="&Indicateurs!$A34,'Base de données'!$B:$B,"<"&(Indicateurs!$B34+1)) -> 744 | T34: =_xlfn.XLOOKUP(R$31,article,tpsTheorique,0,0)*SUM($R34:$S34)/3600 -> 204.4444444 | U34: =SUMIFS('Base de données'!$G:$G,'Base de données'!$F:$F,R$31,'Base de données'!$B:$B,">="&Indicateurs!$A34,'Base de données'!$B:$B,"<"&(Indicateurs!$B34+1))/3600 -> 206.7045811 | V34: =_xlfn.XLOOKUP(R$31,article,objectifHebdo,0,0)*Paramètres!$K$2 -> 17500 | W34: =SUMIFS('Base de données'!$C:$C,'Base de données'!$F:$F,W$31,'Base de données'!$B:$B,">="&Indicateurs!$A34,'Base de données'!$B:$B,"<"&(Indicateurs!$B34+1)) -> 4726 | X34: =SUMIFS('Base de données'!$D:$D,'Base de données'!$F:$F,W$31,'Base de données'!$B:$B,">="&Indicateurs!$A34,'Base de données'!$B:$B,"<"&(Indicateurs!$B34+1)) -> 85 | Y34: =_xlfn.XLOOKUP(W$31,article,tpsTheorique,0,0)*SUM($W34:$X34)/3600 -> 89.53805556 | Z34: =SUMIFS('Base de données'!$G:$G,'Base de données'!$F:$F,W$31,'Base de données'!$B:$B,">="&Indicateurs!$A34,'Base de données'!$B:$B,"<"&(Indicateurs!$B34+1))/3600 -> 85.06795859 | AA34: =_xlfn.XLOOKUP(W$31,article,objectifHebdo,0,0)*Paramètres!$K$2 -> 8500
A35: =IF(COUNTA($A$32:A34)<Paramètres!$K$3,Indicateurs!A34+7,"") -> 2023-11-13 | B35: 2023-11-19 | C35: 46 | D35: 0.967162703 | E35: 0.9888661417 | F35: 1.192152381 | G35: 1.140167921 | H35: =SUMIFS('Base de données'!$C:$C,'Base de données'!$F:$F,H$31,'Base de données'!$B:$B,">="&Indicateurs!$A35,'Base de données'!$B:$B,"<"&(Indicateurs!$B35+1)) -> 11013 | I35: =SUMIFS('Base de données'!$D:$D,'Base de données'!$F:$F,H$31,'Base de données'!$B:$B,">="&Indicateurs!$A35,'Base de données'!$B:$B,"<"&(Indicateurs!$B35+1)) -> 438 | J35: =_xlfn.XLOOKUP(H$31,article,tpsTheorique,0,0)*SUM($H35:$I35)/3600 -> 190.85 | K35: =SUMIFS('Base de données'!$G:$G,'Base de données'!$F:$F,H$31,'Base de données'!$B:$B,">="&Indicateurs!$A35,'Base de données'!$B:$B,"<"&(Indicateurs!$B35+1))/3600 -> 193.8236202 | L35: =_xlfn.XLOOKUP(H$31,article,objectifHebdo,0,0)*Paramètres!$K$2 -> 9500 | M35: =SUMIFS('Base de données'!$C:$C,'Base de données'!$F:$F,M$31,'Base de données'!$B:$B,">="&Indicateurs!$A35,'Base de données'!$B:$B,"<"&(Indicateurs!$B35+1)) -> 22130 | N35: =SUMIFS('Base de données'!$D:$D,'Base de données'!$F:$F,M$31,'Base de données'!$B:$B,">="&Indicateurs!$A35,'Base de données'!$B:$B,"<"&(Indicateurs!$B35+1)) -> 726 | O35: =_xlfn.XLOOKUP(M$31,article,tpsTheorique,0,0)*SUM($M35:$N35)/3600 -> 209.5133333 | P35: =SUMIFS('Base de données'!$G:$G,'Base de données'!$F:$F,M$31,'Base de données'!$B:$B,">="&Indicateurs!$A35,'Base de données'!$B:$B,"<"&(Indicateurs!$B35+1))/3600 -> 209.5290612 | Q35: =_xlfn.XLOOKUP(M$31,article,objectifHebdo,0,0)*Paramètres!$K$2 -> 17000 | R35: =SUMIFS('Base de données'!$C:$C,'Base de données'!$F:$F,R$31,'Base de données'!$B:$B,">="&Indicateurs!$A35,'Base de données'!$B:$B,"<"&(Indicateurs!$B35+1)) -> 20111 | S35: =SUMIFS('Base de données'!$D:$D,'Base de données'!$F:$F,R$31,'Base de données'!$B:$B,">="&Indicateurs!$A35,'Base de données'!$B:$B,"<"&(Indicateurs!$B35+1)) -> 714 | T35: =_xlfn.XLOOKUP(R$31,article,tpsTheorique,0,0)*SUM($R35:$S35)/3600 -> 185.1111111 | U35: =SUMIFS('Base de données'!$G:$G,'Base de données'!$F:$F,R$31,'Base de données'!$B:$B,">="&Indicateurs!$A35,'Base de données'!$B:$B,"<"&(Indicateurs!$B35+1))/3600 -> 185.4176018 | V35: =_xlfn.XLOOKUP(R$31,article,objectifHebdo,0,0)*Paramètres!$K$2 -> 17500 | W35: =SUMIFS('Base de données'!$C:$C,'Base de données'!$F:$F,W$31,'Base de données'!$B:$B,">="&Indicateurs!$A35,'Base de données'!$B:$B,"<"&(Indicateurs!$B35+1)) -> 9334 | X35: =SUMIFS('Base de données'!$D:$D,'Base de données'!$F:$F,W$31,'Base de données'!$B:$B,">="&Indicateurs!$A35,'Base de données'!$B:$B,"<"&(Indicateurs!$B35+1)) -> 247 | Y35: =_xlfn.XLOOKUP(W$31,article,tpsTheorique,0,0)*SUM($W35:$X35)/3600 -> 178.3130556 | Z35: =SUMIFS('Base de données'!$G:$G,'Base de données'!$F:$F,W$31,'Base de données'!$B:$B,">="&Indicateurs!$A35,'Base de données'!$B:$B,"<"&(Indicateurs!$B35+1))/3600 -> 183.6168659 | AA35: =_xlfn.XLOOKUP(W$31,article,objectifHebdo,0,0)*Paramètres!$K$2 -> 8500
A36: =IF(COUNTA($A$32:A35)<Paramètres!$K$3,Indicateurs!A35+7,"") -> 2023-11-20 | B36: 2023-11-26 | C36: 47 | D36: 0.9614558519 | E36: 0.9758933812 | F36: 0.9379047619 | G36: 0.8800157814 | H36: =SUMIFS('Base de données'!$C:$C,'Base de données'!$F:$F,H$31,'Base de données'!$B:$B,">="&Indicateurs!$A36,'Base de données'!$B:$B,"<"&(Indicateurs!$B36+1)) -> 13051 | I36: =SUMIFS('Base de données'!$D:$D,'Base de données'!$F:$F,H$31,'Base de données'!$B:$B,">="&Indicateurs!$A36,'Base de données'!$B:$B,"<"&(Indicateurs!$B36+1)) -> 347 | J36: =_xlfn.XLOOKUP(H$31,article,tpsTheorique,0,0)*SUM($H36:$I36)/3600 -> 223.3 | K36: =SUMIFS('Base de données'!$G:$G,'Base de données'!$F:$F,H$31,'Base de données'!$B:$B,">="&Indicateurs!$A36,'Base de données'!$B:$B,"<"&(Indicateurs!$B36+1))/3600 -> 229.7286177 | L36: =_xlfn.XLOOKUP(H$31,article,objectifHebdo,0,0)*Paramètres!$K$2 -> 9500 | M36: =SUMIFS('Base de données'!$C:$C,'Base de données'!$F:$F,M$31,'Base de données'!$B:$B,">="&Indicateurs!$A36,'Base de données'!$B:$B,"<"&(Indicateurs!$B36+1)) -> 12821 | N36: =SUMIFS('Base de données'!$D:$D,'Base de données'!$F:$F,M$31,'Base de données'!$B:$B,">="&Indicateurs!$A36,'Base de données'!$B:$B,"<"&(Indicateurs!$B36+1)) -> 552 | O36: =_xlfn.XLOOKUP(M$31,article,tpsTheorique,0,0)*SUM($M36:$N36)/3600 -> 122.5858333 | P36: =SUMIFS('Base de données'!$G:$G,'Base de données'!$F:$F,M$31,'Base de données'!$B:$B,">="&Indicateurs!$A36,'Base de données'!$B:$B,"<"&(Indicateurs!$B36+1))/3600 -> 123.234898 | Q36: =_xlfn.XLOOKUP(M$31,article,objectifHebdo,0,0)*Paramètres!$K$2 -> 17000 | R36: =SUMIFS('Base de données'!$C:$C,'Base de données'!$F:$F,R$31,'Base de données'!$B:$B,">="&Indicateurs!$A36,'Base de données'!$B:$B,"<"&(Indicateurs!$B36+1)) -> 15270 | S36: =SUMIFS('Base de données'!$D:$D,'Base de données'!$F:$F,R$31,'Base de données'!$B:$B,">="&Indicateurs!$A36,'Base de données'!$B:$B,"<"&(Indicateurs!$B36+1)) -> 693 | T36: =_xlfn.XLOOKUP(R$31,article,tpsTheorique,0,0)*SUM($R36:$S36)/3600 -> 141.8933333 | U36: =SUMIFS('Base de données'!$G:$G,'Base de données'!$F:$F,R$31,'Base de données'!$B:$B,">="&Indicateurs!$A36,'Base de données'!$B:$B,"<"&(Indicateurs!$B36+1))/3600 -> 142.7310497 | V36: =_xlfn.XLOOKUP(R$31,article,objectifHebdo,0,0)*Paramètres!$K$2 -> 17500 | W36: =SUMIFS('Base de données'!$C:$C,'Base de données'!$F:$F,W$31,'Base de données'!$B:$B,">="&Indicateurs!$A36,'Base de données'!$B:$B,"<"&(Indicateurs!$B36+1)) -> 8098 | X36: =SUMIFS('Base de données'!$D:$D,'Base de données'!$F:$F,W$31,'Base de données'!$B:$B,">="&Indicateurs!$A36,'Base de données'!$B:$B,"<"&(Indicateurs!$B36+1)) -> 382 | Y36: =_xlfn.XLOOKUP(W$31,article,tpsTheorique,0,0)*SUM($W36:$X36)/3600 -> 157.8222222 | Z36: =SUMIFS('Base de données'!$G:$G,'Base de données'!$F:$F,W$31,'Base de données'!$B:$B,">="&Indicateurs!$A36,'Base de données'!$B:$B,"<"&(Indicateurs!$B36+1))/3600 -> 165.8545354 | AA36: =_xlfn.XLOOKUP(W$31,article,objectifHebdo,0,0)*Paramètres!$K$2 -> 8500
A37: =IF(COUNTA($A$32:A36)<Paramètres!$K$3,Indicateurs!A36+7,"") -> 2023-11-27 | B37: 2023-12-03 | C37: 48 | D37: 0.9622325214 | E37: 0.9925934949 | F37: 0.7434666667 | G37: 0.7100892819 | H37: =SUMIFS('Base de données'!$C:$C,'Base de données'!$F:$F,H$31,'Base de données'!$B:$B,">="&Indicateurs!$A37,'Base de données'!$B:$B,"<"&(Indicateurs!$B37+1)) -> 6313 | I37: =SUMIFS('Base de données'!$D:$D,'Base de données'!$F:$F,H$31,'Base de données'!$B:$B,">="&Indicateurs!$A37,'Base de données'!$B:$B,"<"&(Indicateurs!$B37+1)) -> 295 | J37: =_xlfn.XLOOKUP(H$31,article,tpsTheorique,0,0)*SUM($H37:$I37)/3600 -> 110.1333333 | K37: =SUMIFS('Base de données'!$G:$G,'Base de données'!$F:$F,H$31,'Base de données'!$B:$B,">="&Indicateurs!$A37,'Base de données'!$B:$B,"<"&(Indicateurs!$B37+1))/3600 -> 114.4517048 | L37: =_xlfn.XLOOKUP(H$31,article,objectifHebdo,0,0)*Paramètres!$K$2 -> 9500 | M37: =SUMIFS('Base de données'!$C:$C,'Base de données'!$F:$F,M$31,'Base de données'!$B:$B,">="&Indicateurs!$A37,'Base de données'!$B:$B,"<"&(Indicateurs!$B37+1)) -> 9136 | N37: =SUMIFS('Base de données'!$D:$D,'Base de données'!$F:$F,M$31,'Base de données'!$B:$B,">="&Indicateurs!$A37,'Base de données'!$B:$B,"<"&(Indicateurs!$B37+1)) -> 308 | O37: =_xlfn.XLOOKUP(M$31,article,tpsTheorique,0,0)*SUM($M37:$N37)/3600 -> 86.57 | P37: =SUMIFS('Base de données'!$G:$G,'Base de données'!$F:$F,M$31,'Base de données'!$B:$B,">="&Indicateurs!$A37,'Base de données'!$B:$B,"<"&(Indicateurs!$B37+1))/3600 -> 83.18950873 | Q37: =_xlfn.XLOOKUP(M$31,article,objectifHebdo,0,0)*Paramètres!$K$2 -> 17000 | R37: =SUMIFS('Base de données'!$C:$C,'Base de données'!$F:$F,R$31,'Base de données'!$B:$B,">="&Indicateurs!$A37,'Base de données'!$B:$B,"<"&(Indicateurs!$B37+1)) -> 18062 | S37: =SUMIFS('Base de données'!$D:$D,'Base de données'!$F:$F,R$31,'Base de données'!$B:$B,">="&Indicateurs!$A37,'Base de données'!$B:$B,"<"&(Indicateurs!$B37+1)) -> 709 | T37: =_xlfn.XLOOKUP(R$31,article,tpsTheorique,0,0)*SUM($R37:$S37)/3600 -> 166.8533333 | U37: =SUMIFS('Base de données'!$G:$G,'Base de données'!$F:$F,R$31,'Base de données'!$B:$B,">="&Indicateurs!$A37,'Base de données'!$B:$B,"<"&(Indicateurs!$B37+1))/3600 -> 160.0944798 | V37: =_xlfn.XLOOKUP(R$31,article,objectifHebdo,0,0)*Paramètres!$K$2 -> 17500 | W37: =SUMIFS('Base de données'!$C:$C,'Base de données'!$F:$F,W$31,'Base de données'!$B:$B,">="&Indicateurs!$A37,'Base de données'!$B:$B,"<"&(Indicateurs!$B37+1)) -> 5521 | X37: =SUMIFS('Base de données'!$D:$D,'Base de données'!$F:$F,W$31,'Base de données'!$B:$B,">="&Indicateurs!$A37,'Base de données'!$B:$B,"<"&(Indicateurs!$B37+1)) -> 220 | Y37: =_xlfn.XLOOKUP(W$31,article,tpsTheorique,0,0)*SUM($W37:$X37)/3600 -> 106.8463889 | Z37: =SUMIFS('Base de données'!$G:$G,'Base de données'!$F:$F,W$31,'Base de données'!$B:$B,">="&Indicateurs!$A37,'Base de données'!$B:$B,"<"&(Indicateurs!$B37+1))/3600 -> 116.177402 | AA37: =_xlfn.XLOOKUP(W$31,article,objectifHebdo,0,0)*Paramètres!$K$2 -> 8500
A38: =IF(COUNTA($A$32:A37)<Paramètres!$K$3,Indicateurs!A37+7,"") -> 2023-12-04 | B38: 2023-12-10 | C38: 49 | D38: 0.9617548811 | E38: 0.9690064386 | F38: 1.02552381 | G38: 0.9557335015 | H38: =SUMIFS('Base de données'!$C:$C,'Base de données'!$F:$F,H$31,'Base de données'!$B:$B,">="&Indicateurs!$A38,'Base de données'!$B:$B,"<"&(Indicateurs!$B38+1)) -> 8234 | I38: =SUMIFS('Base de données'!$D:$D,'Base de données'!$F:$F,H$31,'Base de données'!$B:$B,">="&Indicateurs!$A38,'Base de données'!$B:$B,"<"&(Indicateurs!$B38+1)) -> 387 | J38: =_xlfn.XLOOKUP(H$31,article,tpsTheorique,0,0)*SUM($H38:$I38)/3600 -> 143.6833333 | K38: =SUMIFS('Base de données'!$G:$G,'Base de données'!$F:$F,H$31,'Base de données'!$B:$B,">="&Indicateurs!$A38,'Base de données'!$B:$B,"<"&(Indicateurs!$B38+1))/3600 -> 152.8302933 | L38: =_xlfn.XLOOKUP(H$31,article,objectifHebdo,0,0)*Paramètres!$K$2 -> 9500 | M38: =SUMIFS('Base de données'!$C:$C,'Base de données'!$F:$F,M$31,'Base de données'!$B:$B,">="&Indicateurs!$A38,'Base de données'!$B:$B,"<"&(Indicateurs!$B38+1)) -> 17181 | N38: =SUMIFS('Base de données'!$D:$D,'Base de données'!$F:$F,M$31,'Base de données'!$B:$B,">="&Indicateurs!$A38,'Base de données'!$B:$B,"<"&(Indicateurs!$B38+1)) -> 688 | O38: =_xlfn.XLOOKUP(M$31,article,tpsTheorique,0,0)*SUM($M38:$N38)/3600 -> 163.7991667 | P38: =SUMIFS('Base de données'!$G:$G,'Base de données'!$F:$F,M$31,'Base de données'!$B:$B,">="&Indicateurs!$A38,'Base de données'!$B:$B,"<"&(Indicateurs!$B38+1))/3600 -> 169.9759377 | Q38: =_xlfn.XLOOKUP(M$31,article,objectifHebdo,0,0)*Paramètres!$K$2 -> 17000 | R38: =SUMIFS('Base de données'!$C:$C,'Base de données'!$F:$F,R$31,'Base de données'!$B:$B,">="&Indicateurs!$A38,'Base de données'!$B:$B,"<"&(Indicateurs!$B38+1)) -> 15393 | S38: =SUMIFS('Base de données'!$D:$D,'Base de données'!$F:$F,R$31,'Base de données'!$B:$B,">="&Indicateurs!$A38,'Base de données'!$B:$B,"<"&(Indicateurs!$B38+1)) -> 550 | T38: =_xlfn.XLOOKUP(R$31,article,tpsTheorique,0,0)*SUM($R38:$S38)/3600 -> 141.7155556 | U38: =SUMIFS('Base de données'!$G:$G,'Base de données'!$F:$F,R$31,'Base de données'!$B:$B,">="&Indicateurs!$A38,'Base de données'!$B:$B,"<"&(Indicateurs!$B38+1))/3600 -> 141.5942997 | V38: =_xlfn.XLOOKUP(R$31,article,objectifHebdo,0,0)*Paramètres!$K$2 -> 17500 | W38: =SUMIFS('Base de données'!$C:$C,'Base de données'!$F:$F,W$31,'Base de données'!$B:$B,">="&Indicateurs!$A38,'Base de données'!$B:$B,"<"&(Indicateurs!$B38+1)) -> 13032 | X38: =SUMIFS('Base de données'!$D:$D,'Base de données'!$F:$F,W$31,'Base de données'!$B:$B,">="&Indicateurs!$A38,'Base de données'!$B:$B,"<"&(Indicateurs!$B38+1)) -> 516 | Y38: =_xlfn.XLOOKUP(W$31,article,tpsTheorique,0,0)*SUM($W38:$X38)/3600 -> 252.1433333 | Z38: =SUMIFS('Base de données'!$G:$G,'Base de données'!$F:$F,W$31,'Base de données'!$B:$B,">="&Indicateurs!$A38,'Base de données'!$B:$B,"<"&(Indicateurs!$B38+1))/3600 -> 259.3731832 | AA38: =_xlfn.XLOOKUP(W$31,article,objectifHebdo,0,0)*Paramètres!$K$2 -> 8500
A39: =IF(COUNTA($A$32:A38)<Paramètres!$K$3,Indicateurs!A38+7,"") -> 2023-12-11 | B39: 2023-12-17 | C39: 50 | D39: 0.9647981044 | E39: 0.9904709122 | F39: 1.13232381 | G39: 1.082053681 | H39: =SUMIFS('Base de données'!$C:$C,'Base de données'!$F:$F,H$31,'Base de données'!$B:$B,">="&Indicateurs!$A39,'Base de données'!$B:$B,"<"&(Indicateurs!$B39+1)) -> 7464 | I39: =SUMIFS('Base de données'!$D:$D,'Base de données'!$F:$F,H$31,'Base de données'!$B:$B,">="&Indicateurs!$A39,'Base de données'!$B:$B,"<"&(Indicateurs!$B39+1)) -> 187 | J39: =_xlfn.XLOOKUP(H$31,article,tpsTheorique,0,0)*SUM($H39:$I39)/3600 -> 127.5166667 | K39: =SUMIFS('Base de données'!$G:$G,'Base de données'!$F:$F,H$31,'Base de données'!$B:$B,">="&Indicateurs!$A39,'Base de données'!$B:$B,"<"&(Indicateurs!$B39+1))/3600 -> 125.837419 | L39: =_xlfn.XLOOKUP(H$31,article,objectifHebdo,0,0)*Paramètres!$K$2 -> 9500 | M39: =SUMIFS('Base de données'!$C:$C,'Base de données'!$F:$F,M$31,'Base de données'!$B:$B,">="&Indicateurs!$A39,'Base de données'!$B:$B,"<"&(Indicateurs!$B39+1)) -> 20216 | N39: =SUMIFS('Base de données'!$D:$D,'Base de données'!$F:$F,M$31,'Base de données'!$B:$B,">="&Indicateurs!$A39,'Base de données'!$B:$B,"<"&(Indicateurs!$B39+1)) -> 761 | O39: =_xlfn.XLOOKUP(M$31,article,tpsTheorique,0,0)*SUM($M39:$N39)/3600 -> 192.2891667 | P39: =SUMIFS('Base de données'!$G:$G,'Base de données'!$F:$F,M$31,'Base de données'!$B:$B,">="&Indicateurs!$A39,'Base de données'!$B:$B,"<"&(Indicateurs!$B39+1))/3600 -> 197.6277517 | Q39: =_xlfn.XLOOKUP(M$31,article,objectifHebdo,0,0)*Paramètres!$K$2 -> 17000 | R39: =SUMIFS('Base de données'!$C:$C,'Base de données'!$F:$F,R$31,'Base de données'!$B:$B,">="&Indicateurs!$A39,'Base de données'!$B:$B,"<"&(Indicateurs!$B39+1)) -> 21817 | S39: =SUMIFS('Base de données'!$D:$D,'Base de données'!$F:$F,R$31,'Base de données'!$B:$B,">="&Indicateurs!$A39,'Base de données'!$B:$B,"<"&(Indicateurs!$B39+1)) -> 790 | T39: =_xlfn.XLOOKUP(R$31,article,tpsTheorique,0,0)*SUM($R39:$S39)/3600 -> 200.9511111 | U39: =SUMIFS('Base de données'!$G:$G,'Base de données'!$F:$F,R$31,'Base de données'!$B:$B,">="&Indicateurs!$A39,'Base de données'!$B:$B,"<"&(Indicateurs!$B39+1))/3600 -> 198.9513891 | V39: =_xlfn.XLOOKUP(R$31,article,objectifHebdo,0,0)*Paramètres!$K$2 -> 17500 | W39: =SUMIFS('Base de données'!$C:$C,'Base de données'!$F:$F,W$31,'Base de données'!$B:$B,">="&Indicateurs!$A39,'Base de données'!$B:$B,"<"&(Indicateurs!$B39+1)) -> 9950 | X39: =SUMIFS('Base de données'!$D:$D,'Base de données'!$F:$F,W$31,'Base de données'!$B:$B,">="&Indicateurs!$A39,'Base de données'!$B:$B,"<"&(Indicateurs!$B39+1)) -> 431 | Y39: =_xlfn.XLOOKUP(W$31,article,tpsTheorique,0,0)*SUM($W39:$X39)/3600 -> 193.2019444 | Z39: =SUMIFS('Base de données'!$G:$G,'Base de données'!$F:$F,W$31,'Base de données'!$B:$B,">="&Indicateurs!$A39,'Base de données'!$B:$B,"<"&(Indicateurs!$B39+1))/3600 -> 198.4111597 | AA39: =_xlfn.XLOOKUP(W$31,article,objectifHebdo,0,0)*Paramètres!$K$2 -> 8500
A40: =IF(COUNTA($A$32:A39)<Paramètres!$K$3,Indicateurs!A39+7,"") -> 2023-12-18 | B40: 2023-12-24 | C40: 51 | D40: 0.9646929018 | E40: 1.009527551 | F40: 0.8993142857 | G40: 0.8758278503 | H40: =SUMIFS('Base de données'!$C:$C,'Base de données'!$F:$F,H$31,'Base de données'!$B:$B,">="&Indicateurs!$A40,'Base de données'!$B:$B,"<"&(Indicateurs!$B40+1)) -> 4634 | I40: =SUMIFS('Base de données'!$D:$D,'Base de données'!$F:$F,H$31,'Base de données'!$B:$B,">="&Indicateurs!$A40,'Base de données'!$B:$B,"<"&(Indicateurs!$B40+1)) -> 134 | J40: =_xlfn.XLOOKUP(H$31,article,tpsTheorique,0,0)*SUM($H40:$I40)/3600 -> 79.46666667 | K40: =SUMIFS('Base de données'!$G:$G,'Base de données'!$F:$F,H$31,'Base de données'!$B:$B,">="&Indicateurs!$A40,'Base de données'!$B:$B,"<"&(Indicateurs!$B40+1))/3600 -> 81.40387989 | L40: =_xlfn.XLOOKUP(H$31,article,objectifHebdo,0,0)*Paramètres!$K$2 -> 9500 | M40: =SUMIFS('Base de données'!$C:$C,'Base de données'!$F:$F,M$31,'Base de données'!$B:$B,">="&Indicateurs!$A40,'Base de données'!$B:$B,"<"&(Indicateurs!$B40+1)) -> 16565 | N40: =SUMIFS('Base de données'!$D:$D,'Base de données'!$F:$F,M$31,'Base de données'!$B:$B,">="&Indicateurs!$A40,'Base de données'!$B:$B,"<"&(Indicateurs!$B40+1)) -> 702 | O40: =_xlfn.XLOOKUP(M$31,article,tpsTheorique,0,0)*SUM($M40:$N40)/3600 -> 158.2808333 | P40: =SUMIFS('Base de données'!$G:$G,'Base de données'!$F:$F,M$31,'Base de données'!$B:$B,">="&Indicateurs!$A40,'Base de données'!$B:$B,"<"&(Indicateurs!$B40+1))/3600 -> 160.513505 | Q40: =_xlfn.XLOOKUP(M$31,article,objectifHebdo,0,0)*Paramètres!$K$2 -> 17000 | R40: =SUMIFS('Base de données'!$C:$C,'Base de données'!$F:$F,R$31,'Base de données'!$B:$B,">="&Indicateurs!$A40,'Base de données'!$B:$B,"<"&(Indicateurs!$B40+1)) -> 14596 | S40: =SUMIFS('Base de données'!$D:$D,'Base de données'!$F:$F,R$31,'Base de données'!$B:$B,">="&Indicateurs!$A40,'Base de données'!$B:$B,"<"&(Indicateurs!$B40+1)) -> 621 | T40: =_xlfn.XLOOKUP(R$31,article,tpsTheorique,0,0)*SUM($R40:$S40)/3600 -> 135.2622222 | U40: =SUMIFS('Base de données'!$G:$G,'Base de données'!$F:$F,R$31,'Base de données'!$B:$B,">="&Indicateurs!$A40,'Base de données'!$B:$B,"<"&(Indicateurs!$B40+1))/3600 -> 136.8396894 | V40: =_xlfn.XLOOKUP(R$31,article,objectifHebdo,0,0)*Paramètres!$K$2 -> 17500 | W40: =SUMIFS('Base de données'!$C:$C,'Base de données'!$F:$F,W$31,'Base de données'!$B:$B,">="&Indicateurs!$A40,'Base de données'!$B:$B,"<"&(Indicateurs!$B40+1)) -> 11419 | X40: =SUMIFS('Base de données'!$D:$D,'Base de données'!$F:$F,W$31,'Base de données'!$B:$B,">="&Indicateurs!$A40,'Base de données'!$B:$B,"<"&(Indicateurs!$B40+1)) -> 271 | Y40: =_xlfn.XLOOKUP(W$31,article,tpsTheorique,0,0)*SUM($W40:$X40)/3600 -> 217.5638889 | Z40: =SUMIFS('Base de données'!$G:$G,'Base de données'!$F:$F,W$31,'Base de données'!$B:$B,">="&Indicateurs!$A40,'Base de données'!$B:$B,"<"&(Indicateurs!$B40+1))/3600 -> 206.2429195 | AA40: =_xlfn.XLOOKUP(W$31,article,objectifHebdo,0,0)*Paramètres!$K$2 -> 8500
A41: =IF(COUNTA($A$32:A40)<Paramètres!$K$3,Indicateurs!A40+7,"") -> 2023-12-25 | B41: 2023-12-31 | C41: 52 | D41: 0.9763112042 | E41: 0.99642058 | F41: 0.9498857143 | G41: 0.9240645685 | H41: =SUMIFS('Base de données'!$C:$C,'Base de données'!$F:$F,H$31,'Base de données'!$B:$B,">="&Indicateurs!$A41,'Base de données'!$B:$B,"<"&(Indicateurs!$B41+1)) -> 7563 | I41: =SUMIFS('Base de données'!$D:$D,'Base de données'!$F:$F,H$31,'Base de données'!$B:$B,">="&Indicateurs!$A41,'Base de données'!$B:$B,"<"&(Indicateurs!$B41+1)) -> 226 | J41: =_xlfn.XLOOKUP(H$31,article,tpsTheorique,0,0)*SUM($H41:$I41)/3600 -> 129.8166667 | K41: =SUMIFS('Base de données'!$G:$G,'Base de données'!$F:$F,H$31,'Base de données'!$B:$B,">="&Indicateurs!$A41,'Base de données'!$B:$B,"<"&(Indicateurs!$B41+1))/3600 -> 133.1325495 | L41: =_xlfn.XLOOKUP(H$31,article,objectifHebdo,0,0)*Paramètres!$K$2 -> 9500 | M41: =SUMIFS('Base de données'!$C:$C,'Base de données'!$F:$F,M$31,'Base de données'!$B:$B,">="&Indicateurs!$A41,'Base de données'!$B:$B,"<"&(Indicateurs!$B41+1)) -> 13703 | N41: =SUMIFS('Base de données'!$D:$D,'Base de données'!$F:$F,M$31,'Base de données'!$B:$B,">="&Indicateurs!$A41,'Base de données'!$B:$B,"<"&(Indicateurs!$B41+1)) -> 321 | O41: =_xlfn.XLOOKUP(M$31,article,tpsTheorique,0,0)*SUM($M41:$N41)/3600 -> 128.5533333 | P41: =SUMIFS('Base de données'!$G:$G,'Base de données'!$F:$F,M$31,'Base de données'!$B:$B,">="&Indicateurs!$A41,'Base de données'!$B:$B,"<"&(Indicateurs!$B41+1))/3600 -> 128.0985446 | Q41: =_xlfn.XLOOKUP(M$31,article,objectifHebdo,0,0)*Paramètres!$K$2 -> 17000 | R41: =SUMIFS('Base de données'!$C:$C,'Base de données'!$F:$F,R$31,'Base de données'!$B:$B,">="&Indicateurs!$A41,'Base de données'!$B:$B,"<"&(Indicateurs!$B41+1)) -> 15731 | S41: =SUMIFS('Base de données'!$D:$D,'Base de données'!$F:$F,R$31,'Base de données'!$B:$B,">="&Indicateurs!$A41,'Base de données'!$B:$B,"<"&(Indicateurs!$B41+1)) -> 252 | T41: =_xlfn.XLOOKUP(R$31,article,tpsTheorique,0,0)*SUM($R41:$S41)/3600 -> 142.0711111 | U41: =SUMIFS('Base de données'!$G:$G,'Base de données'!$F:$F,R$31,'Base de données'!$B:$B,">="&Indicateurs!$A41,'Base de données'!$B:$B,"<"&(Indicateurs!$B41+1))/3600 -> 139.4521101 | V41: =_xlfn.XLOOKUP(R$31,article,objectifHebdo,0,0)*Paramètres!$K$2 -> 17500 | W41: =SUMIFS('Base de données'!$C:$C,'Base de données'!$F:$F,W$31,'Base de données'!$B:$B,">="&Indicateurs!$A41,'Base de données'!$B:$B,"<"&(Indicateurs!$B41+1)) -> 12872 | X41: =SUMIFS('Base de données'!$D:$D,'Base de données'!$F:$F,W$31,'Base de données'!$B:$B,">="&Indicateurs!$A41,'Base de données'!$B:$B,"<"&(Indicateurs!$B41+1)) -> 411 | Y41: =_xlfn.XLOOKUP(W$31,article,tpsTheorique,0,0)*SUM($W41:$X41)/3600 -> 247.2113889 | Z41: =SUMIFS('Base de données'!$G:$G,'Base de données'!$F:$F,W$31,'Base de données'!$B:$B,">="&Indicateurs!$A41,'Base de données'!$B:$B,"<"&(Indicateurs!$B41+1))/3600 -> 249.2958438 | AA41: =_xlfn.XLOOKUP(W$31,article,objectifHebdo,0,0)*Paramètres!$K$2 -> 8500
A42: =IF(COUNTA($A$32:A41)<Paramètres!$K$3,Indicateurs!A41+7,"") ->  | F42: 0 | H42: =SUMIFS('Base de données'!$C:$C,'Base de données'!$F:$F,H$31,'Base de données'!$B:$B,">="&Indicateurs!$A42,'Base de données'!$B:$B,"<"&(Indicateurs!$B42+1)) -> 0 | I42: =SUMIFS('Base de données'!$D:$D,'Base de données'!$F:$F,H$31,'Base de données'!$B:$B,">="&Indicateurs!$A42,'Base de données'!$B:$B,"<"&(Indicateurs!$B42+1)) -> 0 | J42: =_xlfn.XLOOKUP(H$31,article,tpsTheorique,0,0)*SUM($H42:$I42)/3600 -> 0 | K42: =SUMIFS('Base de données'!$G:$G,'Base de données'!$F:$F,H$31,'Base de données'!$B:$B,">="&Indicateurs!$A42,'Base de données'!$B:$B,"<"&(Indicateurs!$B42+1))/3600 -> 0 | L42: =_xlfn.XLOOKUP(H$31,article,objectifHebdo,0,0)*Paramètres!$K$2 -> 9500 | M42: =SUMIFS('Base de données'!$C:$C,'Base de données'!$F:$F,M$31,'Base de données'!$B:$B,">="&Indicateurs!$A42,'Base de données'!$B:$B,"<"&(Indicateurs!$B42+1)) -> 0 | N42: =SUMIFS('Base de données'!$D:$D,'Base de données'!$F:$F,M$31,'Base de données'!$B:$B,">="&Indicateurs!$A42,'Base de données'!$B:$B,"<"&(Indicateurs!$B42+1)) -> 0 | O42: =_xlfn.XLOOKUP(M$31,article,tpsTheorique,0,0)*SUM($M42:$N42)/3600 -> 0 | P42: =SUMIFS('Base de données'!$G:$G,'Base de données'!$F:$F,M$31,'Base de données'!$B:$B,">="&Indicateurs!$A42,'Base de données'!$B:$B,"<"&(Indicateurs!$B42+1))/3600 -> 0 | Q42: =_xlfn.XLOOKUP(M$31,article,objectifHebdo,0,0)*Paramètres!$K$2 -> 17000 | R42: =SUMIFS('Base de données'!$C:$C,'Base de données'!$F:$F,R$31,'Base de données'!$B:$B,">="&Indicateurs!$A42,'Base de données'!$B:$B,"<"&(Indicateurs!$B42+1)) -> 0 | S42: =SUMIFS('Base de données'!$D:$D,'Base de données'!$F:$F,R$31,'Base de données'!$B:$B,">="&Indicateurs!$A42,'Base de données'!$B:$B,"<"&(Indicateurs!$B42+1)) -> 0 | T42: =_xlfn.XLOOKUP(R$31,article,tpsTheorique,0,0)*SUM($R42:$S42)/3600 -> 0 | U42: =SUMIFS('Base de données'!$G:$G,'Base de données'!$F:$F,R$31,'Base de données'!$B:$B,">="&Indicateurs!$A42,'Base de données'!$B:$B,"<"&(Indicateurs!$B42+1))/3600 -> 0 | V42: =_xlfn.XLOOKUP(R$31,article,objectifHebdo,0,0)*Paramètres!$K$2 -> 17500 | W42: =SUMIFS('Base de données'!$C:$C,'Base de données'!$F:$F,W$31,'Base de données'!$B:$B,">="&Indicateurs!$A42,'Base de données'!$B:$B,"<"&(Indicateurs!$B42+1)) -> 0 | X42: =SUMIFS('Base de données'!$D:$D,'Base de données'!$F:$F,W$31,'Base de données'!$B:$B,">="&Indicateurs!$A42,'Base de données'!$B:$B,"<"&(Indicateurs!$B42+1)) -> 0 | Y42: =_xlfn.XLOOKUP(W$31,article,tpsTheorique,0,0)*SUM($W42:$X42)/3600 -> 0 | Z42: =SUMIFS('Base de données'!$G:$G,'Base de données'!$F:$F,W$31,'Base de données'!$B:$B,">="&Indicateurs!$A42,'Base de données'!$B:$B,"<"&(Indicateurs!$B42+1))/3600 -> 0 | AA42: =_xlfn.XLOOKUP(W$31,article,objectifHebdo,0,0)*Paramètres!$K$2 -> 8500
A43: =IF(COUNTA($A$32:A42)<Paramètres!$K$3,Indicateurs!A42+7,"") ->  | F43: 0 | H43: =SUMIFS('Base de données'!$C:$C,'Base de données'!$F:$F,H$31,'Base de données'!$B:$B,">="&Indicateurs!$A43,'Base de données'!$B:$B,"<"&(Indicateurs!$B43+1)) -> 0 | I43: =SUMIFS('Base de données'!$D:$D,'Base de données'!$F:$F,H$31,'Base de données'!$B:$B,">="&Indicateurs!$A43,'Base de données'!$B:$B,"<"&(Indicateurs!$B43+1)) -> 0 | J43: =_xlfn.XLOOKUP(H$31,article,tpsTheorique,0,0)*SUM($H43:$I43)/3600 -> 0 | K43: =SUMIFS('Base de données'!$G:$G,'Base de données'!$F:$F,H$31,'Base de données'!$B:$B,">="&Indicateurs!$A43,'Base de données'!$B:$B,"<"&(Indicateurs!$B43+1))/3600 -> 0 | L43: =_xlfn.XLOOKUP(H$31,article,objectifHebdo,0,0)*Paramètres!$K$2 -> 9500 | M43: =SUMIFS('Base de données'!$C:$C,'Base de données'!$F:$F,M$31,'Base de données'!$B:$B,">="&Indicateurs!$A43,'Base de données'!$B:$B,"<"&(Indicateurs!$B43+1)) -> 0 | N43: =SUMIFS('Base de données'!$D:$D,'Base de données'!$F:$F,M$31,'Base de données'!$B:$B,">="&Indicateurs!$A43,'Base de données'!$B:$B,"<"&(Indicateurs!$B43+1)) -> 0 | O43: =_xlfn.XLOOKUP(M$31,article,tpsTheorique,0,0)*SUM($M43:$N43)/3600 -> 0 | P43: =SUMIFS('Base de données'!$G:$G,'Base de données'!$F:$F,M$31,'Base de données'!$B:$B,">="&Indicateurs!$A43,'Base de données'!$B:$B,"<"&(Indicateurs!$B43+1))/3600 -> 0 | Q43: =_xlfn.XLOOKUP(M$31,article,objectifHebdo,0,0)*Paramètres!$K$2 -> 17000 | R43: =SUMIFS('Base de données'!$C:$C,'Base de données'!$F:$F,R$31,'Base de données'!$B:$B,">="&Indicateurs!$A43,'Base de données'!$B:$B,"<"&(Indicateurs!$B43+1)) -> 0 | S43: =SUMIFS('Base de données'!$D:$D,'Base de données'!$F:$F,R$31,'Base de données'!$B:$B,">="&Indicateurs!$A43,'Base de données'!$B:$B,"<"&(Indicateurs!$B43+1)) -> 0 | T43: =_xlfn.XLOOKUP(R$31,article,tpsTheorique,0,0)*SUM($R43:$S43)/3600 -> 0 | U43: =SUMIFS('Base de données'!$G:$G,'Base de données'!$F:$F,R$31,'Base de données'!$B:$B,">="&Indicateurs!$A43,'Base de données'!$B:$B,"<"&(Indicateurs!$B43+1))/3600 -> 0 | V43: =_xlfn.XLOOKUP(R$31,article,objectifHebdo,0,0)*Paramètres!$K$2 -> 17500 | W43: =SUMIFS('Base de données'!$C:$C,'Base de données'!$F:$F,W$31,'Base de données'!$B:$B,">="&Indicateurs!$A43,'Base de données'!$B:$B,"<"&(Indicateurs!$B43+1)) -> 0 | X43: =SUMIFS('Base de données'!$D:$D,'Base de données'!$F:$F,W$31,'Base de données'!$B:$B,">="&Indicateurs!$A43,'Base de données'!$B:$B,"<"&(Indicateurs!$B43+1)) -> 0 | Y43: =_xlfn.XLOOKUP(W$31,article,tpsTheorique,0,0)*SUM($W43:$X43)/3600 -> 0 | Z43: =SUMIFS('Base de données'!$G:$G,'Base de données'!$F:$F,W$31,'Base de données'!$B:$B,">="&Indicateurs!$A43,'Base de données'!$B:$B,"<"&(Indicateurs!$B43+1))/3600 -> 0 | AA43: =_xlfn.XLOOKUP(W$31,article,objectifHebdo,0,0)*Paramètres!$K$2 -> 8500
A44: =IF(COUNTA($A$32:A43)<Paramètres!$K$3,Indicateurs!A43+7,"") ->  | F44: 0 | H44: =SUMIFS('Base de données'!$C:$C,'Base de données'!$F:$F,H$31,'Base de données'!$B:$B,">="&Indicateurs!$A44,'Base de données'!$B:$B,"<"&(Indicateurs!$B44+1)) -> 0 | I44: =SUMIFS('Base de données'!$D:$D,'Base de données'!$F:$F,H$31,'Base de données'!$B:$B,">="&Indicateurs!$A44,'Base de données'!$B:$B,"<"&(Indicateurs!$B44+1)) -> 0 | J44: =_xlfn.XLOOKUP(H$31,article,tpsTheorique,0,0)*SUM($H44:$I44)/3600 -> 0 | K44: =SUMIFS('Base de données'!$G:$G,'Base de données'!$F:$F,H$31,'Base de données'!$B:$B,">="&Indicateurs!$A44,'Base de données'!$B:$B,"<"&(Indicateurs!$B44+1))/3600 -> 0 | L44: =_xlfn.XLOOKUP(H$31,article,objectifHebdo,0,0)*Paramètres!$K$2 -> 9500 | M44: =SUMIFS('Base de données'!$C:$C,'Base de données'!$F:$F,M$31,'Base de données'!$B:$B,">="&Indicateurs!$A44,'Base de données'!$B:$B,"<"&(Indicateurs!$B44+1)) -> 0 | N44: =SUMIFS('Base de données'!$D:$D,'Base de données'!$F:$F,M$31,'Base de données'!$B:$B,">="&Indicateurs!$A44,'Base de données'!$B:$B,"<"&(Indicateurs!$B44+1)) -> 0 | O44: =_xlfn.XLOOKUP(M$31,article,tpsTheorique,0,0)*SUM($M44:$N44)/3600 -> 0 | P44: =SUMIFS('Base de données'!$G:$G,'Base de données'!$F:$F,M$31,'Base de données'!$B:$B,">="&Indicateurs!$A44,'Base de données'!$B:$B,"<"&(Indicateurs!$B44+1))/3600 -> 0 | Q44: =_xlfn.XLOOKUP(M$31,article,objectifHebdo,0,0)*Paramètres!$K$2 -> 17000 | R44: =SUMIFS('Base de données'!$C:$C,'Base de données'!$F:$F,R$31,'Base de données'!$B:$B,">="&Indicateurs!$A44,'Base de données'!$B:$B,"<"&(Indicateurs!$B44+1)) -> 0 | S44: =SUMIFS('Base de données'!$D:$D,'Base de données'!$F:$F,R$31,'Base de données'!$B:$B,">="&Indicateurs!$A44,'Base de données'!$B:$B,"<"&(Indicateurs!$B44+1)) -> 0 | T44: =_xlfn.XLOOKUP(R$31,article,tpsTheorique,0,0)*SUM($R44:$S44)/3600 -> 0 | U44: =SUMIFS('Base de données'!$G:$G,'Base de données'!$F:$F,R$31,'Base de données'!$B:$B,">="&Indicateurs!$A44,'Base de données'!$B:$B,"<"&(Indicateurs!$B44+1))/3600 -> 0 | V44: =_xlfn.XLOOKUP(R$31,article,objectifHebdo,0,0)*Paramètres!$K$2 -> 17500 | W44: =SUMIFS('Base de données'!$C:$C,'Base de données'!$F:$F,W$31,'Base de données'!$B:$B,">="&Indicateurs!$A44,'Base de données'!$B:$B,"<"&(Indicateurs!$B44+1)) -> 0 | X44: =SUMIFS('Base de données'!$D:$D,'Base de données'!$F:$F,W$31,'Base de données'!$B:$B,">="&Indicateurs!$A44,'Base de données'!$B:$B,"<"&(Indicateurs!$B44+1)) -> 0 | Y44: =_xlfn.XLOOKUP(W$31,article,tpsTheorique,0,0)*SUM($W44:$X44)/3600 -> 0 | Z44: =SUMIFS('Base de données'!$G:$G,'Base de données'!$F:$F,W$31,'Base de données'!$B:$B,">="&Indicateurs!$A44,'Base de données'!$B:$B,"<"&(Indicateurs!$B44+1))/3600 -> 0 | AA44: =_xlfn.XLOOKUP(W$31,article,objectifHebdo,0,0)*Paramètres!$K$2 -> 8500
A45: =IF(COUNTA($A$32:A44)<Paramètres!$K$3,Indicateurs!A44+7,"") ->  | F45: 0 | H45: =SUMIFS('Base de données'!$C:$C,'Base de données'!$F:$F,H$31,'Base de données'!$B:$B,">="&Indicateurs!$A45,'Base de données'!$B:$B,"<"&(Indicateurs!$B45+1)) -> 0 | I45: =SUMIFS('Base de données'!$D:$D,'Base de données'!$F:$F,H$31,'Base de données'!$B:$B,">="&Indicateurs!$A45,'Base de données'!$B:$B,"<"&(Indicateurs!$B45+1)) -> 0 | J45: =_xlfn.XLOOKUP(H$31,article,tpsTheorique,0,0)*SUM($H45:$I45)/3600 -> 0 | K45: =SUMIFS('Base de données'!$G:$G,'Base de données'!$F:$F,H$31,'Base de données'!$B:$B,">="&Indicateurs!$A45,'Base de données'!$B:$B,"<"&(Indicateurs!$B45+1))/3600 -> 0 | L45: =_xlfn.XLOOKUP(H$31,article,objectifHebdo,0,0)*Paramètres!$K$2 -> 9500 | M45: =SUMIFS('Base de données'!$C:$C,'Base de données'!$F:$F,M$31,'Base de données'!$B:$B,">="&Indicateurs!$A45,'Base de données'!$B:$B,"<"&(Indicateurs!$B45+1)) -> 0 | N45: =SUMIFS('Base de données'!$D:$D,'Base de données'!$F:$F,M$31,'Base de données'!$B:$B,">="&Indicateurs!$A45,'Base de données'!$B:$B,"<"&(Indicateurs!$B45+1)) -> 0 | O45: =_xlfn.XLOOKUP(M$31,article,tpsTheorique,0,0)*SUM($M45:$N45)/3600 -> 0 | P45: =SUMIFS('Base de données'!$G:$G,'Base de données'!$F:$F,M$31,'Base de données'!$B:$B,">="&Indicateurs!$A45,'Base de données'!$B:$B,"<"&(Indicateurs!$B45+1))/3600 -> 0 | Q45: =_xlfn.XLOOKUP(M$31,article,objectifHebdo,0,0)*Paramètres!$K$2 -> 17000 | R45: =SUMIFS('Base de données'!$C:$C,'Base de données'!$F:$F,R$31,'Base de données'!$B:$B,">="&Indicateurs!$A45,'Base de données'!$B:$B,"<"&(Indicateurs!$B45+1)) -> 0 | S45: =SUMIFS('Base de données'!$D:$D,'Base de données'!$F:$F,R$31,'Base de données'!$B:$B,">="&Indicateurs!$A45,'Base de données'!$B:$B,"<"&(Indicateurs!$B45+1)) -> 0 | T45: =_xlfn.XLOOKUP(R$31,article,tpsTheorique,0,0)*SUM($R45:$S45)/3600 -> 0 | U45: =SUMIFS('Base de données'!$G:$G,'Base de données'!$F:$F,R$31,'Base de données'!$B:$B,">="&Indicateurs!$A45,'Base de données'!$B:$B,"<"&(Indicateurs!$B45+1))/3600 -> 0 | V45: =_xlfn.XLOOKUP(R$31,article,objectifHebdo,0,0)*Paramètres!$K$2 -> 17500 | W45: =SUMIFS('Base de données'!$C:$C,'Base de données'!$F:$F,W$31,'Base de données'!$B:$B,">="&Indicateurs!$A45,'Base de données'!$B:$B,"<"&(Indicateurs!$B45+1)) -> 0 | X45: =SUMIFS('Base de données'!$D:$D,'Base de données'!$F:$F,W$31,'Base de données'!$B:$B,">="&Indicateurs!$A45,'Base de données'!$B:$B,"<"&(Indicateurs!$B45+1)) -> 0 | Y45: =_xlfn.XLOOKUP(W$31,article,tpsTheorique,0,0)*SUM($W45:$X45)/3600 -> 0 | Z45: =SUMIFS('Base de données'!$G:$G,'Base de données'!$F:$F,W$31,'Base de données'!$B:$B,">="&Indicateurs!$A45,'Base de données'!$B:$B,"<"&(Indicateurs!$B45+1))/3600 -> 0 | AA45: =_xlfn.XLOOKUP(W$31,article,objectifHebdo,0,0)*Paramètres!$K$2 -> 8500
A46: =IF(COUNTA($A$32:A45)<Paramètres!$K$3,Indicateurs!A45+7,"") ->  | F46: 0 | H46: =SUMIFS('Base de données'!$C:$C,'Base de données'!$F:$F,H$31,'Base de données'!$B:$B,">="&Indicateurs!$A46,'Base de données'!$B:$B,"<"&(Indicateurs!$B46+1)) -> 0 | I46: =SUMIFS('Base de données'!$D:$D,'Base de données'!$F:$F,H$31,'Base de données'!$B:$B,">="&Indicateurs!$A46,'Base de données'!$B:$B,"<"&(Indicateurs!$B46+1)) -> 0 | J46: =_xlfn.XLOOKUP(H$31,article,tpsTheorique,0,0)*SUM($H46:$I46)/3600 -> 0 | K46: =SUMIFS('Base de données'!$G:$G,'Base de données'!$F:$F,H$31,'Base de données'!$B:$B,">="&Indicateurs!$A46,'Base de données'!$B:$B,"<"&(Indicateurs!$B46+1))/3600 -> 0 | L46: =_xlfn.XLOOKUP(H$31,article,objectifHebdo,0,0)*Paramètres!$K$2 -> 9500 | M46: =SUMIFS('Base de données'!$C:$C,'Base de données'!$F:$F,M$31,'Base de données'!$B:$B,">="&Indicateurs!$A46,'Base de données'!$B:$B,"<"&(Indicateurs!$B46+1)) -> 0 | N46: =SUMIFS('Base de données'!$D:$D,'Base de données'!$F:$F,M$31,'Base de données'!$B:$B,">="&Indicateurs!$A46,'Base de données'!$B:$B,"<"&(Indicateurs!$B46+1)) -> 0 | O46: =_xlfn.XLOOKUP(M$31,article,tpsTheorique,0,0)*SUM($M46:$N46)/3600 -> 0 | P46: =SUMIFS('Base de données'!$G:$G,'Base de données'!$F:$F,M$31,'Base de données'!$B:$B,">="&Indicateurs!$A46,'Base de données'!$B:$B,"<"&(Indicateurs!$B46+1))/3600 -> 0 | Q46: =_xlfn.XLOOKUP(M$31,article,objectifHebdo,0,0)*Paramètres!$K$2 -> 17000 | R46: =SUMIFS('Base de données'!$C:$C,'Base de données'!$F:$F,R$31,'Base de données'!$B:$B,">="&Indicateurs!$A46,'Base de données'!$B:$B,"<"&(Indicateurs!$B46+1)) -> 0 | S46: =SUMIFS('Base de données'!$D:$D,'Base de données'!$F:$F,R$31,'Base de données'!$B:$B,">="&Indicateurs!$A46,'Base de données'!$B:$B,"<"&(Indicateurs!$B46+1)) -> 0 | T46: =_xlfn.XLOOKUP(R$31,article,tpsTheorique,0,0)*SUM($R46:$S46)/3600 -> 0 | U46: =SUMIFS('Base de données'!$G:$G,'Base de données'!$F:$F,R$31,'Base de données'!$B:$B,">="&Indicateurs!$A46,'Base de données'!$B:$B,"<"&(Indicateurs!$B46+1))/3600 -> 0 | V46: =_xlfn.XLOOKUP(R$31,article,objectifHebdo,0,0)*Paramètres!$K$2 -> 17500 | W46: =SUMIFS('Base de données'!$C:$C,'Base de données'!$F:$F,W$31,'Base de données'!$B:$B,">="&Indicateurs!$A46,'Base de données'!$B:$B,"<"&(Indicateurs!$B46+1)) -> 0 | X46: =SUMIFS('Base de données'!$D:$D,'Base de données'!$F:$F,W$31,'Base de données'!$B:$B,">="&Indicateurs!$A46,'Base de données'!$B:$B,"<"&(Indicateurs!$B46+1)) -> 0 | Y46: =_xlfn.XLOOKUP(W$31,article,tpsTheorique,0,0)*SUM($W46:$X46)/3600 -> 0 | Z46: =SUMIFS('Base de données'!$G:$G,'Base de données'!$F:$F,W$31,'Base de données'!$B:$B,">="&Indicateurs!$A46,'Base de données'!$B:$B,"<"&(Indicateurs!$B46+1))/3600 -> 0 | AA46: =_xlfn.XLOOKUP(W$31,article,objectifHebdo,0,0)*Paramètres!$K$2 -> 8500
A47: =IF(COUNTA($A$32:A46)<Paramètres!$K$3,Indicateurs!A46+7,"") ->  | F47: 0 | H47: =SUMIFS('Base de données'!$C:$C,'Base de données'!$F:$F,H$31,'Base de données'!$B:$B,">="&Indicateurs!$A47,'Base de données'!$B:$B,"<"&(Indicateurs!$B47+1)) -> 0 | I47: =SUMIFS('Base de données'!$D:$D,'Base de données'!$F:$F,H$31,'Base de données'!$B:$B,">="&Indicateurs!$A47,'Base de données'!$B:$B,"<"&(Indicateurs!$B47+1)) -> 0 | J47: =_xlfn.XLOOKUP(H$31,article,tpsTheorique,0,0)*SUM($H47:$I47)/3600 -> 0 | K47: =SUMIFS('Base de données'!$G:$G,'Base de données'!$F:$F,H$31,'Base de données'!$B:$B,">="&Indicateurs!$A47,'Base de données'!$B:$B,"<"&(Indicateurs!$B47+1))/3600 -> 0 | L47: =_xlfn.XLOOKUP(H$31,article,objectifHebdo,0,0)*Paramètres!$K$2 -> 9500 | M47: =SUMIFS('Base de données'!$C:$C,'Base de données'!$F:$F,M$31,'Base de données'!$B:$B,">="&Indicateurs!$A47,'Base de données'!$B:$B,"<"&(Indicateurs!$B47+1)) -> 0 | N47: =SUMIFS('Base de données'!$D:$D,'Base de données'!$F:$F,M$31,'Base de données'!$B:$B,">="&Indicateurs!$A47,'Base de données'!$B:$B,"<"&(Indicateurs!$B47+1)) -> 0 | O47: =_xlfn.XLOOKUP(M$31,article,tpsTheorique,0,0)*SUM($M47:$N47)/3600 -> 0 | P47: =SUMIFS('Base de données'!$G:$G,'Base de données'!$F:$F,M$31,'Base de données'!$B:$B,">="&Indicateurs!$A47,'Base de données'!$B:$B,"<"&(Indicateurs!$B47+1))/3600 -> 0 | Q47: =_xlfn.XLOOKUP(M$31,article,objectifHebdo,0,0)*Paramètres!$K$2 -> 17000 | R47: =SUMIFS('Base de données'!$C:$C,'Base de données'!$F:$F,R$31,'Base de données'!$B:$B,">="&Indicateurs!$A47,'Base de données'!$B:$B,"<"&(Indicateurs!$B47+1)) -> 0 | S47: =SUMIFS('Base de données'!$D:$D,'Base de données'!$F:$F,R$31,'Base de données'!$B:$B,">="&Indicateurs!$A47,'Base de données'!$B:$B,"<"&(Indicateurs!$B47+1)) -> 0 | T47: =_xlfn.XLOOKUP(R$31,article,tpsTheorique,0,0)*SUM($R47:$S47)/3600 -> 0 | U47: =SUMIFS('Base de données'!$G:$G,'Base de données'!$F:$F,R$31,'Base de données'!$B:$B,">="&Indicateurs!$A47,'Base de données'!$B:$B,"<"&(Indicateurs!$B47+1))/3600 -> 0 | V47: =_xlfn.XLOOKUP(R$31,article,objectifHebdo,0,0)*Paramètres!$K$2 -> 17500 | W47: =SUMIFS('Base de données'!$C:$C,'Base de données'!$F:$F,W$31,'Base de données'!$B:$B,">="&Indicateurs!$A47,'Base de données'!$B:$B,"<"&(Indicateurs!$B47+1)) -> 0 | X47: =SUMIFS('Base de données'!$D:$D,'Base de données'!$F:$F,W$31,'Base de données'!$B:$B,">="&Indicateurs!$A47,'Base de données'!$B:$B,"<"&(Indicateurs!$B47+1)) -> 0 | Y47: =_xlfn.XLOOKUP(W$31,article,tpsTheorique,0,0)*SUM($W47:$X47)/3600 -> 0 | Z47: =SUMIFS('Base de données'!$G:$G,'Base de données'!$F:$F,W$31,'Base de données'!$B:$B,">="&Indicateurs!$A47,'Base de données'!$B:$B,"<"&(Indicateurs!$B47+1))/3600 -> 0 | AA47: =_xlfn.XLOOKUP(W$31,article,objectifHebdo,0,0)*Paramètres!$K$2 -> 8500
A48: =IF(COUNTA($A$32:A47)<Paramètres!$K$3,Indicateurs!A47+7,"") ->  | F48: 0 | H48: =SUMIFS('Base de données'!$C:$C,'Base de données'!$F:$F,H$31,'Base de données'!$B:$B,">="&Indicateurs!$A48,'Base de données'!$B:$B,"<"&(Indicateurs!$B48+1)) -> 0 | I48: =SUMIFS('Base de données'!$D:$D,'Base de données'!$F:$F,H$31,'Base de données'!$B:$B,">="&Indicateurs!$A48,'Base de données'!$B:$B,"<"&(Indicateurs!$B48+1)) -> 0 | J48: =_xlfn.XLOOKUP(H$31,article,tpsTheorique,0,0)*SUM($H48:$I48)/3600 -> 0 | K48: =SUMIFS('Base de données'!$G:$G,'Base de données'!$F:$F,H$31,'Base de données'!$B:$B,">="&Indicateurs!$A48,'Base de données'!$B:$B,"<"&(Indicateurs!$B48+1))/3600 -> 0 | L48: =_xlfn.XLOOKUP(H$31,article,objectifHebdo,0,0)*Paramètres!$K$2 -> 9500 | M48: =SUMIFS('Base de données'!$C:$C,'Base de données'!$F:$F,M$31,'Base de données'!$B:$B,">="&Indicateurs!$A48,'Base de données'!$B:$B,"<"&(Indicateurs!$B48+1)) -> 0 | N48: =SUMIFS('Base de données'!$D:$D,'Base de données'!$F:$F,M$31,'Base de données'!$B:$B,">="&Indicateurs!$A48,'Base de données'!$B:$B,"<"&(Indicateurs!$B48+1)) -> 0 | O48: =_xlfn.XLOOKUP(M$31,article,tpsTheorique,0,0)*SUM($M48:$N48)/3600 -> 0 | P48: =SUMIFS('Base de données'!$G:$G,'Base de données'!$F:$F,M$31,'Base de données'!$B:$B,">="&Indicateurs!$A48,'Base de données'!$B:$B,"<"&(Indicateurs!$B48+1))/3600 -> 0 | Q48: =_xlfn.XLOOKUP(M$31,article,objectifHebdo,0,0)*Paramètres!$K$2 -> 17000 | R48: =SUMIFS('Base de données'!$C:$C,'Base de données'!$F:$F,R$31,'Base de données'!$B:$B,">="&Indicateurs!$A48,'Base de données'!$B:$B,"<"&(Indicateurs!$B48+1)) -> 0 | S48: =SUMIFS('Base de données'!$D:$D,'Base de données'!$F:$F,R$31,'Base de données'!$B:$B,">="&Indicateurs!$A48,'Base de données'!$B:$B,"<"&(Indicateurs!$B48+1)) -> 0 | T48: =_xlfn.XLOOKUP(R$31,article,tpsTheorique,0,0)*SUM($R48:$S48)/3600 -> 0 | U48: =SUMIFS('Base de données'!$G:$G,'Base de données'!$F:$F,R$31,'Base de données'!$B:$B,">="&Indicateurs!$A48,'Base de données'!$B:$B,"<"&(Indicateurs!$B48+1))/3600 -> 0 | V48: =_xlfn.XLOOKUP(R$31,article,objectifHebdo,0,0)*Paramètres!$K$2 -> 17500 | W48: =SUMIFS('Base de données'!$C:$C,'Base de données'!$F:$F,W$31,'Base de données'!$B:$B,">="&Indicateurs!$A48,'Base de données'!$B:$B,"<"&(Indicateurs!$B48+1)) -> 0 | X48: =SUMIFS('Base de données'!$D:$D,'Base de données'!$F:$F,W$31,'Base de données'!$B:$B,">="&Indicateurs!$A48,'Base de données'!$B:$B,"<"&(Indicateurs!$B48+1)) -> 0 | Y48: =_xlfn.XLOOKUP(W$31,article,tpsTheorique,0,0)*SUM($W48:$X48)/3600 -> 0 | Z48: =SUMIFS('Base de données'!$G:$G,'Base de données'!$F:$F,W$31,'Base de données'!$B:$B,">="&Indicateurs!$A48,'Base de données'!$B:$B,"<"&(Indicateurs!$B48+1))/3600 -> 0 | AA48: =_xlfn.XLOOKUP(W$31,article,objectifHebdo,0,0)*Paramètres!$K$2 -> 8500
A49: =IF(COUNTA($A$32:A48)<Paramètres!$K$3,Indicateurs!A48+7,"") ->  | F49: 0 | H49: =SUMIFS('Base de données'!$C:$C,'Base de données'!$F:$F,H$31,'Base de données'!$B:$B,">="&Indicateurs!$A49,'Base de données'!$B:$B,"<"&(Indicateurs!$B49+1)) -> 0 | I49: =SUMIFS('Base de données'!$D:$D,'Base de données'!$F:$F,H$31,'Base de données'!$B:$B,">="&Indicateurs!$A49,'Base de données'!$B:$B,"<"&(Indicateurs!$B49+1)) -> 0 | J49: =_xlfn.XLOOKUP(H$31,article,tpsTheorique,0,0)*SUM($H49:$I49)/3600 -> 0 | K49: =SUMIFS('Base de données'!$G:$G,'Base de données'!$F:$F,H$31,'Base de données'!$B:$B,">="&Indicateurs!$A49,'Base de données'!$B:$B,"<"&(Indicateurs!$B49+1))/3600 -> 0 | L49: =_xlfn.XLOOKUP(H$31,article,objectifHebdo,0,0)*Paramètres!$K$2 -> 9500 | M49: =SUMIFS('Base de données'!$C:$C,'Base de données'!$F:$F,M$31,'Base de données'!$B:$B,">="&Indicateurs!$A49,'Base de données'!$B:$B,"<"&(Indicateurs!$B49+1)) -> 0 | N49: =SUMIFS('Base de données'!$D:$D,'Base de données'!$F:$F,M$31,'Base de données'!$B:$B,">="&Indicateurs!$A49,'Base de données'!$B:$B,"<"&(Indicateurs!$B49+1)) -> 0 | O49: =_xlfn.XLOOKUP(M$31,article,tpsTheorique,0,0)*SUM($M49:$N49)/3600 -> 0 | P49: =SUMIFS('Base de données'!$G:$G,'Base de données'!$F:$F,M$31,'Base de données'!$B:$B,">="&Indicateurs!$A49,'Base de données'!$B:$B,"<"&(Indicateurs!$B49+1))/3600 -> 0 | Q49: =_xlfn.XLOOKUP(M$31,article,objectifHebdo,0,0)*Paramètres!$K$2 -> 17000 | R49: =SUMIFS('Base de données'!$C:$C,'Base de données'!$F:$F,R$31,'Base de données'!$B:$B,">="&Indicateurs!$A49,'Base de données'!$B:$B,"<"&(Indicateurs!$B49+1)) -> 0 | S49: =SUMIFS('Base de données'!$D:$D,'Base de données'!$F:$F,R$31,'Base de données'!$B:$B,">="&Indicateurs!$A49,'Base de données'!$B:$B,"<"&(Indicateurs!$B49+1)) -> 0 | T49: =_xlfn.XLOOKUP(R$31,article,tpsTheorique,0,0)*SUM($R49:$S49)/3600 -> 0 | U49: =SUMIFS('Base de données'!$G:$G,'Base de données'!$F:$F,R$31,'Base de données'!$B:$B,">="&Indicateurs!$A49,'Base de données'!$B:$B,"<"&(Indicateurs!$B49+1))/3600 -> 0 | V49: =_xlfn.XLOOKUP(R$31,article,objectifHebdo,0,0)*Paramètres!$K$2 -> 17500 | W49: =SUMIFS('Base de données'!$C:$C,'Base de données'!$F:$F,W$31,'Base de données'!$B:$B,">="&Indicateurs!$A49,'Base de données'!$B:$B,"<"&(Indicateurs!$B49+1)) -> 0 | X49: =SUMIFS('Base de données'!$D:$D,'Base de données'!$F:$F,W$31,'Base de données'!$B:$B,">="&Indicateurs!$A49,'Base de données'!$B:$B,"<"&(Indicateurs!$B49+1)) -> 0 | Y49: =_xlfn.XLOOKUP(W$31,article,tpsTheorique,0,0)*SUM($W49:$X49)/3600 -> 0 | Z49: =SUMIFS('Base de données'!$G:$G,'Base de données'!$F:$F,W$31,'Base de données'!$B:$B,">="&Indicateurs!$A49,'Base de données'!$B:$B,"<"&(Indicateurs!$B49+1))/3600 -> 0 | AA49: =_xlfn.XLOOKUP(W$31,article,objectifHebdo,0,0)*Paramètres!$K$2 -> 8500
A50: =IF(COUNTA($A$32:A49)<Paramètres!$K$3,Indicateurs!A49+7,"") ->  | F50: 0 | H50: =SUMIFS('Base de données'!$C:$C,'Base de données'!$F:$F,H$31,'Base de données'!$B:$B,">="&Indicateurs!$A50,'Base de données'!$B:$B,"<"&(Indicateurs!$B50+1)) -> 0 | I50: =SUMIFS('Base de données'!$D:$D,'Base de données'!$F:$F,H$31,'Base de données'!$B:$B,">="&Indicateurs!$A50,'Base de données'!$B:$B,"<"&(Indicateurs!$B50+1)) -> 0 | J50: =_xlfn.XLOOKUP(H$31,article,tpsTheorique,0,0)*SUM($H50:$I50)/3600 -> 0 | K50: =SUMIFS('Base de données'!$G:$G,'Base de données'!$F:$F,H$31,'Base de données'!$B:$B,">="&Indicateurs!$A50,'Base de données'!$B:$B,"<"&(Indicateurs!$B50+1))/3600 -> 0 | L50: =_xlfn.XLOOKUP(H$31,article,objectifHebdo,0,0)*Paramètres!$K$2 -> 9500 | M50: =SUMIFS('Base de données'!$C:$C,'Base de données'!$F:$F,M$31,'Base de données'!$B:$B,">="&Indicateurs!$A50,'Base de données'!$B:$B,"<"&(Indicateurs!$B50+1)) -> 0 | N50: =SUMIFS('Base de données'!$D:$D,'Base de données'!$F:$F,M$31,'Base de données'!$B:$B,">="&Indicateurs!$A50,'Base de données'!$B:$B,"<"&(Indicateurs!$B50+1)) -> 0 | O50: =_xlfn.XLOOKUP(M$31,article,tpsTheorique,0,0)*SUM($M50:$N50)/3600 -> 0 | P50: =SUMIFS('Base de données'!$G:$G,'Base de données'!$F:$F,M$31,'Base de données'!$B:$B,">="&Indicateurs!$A50,'Base de données'!$B:$B,"<"&(Indicateurs!$B50+1))/3600 -> 0 | Q50: =_xlfn.XLOOKUP(M$31,article,objectifHebdo,0,0)*Paramètres!$K$2 -> 17000 | R50: =SUMIFS('Base de données'!$C:$C,'Base de données'!$F:$F,R$31,'Base de données'!$B:$B,">="&Indicateurs!$A50,'Base de données'!$B:$B,"<"&(Indicateurs!$B50+1)) -> 0 | S50: =SUMIFS('Base de données'!$D:$D,'Base de données'!$F:$F,R$31,'Base de données'!$B:$B,">="&Indicateurs!$A50,'Base de données'!$B:$B,"<"&(Indicateurs!$B50+1)) -> 0 | T50: =_xlfn.XLOOKUP(R$31,article,tpsTheorique,0,0)*SUM($R50:$S50)/3600 -> 0 | U50: =SUMIFS('Base de données'!$G:$G,'Base de données'!$F:$F,R$31,'Base de données'!$B:$B,">="&Indicateurs!$A50,'Base de données'!$B:$B,"<"&(Indicateurs!$B50+1))/3600 -> 0 | V50: =_xlfn.XLOOKUP(R$31,article,objectifHebdo,0,0)*Paramètres!$K$2 -> 17500 | W50: =SUMIFS('Base de données'!$C:$C,'Base de données'!$F:$F,W$31,'Base de données'!$B:$B,">="&Indicateurs!$A50,'Base de données'!$B:$B,"<"&(Indicateurs!$B50+1)) -> 0 | X50: =SUMIFS('Base de données'!$D:$D,'Base de données'!$F:$F,W$31,'Base de données'!$B:$B,">="&Indicateurs!$A50,'Base de données'!$B:$B,"<"&(Indicateurs!$B50+1)) -> 0 | Y50: =_xlfn.XLOOKUP(W$31,article,tpsTheorique,0,0)*SUM($W50:$X50)/3600 -> 0 | Z50: =SUMIFS('Base de données'!$G:$G,'Base de données'!$F:$F,W$31,'Base de données'!$B:$B,">="&Indicateurs!$A50,'Base de données'!$B:$B,"<"&(Indicateurs!$B50+1))/3600 -> 0 | AA50: =_xlfn.XLOOKUP(W$31,article,objectifHebdo,0,0)*Paramètres!$K$2 -> 8500
A51: =IF(COUNTA($A$32:A50)<Paramètres!$K$3,Indicateurs!A50+7,"") ->  | F51: 0 | H51: =SUMIFS('Base de données'!$C:$C,'Base de données'!$F:$F,H$31,'Base de données'!$B:$B,">="&Indicateurs!$A51,'Base de données'!$B:$B,"<"&(Indicateurs!$B51+1)) -> 0 | I51: =SUMIFS('Base de données'!$D:$D,'Base de données'!$F:$F,H$31,'Base de données'!$B:$B,">="&Indicateurs!$A51,'Base de données'!$B:$B,"<"&(Indicateurs!$B51+1)) -> 0 | J51: =_xlfn.XLOOKUP(H$31,article,tpsTheorique,0,0)*SUM($H51:$I51)/3600 -> 0 | K51: =SUMIFS('Base de données'!$G:$G,'Base de données'!$F:$F,H$31,'Base de données'!$B:$B,">="&Indicateurs!$A51,'Base de données'!$B:$B,"<"&(Indicateurs!$B51+1))/3600 -> 0 | L51: =_xlfn.XLOOKUP(H$31,article,objectifHebdo,0,0)*Paramètres!$K$2 -> 9500 | M51: =SUMIFS('Base de données'!$C:$C,'Base de données'!$F:$F,M$31,'Base de données'!$B:$B,">="&Indicateurs!$A51,'Base de données'!$B:$B,"<"&(Indicateurs!$B51+1)) -> 0 | N51: =SUMIFS('Base de données'!$D:$D,'Base de données'!$F:$F,M$31,'Base de données'!$B:$B,">="&Indicateurs!$A51,'Base de données'!$B:$B,"<"&(Indicateurs!$B51+1)) -> 0 | O51: =_xlfn.XLOOKUP(M$31,article,tpsTheorique,0,0)*SUM($M51:$N51)/3600 -> 0 | P51: =SUMIFS('Base de données'!$G:$G,'Base de données'!$F:$F,M$31,'Base de données'!$B:$B,">="&Indicateurs!$A51,'Base de données'!$B:$B,"<"&(Indicateurs!$B51+1))/3600 -> 0 | Q51: =_xlfn.XLOOKUP(M$31,article,objectifHebdo,0,0)*Paramètres!$K$2 -> 17000 | R51: =SUMIFS('Base de données'!$C:$C,'Base de données'!$F:$F,R$31,'Base de données'!$B:$B,">="&Indicateurs!$A51,'Base de données'!$B:$B,"<"&(Indicateurs!$B51+1)) -> 0 | S51: =SUMIFS('Base de données'!$D:$D,'Base de données'!$F:$F,R$31,'Base de données'!$B:$B,">="&Indicateurs!$A51,'Base de données'!$B:$B,"<"&(Indicateurs!$B51+1)) -> 0 | T51: =_xlfn.XLOOKUP(R$31,article,tpsTheorique,0,0)*SUM($R51:$S51)/3600 -> 0 | U51: =SUMIFS('Base de données'!$G:$G,'Base de données'!$F:$F,R$31,'Base de données'!$B:$B,">="&Indicateurs!$A51,'Base de données'!$B:$B,"<"&(Indicateurs!$B51+1))/3600 -> 0 | V51: =_xlfn.XLOOKUP(R$31,article,objectifHebdo,0,0)*Paramètres!$K$2 -> 17500 | W51: =SUMIFS('Base de données'!$C:$C,'Base de données'!$F:$F,W$31,'Base de données'!$B:$B,">="&Indicateurs!$A51,'Base de données'!$B:$B,"<"&(Indicateurs!$B51+1)) -> 0 | X51: =SUMIFS('Base de données'!$D:$D,'Base de données'!$F:$F,W$31,'Base de données'!$B:$B,">="&Indicateurs!$A51,'Base de données'!$B:$B,"<"&(Indicateurs!$B51+1)) -> 0 | Y51: =_xlfn.XLOOKUP(W$31,article,tpsTheorique,0,0)*SUM($W51:$X51)/3600 -> 0 | Z51: =SUMIFS('Base de données'!$G:$G,'Base de données'!$F:$F,W$31,'Base de données'!$B:$B,">="&Indicateurs!$A51,'Base de données'!$B:$B,"<"&(Indicateurs!$B51+1))/3600 -> 0 | AA51: =_xlfn.XLOOKUP(W$31,article,objectifHebdo,0,0)*Paramètres!$K$2 -> 8500
A52: =IF(COUNTA($A$32:A51)<Paramètres!$K$3,Indicateurs!A51+7,"") ->  | F52: 0 | H52: =SUMIFS('Base de données'!$C:$C,'Base de données'!$F:$F,H$31,'Base de données'!$B:$B,">="&Indicateurs!$A52,'Base de données'!$B:$B,"<"&(Indicateurs!$B52+1)) -> 0 | I52: =SUMIFS('Base de données'!$D:$D,'Base de données'!$F:$F,H$31,'Base de données'!$B:$B,">="&Indicateurs!$A52,'Base de données'!$B:$B,"<"&(Indicateurs!$B52+1)) -> 0 | J52: =_xlfn.XLOOKUP(H$31,article,tpsTheorique,0,0)*SUM($H52:$I52)/3600 -> 0 | K52: =SUMIFS('Base de données'!$G:$G,'Base de données'!$F:$F,H$31,'Base de données'!$B:$B,">="&Indicateurs!$A52,'Base de données'!$B:$B,"<"&(Indicateurs!$B52+1))/3600 -> 0 | L52: =_xlfn.XLOOKUP(H$31,article,objectifHebdo,0,0)*Paramètres!$K$2 -> 9500 | M52: =SUMIFS('Base de données'!$C:$C,'Base de données'!$F:$F,M$31,'Base de données'!$B:$B,">="&Indicateurs!$A52,'Base de données'!$B:$B,"<"&(Indicateurs!$B52+1)) -> 0 | N52: =SUMIFS('Base de données'!$D:$D,'Base de données'!$F:$F,M$31,'Base de données'!$B:$B,">="&Indicateurs!$A52,'Base de données'!$B:$B,"<"&(Indicateurs!$B52+1)) -> 0 | O52: =_xlfn.XLOOKUP(M$31,article,tpsTheorique,0,0)*SUM($M52:$N52)/3600 -> 0 | P52: =SUMIFS('Base de données'!$G:$G,'Base de données'!$F:$F,M$31,'Base de données'!$B:$B,">="&Indicateurs!$A52,'Base de données'!$B:$B,"<"&(Indicateurs!$B52+1))/3600 -> 0 | Q52: =_xlfn.XLOOKUP(M$31,article,objectifHebdo,0,0)*Paramètres!$K$2 -> 17000 | R52: =SUMIFS('Base de données'!$C:$C,'Base de données'!$F:$F,R$31,'Base de données'!$B:$B,">="&Indicateurs!$A52,'Base de données'!$B:$B,"<"&(Indicateurs!$B52+1)) -> 0 | S52: =SUMIFS('Base de données'!$D:$D,'Base de données'!$F:$F,R$31,'Base de données'!$B:$B,">="&Indicateurs!$A52,'Base de données'!$B:$B,"<"&(Indicateurs!$B52+1)) -> 0 | T52: =_xlfn.XLOOKUP(R$31,article,tpsTheorique,0,0)*SUM($R52:$S52)/3600 -> 0 | U52: =SUMIFS('Base de données'!$G:$G,'Base de données'!$F:$F,R$31,'Base de données'!$B:$B,">="&Indicateurs!$A52,'Base de données'!$B:$B,"<"&(Indicateurs!$B52+1))/3600 -> 0 | V52: =_xlfn.XLOOKUP(R$31,article,objectifHebdo,0,0)*Paramètres!$K$2 -> 17500 | W52: =SUMIFS('Base de données'!$C:$C,'Base de données'!$F:$F,W$31,'Base de données'!$B:$B,">="&Indicateurs!$A52,'Base de données'!$B:$B,"<"&(Indicateurs!$B52+1)) -> 0 | X52: =SUMIFS('Base de données'!$D:$D,'Base de données'!$F:$F,W$31,'Base de données'!$B:$B,">="&Indicateurs!$A52,'Base de données'!$B:$B,"<"&(Indicateurs!$B52+1)) -> 0 | Y52: =_xlfn.XLOOKUP(W$31,article,tpsTheorique,0,0)*SUM($W52:$X52)/3600 -> 0 | Z52: =SUMIFS('Base de données'!$G:$G,'Base de données'!$F:$F,W$31,'Base de données'!$B:$B,">="&Indicateurs!$A52,'Base de données'!$B:$B,"<"&(Indicateurs!$B52+1))/3600 -> 0 | AA52: =_xlfn.XLOOKUP(W$31,article,objectifHebdo,0,0)*Paramètres!$K$2 -> 8500
A53: =IF(COUNTA($A$32:A52)<Paramètres!$K$3,Indicateurs!A52+7,"") ->  | F53: 0 | H53: =SUMIFS('Base de données'!$C:$C,'Base de données'!$F:$F,H$31,'Base de données'!$B:$B,">="&Indicateurs!$A53,'Base de données'!$B:$B,"<"&(Indicateurs!$B53+1)) -> 0 | I53: =SUMIFS('Base de données'!$D:$D,'Base de données'!$F:$F,H$31,'Base de données'!$B:$B,">="&Indicateurs!$A53,'Base de données'!$B:$B,"<"&(Indicateurs!$B53+1)) -> 0 | J53: =_xlfn.XLOOKUP(H$31,article,tpsTheorique,0,0)*SUM($H53:$I53)/3600 -> 0 | K53: =SUMIFS('Base de données'!$G:$G,'Base de données'!$F:$F,H$31,'Base de données'!$B:$B,">="&Indicateurs!$A53,'Base de données'!$B:$B,"<"&(Indicateurs!$B53+1))/3600 -> 0 | L53: =_xlfn.XLOOKUP(H$31,article,objectifHebdo,0,0)*Paramètres!$K$2 -> 9500 | M53: =SUMIFS('Base de données'!$C:$C,'Base de données'!$F:$F,M$31,'Base de données'!$B:$B,">="&Indicateurs!$A53,'Base de données'!$B:$B,"<"&(Indicateurs!$B53+1)) -> 0 | N53: =SUMIFS('Base de données'!$D:$D,'Base de données'!$F:$F,M$31,'Base de données'!$B:$B,">="&Indicateurs!$A53,'Base de données'!$B:$B,"<"&(Indicateurs!$B53+1)) -> 0 | O53: =_xlfn.XLOOKUP(M$31,article,tpsTheorique,0,0)*SUM($M53:$N53)/3600 -> 0 | P53: =SUMIFS('Base de données'!$G:$G,'Base de données'!$F:$F,M$31,'Base de données'!$B:$B,">="&Indicateurs!$A53,'Base de données'!$B:$B,"<"&(Indicateurs!$B53+1))/3600 -> 0 | Q53: =_xlfn.XLOOKUP(M$31,article,objectifHebdo,0,0)*Paramètres!$K$2 -> 17000 | R53: =SUMIFS('Base de données'!$C:$C,'Base de données'!$F:$F,R$31,'Base de données'!$B:$B,">="&Indicateurs!$A53,'Base de données'!$B:$B,"<"&(Indicateurs!$B53+1)) -> 0 | S53: =SUMIFS('Base de données'!$D:$D,'Base de données'!$F:$F,R$31,'Base de données'!$B:$B,">="&Indicateurs!$A53,'Base de données'!$B:$B,"<"&(Indicateurs!$B53+1)) -> 0 | T53: =_xlfn.XLOOKUP(R$31,article,tpsTheorique,0,0)*SUM($R53:$S53)/3600 -> 0 | U53: =SUMIFS('Base de données'!$G:$G,'Base de données'!$F:$F,R$31,'Base de données'!$B:$B,">="&Indicateurs!$A53,'Base de données'!$B:$B,"<"&(Indicateurs!$B53+1))/3600 -> 0 | V53: =_xlfn.XLOOKUP(R$31,article,objectifHebdo,0,0)*Paramètres!$K$2 -> 17500 | W53: =SUMIFS('Base de données'!$C:$C,'Base de données'!$F:$F,W$31,'Base de données'!$B:$B,">="&Indicateurs!$A53,'Base de données'!$B:$B,"<"&(Indicateurs!$B53+1)) -> 0 | X53: =SUMIFS('Base de données'!$D:$D,'Base de données'!$F:$F,W$31,'Base de données'!$B:$B,">="&Indicateurs!$A53,'Base de données'!$B:$B,"<"&(Indicateurs!$B53+1)) -> 0 | Y53: =_xlfn.XLOOKUP(W$31,article,tpsTheorique,0,0)*SUM($W53:$X53)/3600 -> 0 | Z53: =SUMIFS('Base de données'!$G:$G,'Base de données'!$F:$F,W$31,'Base de données'!$B:$B,">="&Indicateurs!$A53,'Base de données'!$B:$B,"<"&(Indicateurs!$B53+1))/3600 -> 0 | AA53: =_xlfn.XLOOKUP(W$31,article,objectifHebdo,0,0)*Paramètres!$K$2 -> 8500
A54: =IF(COUNTA($A$32:A53)<Paramètres!$K$3,Indicateurs!A53+7,"") ->  | F54: 0 | H54: =SUMIFS('Base de données'!$C:$C,'Base de données'!$F:$F,H$31,'Base de données'!$B:$B,">="&Indicateurs!$A54,'Base de données'!$B:$B,"<"&(Indicateurs!$B54+1)) -> 0 | I54: =SUMIFS('Base de données'!$D:$D,'Base de données'!$F:$F,H$31,'Base de données'!$B:$B,">="&Indicateurs!$A54,'Base de données'!$B:$B,"<"&(Indicateurs!$B54+1)) -> 0 | J54: =_xlfn.XLOOKUP(H$31,article,tpsTheorique,0,0)*SUM($H54:$I54)/3600 -> 0 | K54: =SUMIFS('Base de données'!$G:$G,'Base de données'!$F:$F,H$31,'Base de données'!$B:$B,">="&Indicateurs!$A54,'Base de données'!$B:$B,"<"&(Indicateurs!$B54+1))/3600 -> 0 | L54: =_xlfn.XLOOKUP(H$31,article,objectifHebdo,0,0)*Paramètres!$K$2 -> 9500 | M54: =SUMIFS('Base de données'!$C:$C,'Base de données'!$F:$F,M$31,'Base de données'!$B:$B,">="&Indicateurs!$A54,'Base de données'!$B:$B,"<"&(Indicateurs!$B54+1)) -> 0 | N54: =SUMIFS('Base de données'!$D:$D,'Base de données'!$F:$F,M$31,'Base de données'!$B:$B,">="&Indicateurs!$A54,'Base de données'!$B:$B,"<"&(Indicateurs!$B54+1)) -> 0 | O54: =_xlfn.XLOOKUP(M$31,article,tpsTheorique,0,0)*SUM($M54:$N54)/3600 -> 0 | P54: =SUMIFS('Base de données'!$G:$G,'Base de données'!$F:$F,M$31,'Base de données'!$B:$B,">="&Indicateurs!$A54,'Base de données'!$B:$B,"<"&(Indicateurs!$B54+1))/3600 -> 0 | Q54: =_xlfn.XLOOKUP(M$31,article,objectifHebdo,0,0)*Paramètres!$K$2 -> 17000 | R54: =SUMIFS('Base de données'!$C:$C,'Base de données'!$F:$F,R$31,'Base de données'!$B:$B,">="&Indicateurs!$A54,'Base de données'!$B:$B,"<"&(Indicateurs!$B54+1)) -> 0 | S54: =SUMIFS('Base de données'!$D:$D,'Base de données'!$F:$F,R$31,'Base de données'!$B:$B,">="&Indicateurs!$A54,'Base de données'!$B:$B,"<"&(Indicateurs!$B54+1)) -> 0 | T54: =_xlfn.XLOOKUP(R$31,article,tpsTheorique,0,0)*SUM($R54:$S54)/3600 -> 0 | U54: =SUMIFS('Base de données'!$G:$G,'Base de données'!$F:$F,R$31,'Base de données'!$B:$B,">="&Indicateurs!$A54,'Base de données'!$B:$B,"<"&(Indicateurs!$B54+1))/3600 -> 0 | V54: =_xlfn.XLOOKUP(R$31,article,objectifHebdo,0,0)*Paramètres!$K$2 -> 17500 | W54: =SUMIFS('Base de données'!$C:$C,'Base de données'!$F:$F,W$31,'Base de données'!$B:$B,">="&Indicateurs!$A54,'Base de données'!$B:$B,"<"&(Indicateurs!$B54+1)) -> 0 | X54: =SUMIFS('Base de données'!$D:$D,'Base de données'!$F:$F,W$31,'Base de données'!$B:$B,">="&Indicateurs!$A54,'Base de données'!$B:$B,"<"&(Indicateurs!$B54+1)) -> 0 | Y54: =_xlfn.XLOOKUP(W$31,article,tpsTheorique,0,0)*SUM($W54:$X54)/3600 -> 0 | Z54: =SUMIFS('Base de données'!$G:$G,'Base de données'!$F:$F,W$31,'Base de données'!$B:$B,">="&Indicateurs!$A54,'Base de données'!$B:$B,"<"&(Indicateurs!$B54+1))/3600 -> 0 | AA54: =_xlfn.XLOOKUP(W$31,article,objectifHebdo,0,0)*Paramètres!$K$2 -> 8500
A55: =IF(COUNTA($A$32:A54)<Paramètres!$K$3,Indicateurs!A54+7,"") ->  | F55: 0 | H55: =SUMIFS('Base de données'!$C:$C,'Base de données'!$F:$F,H$31,'Base de données'!$B:$B,">="&Indicateurs!$A55,'Base de données'!$B:$B,"<"&(Indicateurs!$B55+1)) -> 0 | I55: =SUMIFS('Base de données'!$D:$D,'Base de données'!$F:$F,H$31,'Base de données'!$B:$B,">="&Indicateurs!$A55,'Base de données'!$B:$B,"<"&(Indicateurs!$B55+1)) -> 0 | J55: =_xlfn.XLOOKUP(H$31,article,tpsTheorique,0,0)*SUM($H55:$I55)/3600 -> 0 | K55: =SUMIFS('Base de données'!$G:$G,'Base de données'!$F:$F,H$31,'Base de données'!$B:$B,">="&Indicateurs!$A55,'Base de données'!$B:$B,"<"&(Indicateurs!$B55+1))/3600 -> 0 | L55: =_xlfn.XLOOKUP(H$31,article,objectifHebdo,0,0)*Paramètres!$K$2 -> 9500 | M55: =SUMIFS('Base de données'!$C:$C,'Base de données'!$F:$F,M$31,'Base de données'!$B:$B,">="&Indicateurs!$A55,'Base de données'!$B:$B,"<"&(Indicateurs!$B55+1)) -> 0 | N55: =SUMIFS('Base de données'!$D:$D,'Base de données'!$F:$F,M$31,'Base de données'!$B:$B,">="&Indicateurs!$A55,'Base de données'!$B:$B,"<"&(Indicateurs!$B55+1)) -> 0 | O55: =_xlfn.XLOOKUP(M$31,article,tpsTheorique,0,0)*SUM($M55:$N55)/3600 -> 0 | P55: =SUMIFS('Base de données'!$G:$G,'Base de données'!$F:$F,M$31,'Base de données'!$B:$B,">="&Indicateurs!$A55,'Base de données'!$B:$B,"<"&(Indicateurs!$B55+1))/3600 -> 0 | Q55: =_xlfn.XLOOKUP(M$31,article,objectifHebdo,0,0)*Paramètres!$K$2 -> 17000 | R55: =SUMIFS('Base de données'!$C:$C,'Base de données'!$F:$F,R$31,'Base de données'!$B:$B,">="&Indicateurs!$A55,'Base de données'!$B:$B,"<"&(Indicateurs!$B55+1)) -> 0 | S55: =SUMIFS('Base de données'!$D:$D,'Base de données'!$F:$F,R$31,'Base de données'!$B:$B,">="&Indicateurs!$A55,'Base de données'!$B:$B,"<"&(Indicateurs!$B55+1)) -> 0 | T55: =_xlfn.XLOOKUP(R$31,article,tpsTheorique,0,0)*SUM($R55:$S55)/3600 -> 0 | U55: =SUMIFS('Base de données'!$G:$G,'Base de données'!$F:$F,R$31,'Base de données'!$B:$B,">="&Indicateurs!$A55,'Base de données'!$B:$B,"<"&(Indicateurs!$B55+1))/3600 -> 0 | V55: =_xlfn.XLOOKUP(R$31,article,objectifHebdo,0,0)*Paramètres!$K$2 -> 17500 | W55: =SUMIFS('Base de données'!$C:$C,'Base de données'!$F:$F,W$31,'Base de données'!$B:$B,">="&Indicateurs!$A55,'Base de données'!$B:$B,"<"&(Indicateurs!$B55+1)) -> 0 | X55: =SUMIFS('Base de données'!$D:$D,'Base de données'!$F:$F,W$31,'Base de données'!$B:$B,">="&Indicateurs!$A55,'Base de données'!$B:$B,"<"&(Indicateurs!$B55+1)) -> 0 | Y55: =_xlfn.XLOOKUP(W$31,article,tpsTheorique,0,0)*SUM($W55:$X55)/3600 -> 0 | Z55: =SUMIFS('Base de données'!$G:$G,'Base de données'!$F:$F,W$31,'Base de données'!$B:$B,">="&Indicateurs!$A55,'Base de données'!$B:$B,"<"&(Indicateurs!$B55+1))/3600 -> 0 | AA55: =_xlfn.XLOOKUP(W$31,article,objectifHebdo,0,0)*Paramètres!$K$2 -> 8500
A56: =IF(COUNTA($A$32:A55)<Paramètres!$K$3,Indicateurs!A55+7,"") ->  | F56: 0 | H56: =SUMIFS('Base de données'!$C:$C,'Base de données'!$F:$F,H$31,'Base de données'!$B:$B,">="&Indicateurs!$A56,'Base de données'!$B:$B,"<"&(Indicateurs!$B56+1)) -> 0 | I56: =SUMIFS('Base de données'!$D:$D,'Base de données'!$F:$F,H$31,'Base de données'!$B:$B,">="&Indicateurs!$A56,'Base de données'!$B:$B,"<"&(Indicateurs!$B56+1)) -> 0 | J56: =_xlfn.XLOOKUP(H$31,article,tpsTheorique,0,0)*SUM($H56:$I56)/3600 -> 0 | K56: =SUMIFS('Base de données'!$G:$G,'Base de données'!$F:$F,H$31,'Base de données'!$B:$B,">="&Indicateurs!$A56,'Base de données'!$B:$B,"<"&(Indicateurs!$B56+1))/3600 -> 0 | L56: =_xlfn.XLOOKUP(H$31,article,objectifHebdo,0,0)*Paramètres!$K$2 -> 9500 | M56: =SUMIFS('Base de données'!$C:$C,'Base de données'!$F:$F,M$31,'Base de données'!$B:$B,">="&Indicateurs!$A56,'Base de données'!$B:$B,"<"&(Indicateurs!$B56+1)) -> 0 | N56: =SUMIFS('Base de données'!$D:$D,'Base de données'!$F:$F,M$31,'Base de données'!$B:$B,">="&Indicateurs!$A56,'Base de données'!$B:$B,"<"&(Indicateurs!$B56+1)) -> 0 | O56: =_xlfn.XLOOKUP(M$31,article,tpsTheorique,0,0)*SUM($M56:$N56)/3600 -> 0 | P56: =SUMIFS('Base de données'!$G:$G,'Base de données'!$F:$F,M$31,'Base de données'!$B:$B,">="&Indicateurs!$A56,'Base de données'!$B:$B,"<"&(Indicateurs!$B56+1))/3600 -> 0 | Q56: =_xlfn.XLOOKUP(M$31,article,objectifHebdo,0,0)*Paramètres!$K$2 -> 17000 | R56: =SUMIFS('Base de données'!$C:$C,'Base de données'!$F:$F,R$31,'Base de données'!$B:$B,">="&Indicateurs!$A56,'Base de données'!$B:$B,"<"&(Indicateurs!$B56+1)) -> 0 | S56: =SUMIFS('Base de données'!$D:$D,'Base de données'!$F:$F,R$31,'Base de données'!$B:$B,">="&Indicateurs!$A56,'Base de données'!$B:$B,"<"&(Indicateurs!$B56+1)) -> 0 | T56: =_xlfn.XLOOKUP(R$31,article,tpsTheorique,0,0)*SUM($R56:$S56)/3600 -> 0 | U56: =SUMIFS('Base de données'!$G:$G,'Base de données'!$F:$F,R$31,'Base de données'!$B:$B,">="&Indicateurs!$A56,'Base de données'!$B:$B,"<"&(Indicateurs!$B56+1))/3600 -> 0 | V56: =_xlfn.XLOOKUP(R$31,article,objectifHebdo,0,0)*Paramètres!$K$2 -> 17500 | W56: =SUMIFS('Base de données'!$C:$C,'Base de données'!$F:$F,W$31,'Base de données'!$B:$B,">="&Indicateurs!$A56,'Base de données'!$B:$B,"<"&(Indicateurs!$B56+1)) -> 0 | X56: =SUMIFS('Base de données'!$D:$D,'Base de données'!$F:$F,W$31,'Base de données'!$B:$B,">="&Indicateurs!$A56,'Base de données'!$B:$B,"<"&(Indicateurs!$B56+1)) -> 0 | Y56: =_xlfn.XLOOKUP(W$31,article,tpsTheorique,0,0)*SUM($W56:$X56)/3600 -> 0 | Z56: =SUMIFS('Base de données'!$G:$G,'Base de données'!$F:$F,W$31,'Base de données'!$B:$B,">="&Indicateurs!$A56,'Base de données'!$B:$B,"<"&(Indicateurs!$B56+1))/3600 -> 0 | AA56: =_xlfn.XLOOKUP(W$31,article,objectifHebdo,0,0)*Paramètres!$K$2 -> 8500
A57: =IF(COUNTA($A$32:A56)<Paramètres!$K$3,Indicateurs!A56+7,"") ->  | F57: 0 | H57: =SUMIFS('Base de données'!$C:$C,'Base de données'!$F:$F,H$31,'Base de données'!$B:$B,">="&Indicateurs!$A57,'Base de données'!$B:$B,"<"&(Indicateurs!$B57+1)) -> 0 | I57: =SUMIFS('Base de données'!$D:$D,'Base de données'!$F:$F,H$31,'Base de données'!$B:$B,">="&Indicateurs!$A57,'Base de données'!$B:$B,"<"&(Indicateurs!$B57+1)) -> 0 | J57: =_xlfn.XLOOKUP(H$31,article,tpsTheorique,0,0)*SUM($H57:$I57)/3600 -> 0 | K57: =SUMIFS('Base de données'!$G:$G,'Base de données'!$F:$F,H$31,'Base de données'!$B:$B,">="&Indicateurs!$A57,'Base de données'!$B:$B,"<"&(Indicateurs!$B57+1))/3600 -> 0 | L57: =_xlfn.XLOOKUP(H$31,article,objectifHebdo,0,0)*Paramètres!$K$2 -> 9500 | M57: =SUMIFS('Base de données'!$C:$C,'Base de données'!$F:$F,M$31,'Base de données'!$B:$B,">="&Indicateurs!$A57,'Base de données'!$B:$B,"<"&(Indicateurs!$B57+1)) -> 0 | N57: =SUMIFS('Base de données'!$D:$D,'Base de données'!$F:$F,M$31,'Base de données'!$B:$B,">="&Indicateurs!$A57,'Base de données'!$B:$B,"<"&(Indicateurs!$B57+1)) -> 0 | O57: =_xlfn.XLOOKUP(M$31,article,tpsTheorique,0,0)*SUM($M57:$N57)/3600 -> 0 | P57: =SUMIFS('Base de données'!$G:$G,'Base de données'!$F:$F,M$31,'Base de données'!$B:$B,">="&Indicateurs!$A57,'Base de données'!$B:$B,"<"&(Indicateurs!$B57+1))/3600 -> 0 | Q57: =_xlfn.XLOOKUP(M$31,article,objectifHebdo,0,0)*Paramètres!$K$2 -> 17000 | R57: =SUMIFS('Base de données'!$C:$C,'Base de données'!$F:$F,R$31,'Base de données'!$B:$B,">="&Indicateurs!$A57,'Base de données'!$B:$B,"<"&(Indicateurs!$B57+1)) -> 0 | S57: =SUMIFS('Base de données'!$D:$D,'Base de données'!$F:$F,R$31,'Base de données'!$B:$B,">="&Indicateurs!$A57,'Base de données'!$B:$B,"<"&(Indicateurs!$B57+1)) -> 0 | T57: =_xlfn.XLOOKUP(R$31,article,tpsTheorique,0,0)*SUM($R57:$S57)/3600 -> 0 | U57: =SUMIFS('Base de données'!$G:$G,'Base de données'!$F:$F,R$31,'Base de données'!$B:$B,">="&Indicateurs!$A57,'Base de données'!$B:$B,"<"&(Indicateurs!$B57+1))/3600 -> 0 | V57: =_xlfn.XLOOKUP(R$31,article,objectifHebdo,0,0)*Paramètres!$K$2 -> 17500 | W57: =SUMIFS('Base de données'!$C:$C,'Base de données'!$F:$F,W$31,'Base de données'!$B:$B,">="&Indicateurs!$A57,'Base de données'!$B:$B,"<"&(Indicateurs!$B57+1)) -> 0 | X57: =SUMIFS('Base de données'!$D:$D,'Base de données'!$F:$F,W$31,'Base de données'!$B:$B,">="&Indicateurs!$A57,'Base de données'!$B:$B,"<"&(Indicateurs!$B57+1)) -> 0 | Y57: =_xlfn.XLOOKUP(W$31,article,tpsTheorique,0,0)*SUM($W57:$X57)/3600 -> 0 | Z57: =SUMIFS('Base de données'!$G:$G,'Base de données'!$F:$F,W$31,'Base de données'!$B:$B,">="&Indicateurs!$A57,'Base de données'!$B:$B,"<"&(Indicateurs!$B57+1))/3600 -> 0 | AA57: =_xlfn.XLOOKUP(W$31,article,objectifHebdo,0,0)*Paramètres!$K$2 -> 8500
A58: =IF(COUNTA($A$32:A57)<Paramètres!$K$3,Indicateurs!A57+7,"") ->  | F58: 0 | H58: =SUMIFS('Base de données'!$C:$C,'Base de données'!$F:$F,H$31,'Base de données'!$B:$B,">="&Indicateurs!$A58,'Base de données'!$B:$B,"<"&(Indicateurs!$B58+1)) -> 0 | I58: =SUMIFS('Base de données'!$D:$D,'Base de données'!$F:$F,H$31,'Base de données'!$B:$B,">="&Indicateurs!$A58,'Base de données'!$B:$B,"<"&(Indicateurs!$B58+1)) -> 0 | J58: =_xlfn.XLOOKUP(H$31,article,tpsTheorique,0,0)*SUM($H58:$I58)/3600 -> 0 | K58: =SUMIFS('Base de données'!$G:$G,'Base de données'!$F:$F,H$31,'Base de données'!$B:$B,">="&Indicateurs!$A58,'Base de données'!$B:$B,"<"&(Indicateurs!$B58+1))/3600 -> 0 | L58: =_xlfn.XLOOKUP(H$31,article,objectifHebdo,0,0)*Paramètres!$K$2 -> 9500 | M58: =SUMIFS('Base de données'!$C:$C,'Base de données'!$F:$F,M$31,'Base de données'!$B:$B,">="&Indicateurs!$A58,'Base de données'!$B:$B,"<"&(Indicateurs!$B58+1)) -> 0 | N58: =SUMIFS('Base de données'!$D:$D,'Base de données'!$F:$F,M$31,'Base de données'!$B:$B,">="&Indicateurs!$A58,'Base de données'!$B:$B,"<"&(Indicateurs!$B58+1)) -> 0 | O58: =_xlfn.XLOOKUP(M$31,article,tpsTheorique,0,0)*SUM($M58:$N58)/3600 -> 0 | P58: =SUMIFS('Base de données'!$G:$G,'Base de données'!$F:$F,M$31,'Base de données'!$B:$B,">="&Indicateurs!$A58,'Base de données'!$B:$B,"<"&(Indicateurs!$B58+1))/3600 -> 0 | Q58: =_xlfn.XLOOKUP(M$31,article,objectifHebdo,0,0)*Paramètres!$K$2 -> 17000 | R58: =SUMIFS('Base de données'!$C:$C,'Base de données'!$F:$F,R$31,'Base de données'!$B:$B,">="&Indicateurs!$A58,'Base de données'!$B:$B,"<"&(Indicateurs!$B58+1)) -> 0 | S58: =SUMIFS('Base de données'!$D:$D,'Base de données'!$F:$F,R$31,'Base de données'!$B:$B,">="&Indicateurs!$A58,'Base de données'!$B:$B,"<"&(Indicateurs!$B58+1)) -> 0 | T58: =_xlfn.XLOOKUP(R$31,article,tpsTheorique,0,0)*SUM($R58:$S58)/3600 -> 0 | U58: =SUMIFS('Base de données'!$G:$G,'Base de données'!$F:$F,R$31,'Base de données'!$B:$B,">="&Indicateurs!$A58,'Base de données'!$B:$B,"<"&(Indicateurs!$B58+1))/3600 -> 0 | V58: =_xlfn.XLOOKUP(R$31,article,objectifHebdo,0,0)*Paramètres!$K$2 -> 17500 | W58: =SUMIFS('Base de données'!$C:$C,'Base de données'!$F:$F,W$31,'Base de données'!$B:$B,">="&Indicateurs!$A58,'Base de données'!$B:$B,"<"&(Indicateurs!$B58+1)) -> 0 | X58: =SUMIFS('Base de données'!$D:$D,'Base de données'!$F:$F,W$31,'Base de données'!$B:$B,">="&Indicateurs!$A58,'Base de données'!$B:$B,"<"&(Indicateurs!$B58+1)) -> 0 | Y58: =_xlfn.XLOOKUP(W$31,article,tpsTheorique,0,0)*SUM($W58:$X58)/3600 -> 0 | Z58: =SUMIFS('Base de données'!$G:$G,'Base de données'!$F:$F,W$31,'Base de données'!$B:$B,">="&Indicateurs!$A58,'Base de données'!$B:$B,"<"&(Indicateurs!$B58+1))/3600 -> 0 | AA58: =_xlfn.XLOOKUP(W$31,article,objectifHebdo,0,0)*Paramètres!$K$2 -> 8500
A59: =IF(COUNTA($A$32:A58)<Paramètres!$K$3,Indicateurs!A58+7,"") ->  | F59: 0 | H59: =SUMIFS('Base de données'!$C:$C,'Base de données'!$F:$F,H$31,'Base de données'!$B:$B,">="&Indicateurs!$A59,'Base de données'!$B:$B,"<"&(Indicateurs!$B59+1)) -> 0 | I59: =SUMIFS('Base de données'!$D:$D,'Base de données'!$F:$F,H$31,'Base de données'!$B:$B,">="&Indicateurs!$A59,'Base de données'!$B:$B,"<"&(Indicateurs!$B59+1)) -> 0 | J59: =_xlfn.XLOOKUP(H$31,article,tpsTheorique,0,0)*SUM($H59:$I59)/3600 -> 0 | K59: =SUMIFS('Base de données'!$G:$G,'Base de données'!$F:$F,H$31,'Base de données'!$B:$B,">="&Indicateurs!$A59,'Base de données'!$B:$B,"<"&(Indicateurs!$B59+1))/3600 -> 0 | L59: =_xlfn.XLOOKUP(H$31,article,objectifHebdo,0,0)*Paramètres!$K$2 -> 9500 | M59: =SUMIFS('Base de données'!$C:$C,'Base de données'!$F:$F,M$31,'Base de données'!$B:$B,">="&Indicateurs!$A59,'Base de données'!$B:$B,"<"&(Indicateurs!$B59+1)) -> 0 | N59: =SUMIFS('Base de données'!$D:$D,'Base de données'!$F:$F,M$31,'Base de données'!$B:$B,">="&Indicateurs!$A59,'Base de données'!$B:$B,"<"&(Indicateurs!$B59+1)) -> 0 | O59: =_xlfn.XLOOKUP(M$31,article,tpsTheorique,0,0)*SUM($M59:$N59)/3600 -> 0 | P59: =SUMIFS('Base de données'!$G:$G,'Base de données'!$F:$F,M$31,'Base de données'!$B:$B,">="&Indicateurs!$A59,'Base de données'!$B:$B,"<"&(Indicateurs!$B59+1))/3600 -> 0 | Q59: =_xlfn.XLOOKUP(M$31,article,objectifHebdo,0,0)*Paramètres!$K$2 -> 17000 | R59: =SUMIFS('Base de données'!$C:$C,'Base de données'!$F:$F,R$31,'Base de données'!$B:$B,">="&Indicateurs!$A59,'Base de données'!$B:$B,"<"&(Indicateurs!$B59+1)) -> 0 | S59: =SUMIFS('Base de données'!$D:$D,'Base de données'!$F:$F,R$31,'Base de données'!$B:$B,">="&Indicateurs!$A59,'Base de données'!$B:$B,"<"&(Indicateurs!$B59+1)) -> 0 | T59: =_xlfn.XLOOKUP(R$31,article,tpsTheorique,0,0)*SUM($R59:$S59)/3600 -> 0 | U59: =SUMIFS('Base de données'!$G:$G,'Base de données'!$F:$F,R$31,'Base de données'!$B:$B,">="&Indicateurs!$A59,'Base de données'!$B:$B,"<"&(Indicateurs!$B59+1))/3600 -> 0 | V59: =_xlfn.XLOOKUP(R$31,article,objectifHebdo,0,0)*Paramètres!$K$2 -> 17500 | W59: =SUMIFS('Base de données'!$C:$C,'Base de données'!$F:$F,W$31,'Base de données'!$B:$B,">="&Indicateurs!$A59,'Base de données'!$B:$B,"<"&(Indicateurs!$B59+1)) -> 0 | X59: =SUMIFS('Base de données'!$D:$D,'Base de données'!$F:$F,W$31,'Base de données'!$B:$B,">="&Indicateurs!$A59,'Base de données'!$B:$B,"<"&(Indicateurs!$B59+1)) -> 0 | Y59: =_xlfn.XLOOKUP(W$31,article,tpsTheorique,0,0)*SUM($W59:$X59)/3600 -> 0 | Z59: =SUMIFS('Base de données'!$G:$G,'Base de données'!$F:$F,W$31,'Base de données'!$B:$B,">="&Indicateurs!$A59,'Base de données'!$B:$B,"<"&(Indicateurs!$B59+1))/3600 -> 0 | AA59: =_xlfn.XLOOKUP(W$31,article,objectifHebdo,0,0)*Paramètres!$K$2 -> 8500
A60: =IF(COUNTA($A$32:A59)<Paramètres!$K$3,Indicateurs!A59+7,"") ->  | F60: 0 | H60: =SUMIFS('Base de données'!$C:$C,'Base de données'!$F:$F,H$31,'Base de données'!$B:$B,">="&Indicateurs!$A60,'Base de données'!$B:$B,"<"&(Indicateurs!$B60+1)) -> 0 | I60: =SUMIFS('Base de données'!$D:$D,'Base de données'!$F:$F,H$31,'Base de données'!$B:$B,">="&Indicateurs!$A60,'Base de données'!$B:$B,"<"&(Indicateurs!$B60+1)) -> 0 | J60: =_xlfn.XLOOKUP(H$31,article,tpsTheorique,0,0)*SUM($H60:$I60)/3600 -> 0 | K60: =SUMIFS('Base de données'!$G:$G,'Base de données'!$F:$F,H$31,'Base de données'!$B:$B,">="&Indicateurs!$A60,'Base de données'!$B:$B,"<"&(Indicateurs!$B60+1))/3600 -> 0 | L60: =_xlfn.XLOOKUP(H$31,article,objectifHebdo,0,0)*Paramètres!$K$2 -> 9500 | M60: =SUMIFS('Base de données'!$C:$C,'Base de données'!$F:$F,M$31,'Base de données'!$B:$B,">="&Indicateurs!$A60,'Base de données'!$B:$B,"<"&(Indicateurs!$B60+1)) -> 0 | N60: =SUMIFS('Base de données'!$D:$D,'Base de données'!$F:$F,M$31,'Base de données'!$B:$B,">="&Indicateurs!$A60,'Base de données'!$B:$B,"<"&(Indicateurs!$B60+1)) -> 0 | O60: =_xlfn.XLOOKUP(M$31,article,tpsTheorique,0,0)*SUM($M60:$N60)/3600 -> 0 | P60: =SUMIFS('Base de données'!$G:$G,'Base de données'!$F:$F,M$31,'Base de données'!$B:$B,">="&Indicateurs!$A60,'Base de données'!$B:$B,"<"&(Indicateurs!$B60+1))/3600 -> 0 | Q60: =_xlfn.XLOOKUP(M$31,article,objectifHebdo,0,0)*Paramètres!$K$2 -> 17000 | R60: =SUMIFS('Base de données'!$C:$C,'Base de données'!$F:$F,R$31,'Base de données'!$B:$B,">="&Indicateurs!$A60,'Base de données'!$B:$B,"<"&(Indicateurs!$B60+1)) -> 0 | S60: =SUMIFS('Base de données'!$D:$D,'Base de données'!$F:$F,R$31,'Base de données'!$B:$B,">="&Indicateurs!$A60,'Base de données'!$B:$B,"<"&(Indicateurs!$B60+1)) -> 0 | T60: =_xlfn.XLOOKUP(R$31,article,tpsTheorique,0,0)*SUM($R60:$S60)/3600 -> 0 | U60: =SUMIFS('Base de données'!$G:$G,'Base de données'!$F:$F,R$31,'Base de données'!$B:$B,">="&Indicateurs!$A60,'Base de données'!$B:$B,"<"&(Indicateurs!$B60+1))/3600 -> 0 | V60: =_xlfn.XLOOKUP(R$31,article,objectifHebdo,0,0)*Paramètres!$K$2 -> 17500 | W60: =SUMIFS('Base de données'!$C:$C,'Base de données'!$F:$F,W$31,'Base de données'!$B:$B,">="&Indicateurs!$A60,'Base de données'!$B:$B,"<"&(Indicateurs!$B60+1)) -> 0 | X60: =SUMIFS('Base de données'!$D:$D,'Base de données'!$F:$F,W$31,'Base de données'!$B:$B,">="&Indicateurs!$A60,'Base de données'!$B:$B,"<"&(Indicateurs!$B60+1)) -> 0 | Y60: =_xlfn.XLOOKUP(W$31,article,tpsTheorique,0,0)*SUM($W60:$X60)/3600 -> 0 | Z60: =SUMIFS('Base de données'!$G:$G,'Base de données'!$F:$F,W$31,'Base de données'!$B:$B,">="&Indicateurs!$A60,'Base de données'!$B:$B,"<"&(Indicateurs!$B60+1))/3600 -> 0 | AA60: =_xlfn.XLOOKUP(W$31,article,objectifHebdo,0,0)*Paramètres!$K$2 -> 8500
A61: =IF(COUNTA($A$32:A60)<Paramètres!$K$3,Indicateurs!A60+7,"") ->  | F61: 0 | H61: =SUMIFS('Base de données'!$C:$C,'Base de données'!$F:$F,H$31,'Base de données'!$B:$B,">="&Indicateurs!$A61,'Base de données'!$B:$B,"<"&(Indicateurs!$B61+1)) -> 0 | I61: =SUMIFS('Base de données'!$D:$D,'Base de données'!$F:$F,H$31,'Base de données'!$B:$B,">="&Indicateurs!$A61,'Base de données'!$B:$B,"<"&(Indicateurs!$B61+1)) -> 0 | J61: =_xlfn.XLOOKUP(H$31,article,tpsTheorique,0,0)*SUM($H61:$I61)/3600 -> 0 | K61: =SUMIFS('Base de données'!$G:$G,'Base de données'!$F:$F,H$31,'Base de données'!$B:$B,">="&Indicateurs!$A61,'Base de données'!$B:$B,"<"&(Indicateurs!$B61+1))/3600 -> 0 | L61: =_xlfn.XLOOKUP(H$31,article,objectifHebdo,0,0)*Paramètres!$K$2 -> 9500 | M61: =SUMIFS('Base de données'!$C:$C,'Base de données'!$F:$F,M$31,'Base de données'!$B:$B,">="&Indicateurs!$A61,'Base de données'!$B:$B,"<"&(Indicateurs!$B61+1)) -> 0 | N61: =SUMIFS('Base de données'!$D:$D,'Base de données'!$F:$F,M$31,'Base de données'!$B:$B,">="&Indicateurs!$A61,'Base de données'!$B:$B,"<"&(Indicateurs!$B61+1)) -> 0 | O61: =_xlfn.XLOOKUP(M$31,article,tpsTheorique,0,0)*SUM($M61:$N61)/3600 -> 0 | P61: =SUMIFS('Base de données'!$G:$G,'Base de données'!$F:$F,M$31,'Base de données'!$B:$B,">="&Indicateurs!$A61,'Base de données'!$B:$B,"<"&(Indicateurs!$B61+1))/3600 -> 0 | Q61: =_xlfn.XLOOKUP(M$31,article,objectifHebdo,0,0)*Paramètres!$K$2 -> 17000 | R61: =SUMIFS('Base de données'!$C:$C,'Base de données'!$F:$F,R$31,'Base de données'!$B:$B,">="&Indicateurs!$A61,'Base de données'!$B:$B,"<"&(Indicateurs!$B61+1)) -> 0 | S61: =SUMIFS('Base de données'!$D:$D,'Base de données'!$F:$F,R$31,'Base de données'!$B:$B,">="&Indicateurs!$A61,'Base de données'!$B:$B,"<"&(Indicateurs!$B61+1)) -> 0 | T61: =_xlfn.XLOOKUP(R$31,article,tpsTheorique,0,0)*SUM($R61:$S61)/3600 -> 0 | U61: =SUMIFS('Base de données'!$G:$G,'Base de données'!$F:$F,R$31,'Base de données'!$B:$B,">="&Indicateurs!$A61,'Base de données'!$B:$B,"<"&(Indicateurs!$B61+1))/3600 -> 0 | V61: =_xlfn.XLOOKUP(R$31,article,objectifHebdo,0,0)*Paramètres!$K$2 -> 17500 | W61: =SUMIFS('Base de données'!$C:$C,'Base de données'!$F:$F,W$31,'Base de données'!$B:$B,">="&Indicateurs!$A61,'Base de données'!$B:$B,"<"&(Indicateurs!$B61+1)) -> 0 | X61: =SUMIFS('Base de données'!$D:$D,'Base de données'!$F:$F,W$31,'Base de données'!$B:$B,">="&Indicateurs!$A61,'Base de données'!$B:$B,"<"&(Indicateurs!$B61+1)) -> 0 | Y61: =_xlfn.XLOOKUP(W$31,article,tpsTheorique,0,0)*SUM($W61:$X61)/3600 -> 0 | Z61: =SUMIFS('Base de données'!$G:$G,'Base de données'!$F:$F,W$31,'Base de données'!$B:$B,">="&Indicateurs!$A61,'Base de données'!$B:$B,"<"&(Indicateurs!$B61+1))/3600 -> 0 | AA61: =_xlfn.XLOOKUP(W$31,article,objectifHebdo,0,0)*Paramètres!$K$2 -> 8500
A62: =IF(COUNTA($A$32:A61)<Paramètres!$K$3,Indicateurs!A61+7,"") ->  | F62: 0 | H62: =SUMIFS('Base de données'!$C:$C,'Base de données'!$F:$F,H$31,'Base de données'!$B:$B,">="&Indicateurs!$A62,'Base de données'!$B:$B,"<"&(Indicateurs!$B62+1)) -> 0 | I62: =SUMIFS('Base de données'!$D:$D,'Base de données'!$F:$F,H$31,'Base de données'!$B:$B,">="&Indicateurs!$A62,'Base de données'!$B:$B,"<"&(Indicateurs!$B62+1)) -> 0 | J62: =_xlfn.XLOOKUP(H$31,article,tpsTheorique,0,0)*SUM($H62:$I62)/3600 -> 0 | K62: =SUMIFS('Base de données'!$G:$G,'Base de données'!$F:$F,H$31,'Base de données'!$B:$B,">="&Indicateurs!$A62,'Base de données'!$B:$B,"<"&(Indicateurs!$B62+1))/3600 -> 0 | L62: =_xlfn.XLOOKUP(H$31,article,objectifHebdo,0,0)*Paramètres!$K$2 -> 9500 | M62: =SUMIFS('Base de données'!$C:$C,'Base de données'!$F:$F,M$31,'Base de données'!$B:$B,">="&Indicateurs!$A62,'Base de données'!$B:$B,"<"&(Indicateurs!$B62+1)) -> 0 | N62: =SUMIFS('Base de données'!$D:$D,'Base de données'!$F:$F,M$31,'Base de données'!$B:$B,">="&Indicateurs!$A62,'Base de données'!$B:$B,"<"&(Indicateurs!$B62+1)) -> 0 | O62: =_xlfn.XLOOKUP(M$31,article,tpsTheorique,0,0)*SUM($M62:$N62)/3600 -> 0 | P62: =SUMIFS('Base de données'!$G:$G,'Base de données'!$F:$F,M$31,'Base de données'!$B:$B,">="&Indicateurs!$A62,'Base de données'!$B:$B,"<"&(Indicateurs!$B62+1))/3600 -> 0 | Q62: =_xlfn.XLOOKUP(M$31,article,objectifHebdo,0,0)*Paramètres!$K$2 -> 17000 | R62: =SUMIFS('Base de données'!$C:$C,'Base de données'!$F:$F,R$31,'Base de données'!$B:$B,">="&Indicateurs!$A62,'Base de données'!$B:$B,"<"&(Indicateurs!$B62+1)) -> 0 | S62: =SUMIFS('Base de données'!$D:$D,'Base de données'!$F:$F,R$31,'Base de données'!$B:$B,">="&Indicateurs!$A62,'Base de données'!$B:$B,"<"&(Indicateurs!$B62+1)) -> 0 | T62: =_xlfn.XLOOKUP(R$31,article,tpsTheorique,0,0)*SUM($R62:$S62)/3600 -> 0 | U62: =SUMIFS('Base de données'!$G:$G,'Base de données'!$F:$F,R$31,'Base de données'!$B:$B,">="&Indicateurs!$A62,'Base de données'!$B:$B,"<"&(Indicateurs!$B62+1))/3600 -> 0 | V62: =_xlfn.XLOOKUP(R$31,article,objectifHebdo,0,0)*Paramètres!$K$2 -> 17500 | W62: =SUMIFS('Base de données'!$C:$C,'Base de données'!$F:$F,W$31,'Base de données'!$B:$B,">="&Indicateurs!$A62,'Base de données'!$B:$B,"<"&(Indicateurs!$B62+1)) -> 0 | X62: =SUMIFS('Base de données'!$D:$D,'Base de données'!$F:$F,W$31,'Base de données'!$B:$B,">="&Indicateurs!$A62,'Base de données'!$B:$B,"<"&(Indicateurs!$B62+1)) -> 0 | Y62: =_xlfn.XLOOKUP(W$31,article,tpsTheorique,0,0)*SUM($W62:$X62)/3600 -> 0 | Z62: =SUMIFS('Base de données'!$G:$G,'Base de données'!$F:$F,W$31,'Base de données'!$B:$B,">="&Indicateurs!$A62,'Base de données'!$B:$B,"<"&(Indicateurs!$B62+1))/3600 -> 0 | AA62: =_xlfn.XLOOKUP(W$31,article,objectifHebdo,0,0)*Paramètres!$K$2 -> 8500
A63: =IF(COUNTA($A$32:A62)<Paramètres!$K$3,Indicateurs!A62+7,"") ->  | F63: 0 | H63: =SUMIFS('Base de données'!$C:$C,'Base de données'!$F:$F,H$31,'Base de données'!$B:$B,">="&Indicateurs!$A63,'Base de données'!$B:$B,"<"&(Indicateurs!$B63+1)) -> 0 | I63: =SUMIFS('Base de données'!$D:$D,'Base de données'!$F:$F,H$31,'Base de données'!$B:$B,">="&Indicateurs!$A63,'Base de données'!$B:$B,"<"&(Indicateurs!$B63+1)) -> 0 | J63: =_xlfn.XLOOKUP(H$31,article,tpsTheorique,0,0)*SUM($H63:$I63)/3600 -> 0 | K63: =SUMIFS('Base de données'!$G:$G,'Base de données'!$F:$F,H$31,'Base de données'!$B:$B,">="&Indicateurs!$A63,'Base de données'!$B:$B,"<"&(Indicateurs!$B63+1))/3600 -> 0 | L63: =_xlfn.XLOOKUP(H$31,article,objectifHebdo,0,0)*Paramètres!$K$2 -> 9500 | M63: =SUMIFS('Base de données'!$C:$C,'Base de données'!$F:$F,M$31,'Base de données'!$B:$B,">="&Indicateurs!$A63,'Base de données'!$B:$B,"<"&(Indicateurs!$B63+1)) -> 0 | N63: =SUMIFS('Base de données'!$D:$D,'Base de données'!$F:$F,M$31,'Base de données'!$B:$B,">="&Indicateurs!$A63,'Base de données'!$B:$B,"<"&(Indicateurs!$B63+1)) -> 0 | O63: =_xlfn.XLOOKUP(M$31,article,tpsTheorique,0,0)*SUM($M63:$N63)/3600 -> 0 | P63: =SUMIFS('Base de données'!$G:$G,'Base de données'!$F:$F,M$31,'Base de données'!$B:$B,">="&Indicateurs!$A63,'Base de données'!$B:$B,"<"&(Indicateurs!$B63+1))/3600 -> 0 | Q63: =_xlfn.XLOOKUP(M$31,article,objectifHebdo,0,0)*Paramètres!$K$2 -> 17000 | R63: =SUMIFS('Base de données'!$C:$C,'Base de données'!$F:$F,R$31,'Base de données'!$B:$B,">="&Indicateurs!$A63,'Base de données'!$B:$B,"<"&(Indicateurs!$B63+1)) -> 0 | S63: =SUMIFS('Base de données'!$D:$D,'Base de données'!$F:$F,R$31,'Base de données'!$B:$B,">="&Indicateurs!$A63,'Base de données'!$B:$B,"<"&(Indicateurs!$B63+1)) -> 0 | T63: =_xlfn.XLOOKUP(R$31,article,tpsTheorique,0,0)*SUM($R63:$S63)/3600 -> 0 | U63: =SUMIFS('Base de données'!$G:$G,'Base de données'!$F:$F,R$31,'Base de données'!$B:$B,">="&Indicateurs!$A63,'Base de données'!$B:$B,"<"&(Indicateurs!$B63+1))/3600 -> 0 | V63: =_xlfn.XLOOKUP(R$31,article,objectifHebdo,0,0)*Paramètres!$K$2 -> 17500 | W63: =SUMIFS('Base de données'!$C:$C,'Base de données'!$F:$F,W$31,'Base de données'!$B:$B,">="&Indicateurs!$A63,'Base de données'!$B:$B,"<"&(Indicateurs!$B63+1)) -> 0 | X63: =SUMIFS('Base de données'!$D:$D,'Base de données'!$F:$F,W$31,'Base de données'!$B:$B,">="&Indicateurs!$A63,'Base de données'!$B:$B,"<"&(Indicateurs!$B63+1)) -> 0 | Y63: =_xlfn.XLOOKUP(W$31,article,tpsTheorique,0,0)*SUM($W63:$X63)/3600 -> 0 | Z63: =SUMIFS('Base de données'!$G:$G,'Base de données'!$F:$F,W$31,'Base de données'!$B:$B,">="&Indicateurs!$A63,'Base de données'!$B:$B,"<"&(Indicateurs!$B63+1))/3600 -> 0 | AA63: =_xlfn.XLOOKUP(W$31,article,objectifHebdo,0,0)*Paramètres!$K$2 -> 8500
A64: =IF(COUNTA($A$32:A63)<Paramètres!$K$3,Indicateurs!A63+7,"") ->  | D64: =SUM(H64,M64,R64,W64)/SUM(H64:I64,M64:N64,R64:S64,W64:X64) ->  | E64: =SUM(J64,O64,T64,Y64)/SUM(Z64,U64,P64,K64) ->  | F64: =SUM(H64,M64,R64,W64)/SUM(AA64,V64,Q64,L64) -> 0 | H64: =SUMIFS('Base de données'!$C:$C,'Base de données'!$F:$F,H$31,'Base de données'!$B:$B,">="&Indicateurs!$A64,'Base de données'!$B:$B,"<"&(Indicateurs!$B64+1)) -> 0 | I64: =SUMIFS('Base de données'!$D:$D,'Base de données'!$F:$F,H$31,'Base de données'!$B:$B,">="&Indicateurs!$A64,'Base de données'!$B:$B,"<"&(Indicateurs!$B64+1)) -> 0 | J64: =_xlfn.XLOOKUP(H$31,article,tpsTheorique,0,0)*SUM($H64:$I64)/3600 -> 0 | K64: =SUMIFS('Base de données'!$G:$G,'Base de données'!$F:$F,H$31,'Base de données'!$B:$B,">="&Indicateurs!$A64,'Base de données'!$B:$B,"<"&(Indicateurs!$B64+1))/3600 -> 0 | L64: =_xlfn.XLOOKUP(H$31,article,objectifHebdo,0,0)*Paramètres!$K$2 -> 9500 | M64: =SUMIFS('Base de données'!$C:$C,'Base de données'!$F:$F,M$31,'Base de données'!$B:$B,">="&Indicateurs!$A64,'Base de données'!$B:$B,"<"&(Indicateurs!$B64+1)) -> 0 | N64: =SUMIFS('Base de données'!$D:$D,'Base de données'!$F:$F,M$31,'Base de données'!$B:$B,">="&Indicateurs!$A64,'Base de données'!$B:$B,"<"&(Indicateurs!$B64+1)) -> 0 | O64: =_xlfn.XLOOKUP(M$31,article,tpsTheorique,0,0)*SUM($M64:$N64)/3600 -> 0 | P64: =SUMIFS('Base de données'!$G:$G,'Base de données'!$F:$F,M$31,'Base de données'!$B:$B,">="&Indicateurs!$A64,'Base de données'!$B:$B,"<"&(Indicateurs!$B64+1))/3600 -> 0 | Q64: =_xlfn.XLOOKUP(M$31,article,objectifHebdo,0,0)*Paramètres!$K$2 -> 17000 | R64: =SUMIFS('Base de données'!$C:$C,'Base de données'!$F:$F,R$31,'Base de données'!$B:$B,">="&Indicateurs!$A64,'Base de données'!$B:$B,"<"&(Indicateurs!$B64+1)) -> 0 | S64: =SUMIFS('Base de données'!$D:$D,'Base de données'!$F:$F,R$31,'Base de données'!$B:$B,">="&Indicateurs!$A64,'Base de données'!$B:$B,"<"&(Indicateurs!$B64+1)) -> 0 | T64: =_xlfn.XLOOKUP(R$31,article,tpsTheorique,0,0)*SUM($R64:$S64)/3600 -> 0 | U64: =SUMIFS('Base de données'!$G:$G,'Base de données'!$F:$F,R$31,'Base de données'!$B:$B,">="&Indicateurs!$A64,'Base de données'!$B:$B,"<"&(Indicateurs!$B64+1))/3600 -> 0 | V64: =_xlfn.XLOOKUP(R$31,article,objectifHebdo,0,0)*Paramètres!$K$2 -> 17500 | W64: =SUMIFS('Base de données'!$C:$C,'Base de données'!$F:$F,W$31,'Base de données'!$B:$B,">="&Indicateurs!$A64,'Base de données'!$B:$B,"<"&(Indicateurs!$B64+1)) -> 0 | X64: =SUMIFS('Base de données'!$D:$D,'Base de données'!$F:$F,W$31,'Base de données'!$B:$B,">="&Indicateurs!$A64,'Base de données'!$B:$B,"<"&(Indicateurs!$B64+1)) -> 0 | Y64: =_xlfn.XLOOKUP(W$31,article,tpsTheorique,0,0)*SUM($W64:$X64)/3600 -> 0 | Z64: =SUMIFS('Base de données'!$G:$G,'Base de données'!$F:$F,W$31,'Base de données'!$B:$B,">="&Indicateurs!$A64,'Base de données'!$B:$B,"<"&(Indicateurs!$B64+1))/3600 -> 0 | AA64: =_xlfn.XLOOKUP(W$31,article,objectifHebdo,0,0)*Paramètres!$K$2 -> 8500
A65: =IF(COUNTA($A$32:A64)<Paramètres!$K$3,Indicateurs!A64+7,"") ->  | F65: 0 | H65: =SUMIFS('Base de données'!$C:$C,'Base de données'!$F:$F,H$31,'Base de données'!$B:$B,">="&Indicateurs!$A65,'Base de données'!$B:$B,"<"&(Indicateurs!$B65+1)) -> 0 | I65: =SUMIFS('Base de données'!$D:$D,'Base de données'!$F:$F,H$31,'Base de données'!$B:$B,">="&Indicateurs!$A65,'Base de données'!$B:$B,"<"&(Indicateurs!$B65+1)) -> 0 | J65: =_xlfn.XLOOKUP(H$31,article,tpsTheorique,0,0)*SUM($H65:$I65)/3600 -> 0 | K65: =SUMIFS('Base de données'!$G:$G,'Base de données'!$F:$F,H$31,'Base de données'!$B:$B,">="&Indicateurs!$A65,'Base de données'!$B:$B,"<"&(Indicateurs!$B65+1))/3600 -> 0 | L65: =_xlfn.XLOOKUP(H$31,article,objectifHebdo,0,0)*Paramètres!$K$2 -> 9500 | M65: =SUMIFS('Base de données'!$C:$C,'Base de données'!$F:$F,M$31,'Base de données'!$B:$B,">="&Indicateurs!$A65,'Base de données'!$B:$B,"<"&(Indicateurs!$B65+1)) -> 0 | N65: =SUMIFS('Base de données'!$D:$D,'Base de données'!$F:$F,M$31,'Base de données'!$B:$B,">="&Indicateurs!$A65,'Base de données'!$B:$B,"<"&(Indicateurs!$B65+1)) -> 0 | O65: =_xlfn.XLOOKUP(M$31,article,tpsTheorique,0,0)*SUM($M65:$N65)/3600 -> 0 | P65: =SUMIFS('Base de données'!$G:$G,'Base de données'!$F:$F,M$31,'Base de données'!$B:$B,">="&Indicateurs!$A65,'Base de données'!$B:$B,"<"&(Indicateurs!$B65+1))/3600 -> 0 | Q65: =_xlfn.XLOOKUP(M$31,article,objectifHebdo,0,0)*Paramètres!$K$2 -> 17000 | R65: =SUMIFS('Base de données'!$C:$C,'Base de données'!$F:$F,R$31,'Base de données'!$B:$B,">="&Indicateurs!$A65,'Base de données'!$B:$B,"<"&(Indicateurs!$B65+1)) -> 0 | S65: =SUMIFS('Base de données'!$D:$D,'Base de données'!$F:$F,R$31,'Base de données'!$B:$B,">="&Indicateurs!$A65,'Base de données'!$B:$B,"<"&(Indicateurs!$B65+1)) -> 0 | T65: =_xlfn.XLOOKUP(R$31,article,tpsTheorique,0,0)*SUM($R65:$S65)/3600 -> 0 | U65: =SUMIFS('Base de données'!$G:$G,'Base de données'!$F:$F,R$31,'Base de données'!$B:$B,">="&Indicateurs!$A65,'Base de données'!$B:$B,"<"&(Indicateurs!$B65+1))/3600 -> 0 | V65: =_xlfn.XLOOKUP(R$31,article,objectifHebdo,0,0)*Paramètres!$K$2 -> 17500 | W65: =SUMIFS('Base de données'!$C:$C,'Base de données'!$F:$F,W$31,'Base de données'!$B:$B,">="&Indicateurs!$A65,'Base de données'!$B:$B,"<"&(Indicateurs!$B65+1)) -> 0 | X65: =SUMIFS('Base de données'!$D:$D,'Base de données'!$F:$F,W$31,'Base de données'!$B:$B,">="&Indicateurs!$A65,'Base de données'!$B:$B,"<"&(Indicateurs!$B65+1)) -> 0 | Y65: =_xlfn.XLOOKUP(W$31,article,tpsTheorique,0,0)*SUM($W65:$X65)/3600 -> 0 | Z65: =SUMIFS('Base de données'!$G:$G,'Base de données'!$F:$F,W$31,'Base de données'!$B:$B,">="&Indicateurs!$A65,'Base de données'!$B:$B,"<"&(Indicateurs!$B65+1))/3600 -> 0 | AA65: =_xlfn.XLOOKUP(W$31,article,objectifHebdo,0,0)*Paramètres!$K$2 -> 8500
A66: =IF(COUNTA($A$32:A65)<Paramètres!$K$3,Indicateurs!A65+7,"") ->  | F66: 0 | H66: =SUMIFS('Base de données'!$C:$C,'Base de données'!$F:$F,H$31,'Base de données'!$B:$B,">="&Indicateurs!$A66,'Base de données'!$B:$B,"<"&(Indicateurs!$B66+1)) -> 0 | I66: =SUMIFS('Base de données'!$D:$D,'Base de données'!$F:$F,H$31,'Base de données'!$B:$B,">="&Indicateurs!$A66,'Base de données'!$B:$B,"<"&(Indicateurs!$B66+1)) -> 0 | J66: =_xlfn.XLOOKUP(H$31,article,tpsTheorique,0,0)*SUM($H66:$I66)/3600 -> 0 | K66: =SUMIFS('Base de données'!$G:$G,'Base de données'!$F:$F,H$31,'Base de données'!$B:$B,">="&Indicateurs!$A66,'Base de données'!$B:$B,"<"&(Indicateurs!$B66+1))/3600 -> 0 | L66: =_xlfn.XLOOKUP(H$31,article,objectifHebdo,0,0)*Paramètres!$K$2 -> 9500 | M66: =SUMIFS('Base de données'!$C:$C,'Base de données'!$F:$F,M$31,'Base de données'!$B:$B,">="&Indicateurs!$A66,'Base de données'!$B:$B,"<"&(Indicateurs!$B66+1)) -> 0 | N66: =SUMIFS('Base de données'!$D:$D,'Base de données'!$F:$F,M$31,'Base de données'!$B:$B,">="&Indicateurs!$A66,'Base de données'!$B:$B,"<"&(Indicateurs!$B66+1)) -> 0 | O66: =_xlfn.XLOOKUP(M$31,article,tpsTheorique,0,0)*SUM($M66:$N66)/3600 -> 0 | P66: =SUMIFS('Base de données'!$G:$G,'Base de données'!$F:$F,M$31,'Base de données'!$B:$B,">="&Indicateurs!$A66,'Base de données'!$B:$B,"<"&(Indicateurs!$B66+1))/3600 -> 0 | Q66: =_xlfn.XLOOKUP(M$31,article,objectifHebdo,0,0)*Paramètres!$K$2 -> 17000 | R66: =SUMIFS('Base de données'!$C:$C,'Base de données'!$F:$F,R$31,'Base de données'!$B:$B,">="&Indicateurs!$A66,'Base de données'!$B:$B,"<"&(Indicateurs!$B66+1)) -> 0 | S66: =SUMIFS('Base de données'!$D:$D,'Base de données'!$F:$F,R$31,'Base de données'!$B:$B,">="&Indicateurs!$A66,'Base de données'!$B:$B,"<"&(Indicateurs!$B66+1)) -> 0 | T66: =_xlfn.XLOOKUP(R$31,article,tpsTheorique,0,0)*SUM($R66:$S66)/3600 -> 0 | U66: =SUMIFS('Base de données'!$G:$G,'Base de données'!$F:$F,R$31,'Base de données'!$B:$B,">="&Indicateurs!$A66,'Base de données'!$B:$B,"<"&(Indicateurs!$B66+1))/3600 -> 0 | V66: =_xlfn.XLOOKUP(R$31,article,objectifHebdo,0,0)*Paramètres!$K$2 -> 17500 | W66: =SUMIFS('Base de données'!$C:$C,'Base de données'!$F:$F,W$31,'Base de données'!$B:$B,">="&Indicateurs!$A66,'Base de données'!$B:$B,"<"&(Indicateurs!$B66+1)) -> 0 | X66: =SUMIFS('Base de données'!$D:$D,'Base de données'!$F:$F,W$31,'Base de données'!$B:$B,">="&Indicateurs!$A66,'Base de données'!$B:$B,"<"&(Indicateurs!$B66+1)) -> 0 | Y66: =_xlfn.XLOOKUP(W$31,article,tpsTheorique,0,0)*SUM($W66:$X66)/3600 -> 0 | Z66: =SUMIFS('Base de données'!$G:$G,'Base de données'!$F:$F,W$31,'Base de données'!$B:$B,">="&Indicateurs!$A66,'Base de données'!$B:$B,"<"&(Indicateurs!$B66+1))/3600 -> 0 | AA66: =_xlfn.XLOOKUP(W$31,article,objectifHebdo,0,0)*Paramètres!$K$2 -> 8500
A67: =IF(COUNTA($A$32:A66)<Paramètres!$K$3,Indicateurs!A66+7,"") ->  | F67: 0 | H67: =SUMIFS('Base de données'!$C:$C,'Base de données'!$F:$F,H$31,'Base de données'!$B:$B,">="&Indicateurs!$A67,'Base de données'!$B:$B,"<"&(Indicateurs!$B67+1)) -> 0 | I67: =SUMIFS('Base de données'!$D:$D,'Base de données'!$F:$F,H$31,'Base de données'!$B:$B,">="&Indicateurs!$A67,'Base de données'!$B:$B,"<"&(Indicateurs!$B67+1)) -> 0 | J67: =_xlfn.XLOOKUP(H$31,article,tpsTheorique,0,0)*SUM($H67:$I67)/3600 -> 0 | K67: =SUMIFS('Base de données'!$G:$G,'Base de données'!$F:$F,H$31,'Base de données'!$B:$B,">="&Indicateurs!$A67,'Base de données'!$B:$B,"<"&(Indicateurs!$B67+1))/3600 -> 0 | L67: =_xlfn.XLOOKUP(H$31,article,objectifHebdo,0,0)*Paramètres!$K$2 -> 9500 | M67: =SUMIFS('Base de données'!$C:$C,'Base de données'!$F:$F,M$31,'Base de données'!$B:$B,">="&Indicateurs!$A67,'Base de données'!$B:$B,"<"&(Indicateurs!$B67+1)) -> 0 | N67: =SUMIFS('Base de données'!$D:$D,'Base de données'!$F:$F,M$31,'Base de données'!$B:$B,">="&Indicateurs!$A67,'Base de données'!$B:$B,"<"&(Indicateurs!$B67+1)) -> 0 | O67: =_xlfn.XLOOKUP(M$31,article,tpsTheorique,0,0)*SUM($M67:$N67)/3600 -> 0 | P67: =SUMIFS('Base de données'!$G:$G,'Base de données'!$F:$F,M$31,'Base de données'!$B:$B,">="&Indicateurs!$A67,'Base de données'!$B:$B,"<"&(Indicateurs!$B67+1))/3600 -> 0 | Q67: =_xlfn.XLOOKUP(M$31,article,objectifHebdo,0,0)*Paramètres!$K$2 -> 17000 | R67: =SUMIFS('Base de données'!$C:$C,'Base de données'!$F:$F,R$31,'Base de données'!$B:$B,">="&Indicateurs!$A67,'Base de données'!$B:$B,"<"&(Indicateurs!$B67+1)) -> 0 | S67: =SUMIFS('Base de données'!$D:$D,'Base de données'!$F:$F,R$31,'Base de données'!$B:$B,">="&Indicateurs!$A67,'Base de données'!$B:$B,"<"&(Indicateurs!$B67+1)) -> 0 | T67: =_xlfn.XLOOKUP(R$31,article,tpsTheorique,0,0)*SUM($R67:$S67)/3600 -> 0 | U67: =SUMIFS('Base de données'!$G:$G,'Base de données'!$F:$F,R$31,'Base de données'!$B:$B,">="&Indicateurs!$A67,'Base de données'!$B:$B,"<"&(Indicateurs!$B67+1))/3600 -> 0 | V67: =_xlfn.XLOOKUP(R$31,article,objectifHebdo,0,0)*Paramètres!$K$2 -> 17500 | W67: =SUMIFS('Base de données'!$C:$C,'Base de données'!$F:$F,W$31,'Base de données'!$B:$B,">="&Indicateurs!$A67,'Base de données'!$B:$B,"<"&(Indicateurs!$B67+1)) -> 0 | X67: =SUMIFS('Base de données'!$D:$D,'Base de données'!$F:$F,W$31,'Base de données'!$B:$B,">="&Indicateurs!$A67,'Base de données'!$B:$B,"<"&(Indicateurs!$B67+1)) -> 0 | Y67: =_xlfn.XLOOKUP(W$31,article,tpsTheorique,0,0)*SUM($W67:$X67)/3600 -> 0 | Z67: =SUMIFS('Base de données'!$G:$G,'Base de données'!$F:$F,W$31,'Base de données'!$B:$B,">="&Indicateurs!$A67,'Base de données'!$B:$B,"<"&(Indicateurs!$B67+1))/3600 -> 0 | AA67: =_xlfn.XLOOKUP(W$31,article,objectifHebdo,0,0)*Paramètres!$K$2 -> 8500
A68: =IF(COUNTA($A$32:A67)<Paramètres!$K$3,Indicateurs!A67+7,"") ->  | F68: 0 | H68: =SUMIFS('Base de données'!$C:$C,'Base de données'!$F:$F,H$31,'Base de données'!$B:$B,">="&Indicateurs!$A68,'Base de données'!$B:$B,"<"&(Indicateurs!$B68+1)) -> 0 | I68: =SUMIFS('Base de données'!$D:$D,'Base de données'!$F:$F,H$31,'Base de données'!$B:$B,">="&Indicateurs!$A68,'Base de données'!$B:$B,"<"&(Indicateurs!$B68+1)) -> 0 | J68: =_xlfn.XLOOKUP(H$31,article,tpsTheorique,0,0)*SUM($H68:$I68)/3600 -> 0 | K68: =SUMIFS('Base de données'!$G:$G,'Base de données'!$F:$F,H$31,'Base de données'!$B:$B,">="&Indicateurs!$A68,'Base de données'!$B:$B,"<"&(Indicateurs!$B68+1))/3600 -> 0 | L68: =_xlfn.XLOOKUP(H$31,article,objectifHebdo,0,0)*Paramètres!$K$2 -> 9500 | M68: =SUMIFS('Base de données'!$C:$C,'Base de données'!$F:$F,M$31,'Base de données'!$B:$B,">="&Indicateurs!$A68,'Base de données'!$B:$B,"<"&(Indicateurs!$B68+1)) -> 0 | N68: =SUMIFS('Base de données'!$D:$D,'Base de données'!$F:$F,M$31,'Base de données'!$B:$B,">="&Indicateurs!$A68,'Base de données'!$B:$B,"<"&(Indicateurs!$B68+1)) -> 0 | O68: =_xlfn.XLOOKUP(M$31,article,tpsTheorique,0,0)*SUM($M68:$N68)/3600 -> 0 | P68: =SUMIFS('Base de données'!$G:$G,'Base de données'!$F:$F,M$31,'Base de données'!$B:$B,">="&Indicateurs!$A68,'Base de données'!$B:$B,"<"&(Indicateurs!$B68+1))/3600 -> 0 | Q68: =_xlfn.XLOOKUP(M$31,article,objectifHebdo,0,0)*Paramètres!$K$2 -> 17000 | R68: =SUMIFS('Base de données'!$C:$C,'Base de données'!$F:$F,R$31,'Base de données'!$B:$B,">="&Indicateurs!$A68,'Base de données'!$B:$B,"<"&(Indicateurs!$B68+1)) -> 0 | S68: =SUMIFS('Base de données'!$D:$D,'Base de données'!$F:$F,R$31,'Base de données'!$B:$B,">="&Indicateurs!$A68,'Base de données'!$B:$B,"<"&(Indicateurs!$B68+1)) -> 0 | T68: =_xlfn.XLOOKUP(R$31,article,tpsTheorique,0,0)*SUM($R68:$S68)/3600 -> 0 | U68: =SUMIFS('Base de données'!$G:$G,'Base de données'!$F:$F,R$31,'Base de données'!$B:$B,">="&Indicateurs!$A68,'Base de données'!$B:$B,"<"&(Indicateurs!$B68+1))/3600 -> 0 | V68: =_xlfn.XLOOKUP(R$31,article,objectifHebdo,0,0)*Paramètres!$K$2 -> 17500 | W68: =SUMIFS('Base de données'!$C:$C,'Base de données'!$F:$F,W$31,'Base de données'!$B:$B,">="&Indicateurs!$A68,'Base de données'!$B:$B,"<"&(Indicateurs!$B68+1)) -> 0 | X68: =SUMIFS('Base de données'!$D:$D,'Base de données'!$F:$F,W$31,'Base de données'!$B:$B,">="&Indicateurs!$A68,'Base de données'!$B:$B,"<"&(Indicateurs!$B68+1)) -> 0 | Y68: =_xlfn.XLOOKUP(W$31,article,tpsTheorique,0,0)*SUM($W68:$X68)/3600 -> 0 | Z68: =SUMIFS('Base de données'!$G:$G,'Base de données'!$F:$F,W$31,'Base de données'!$B:$B,">="&Indicateurs!$A68,'Base de données'!$B:$B,"<"&(Indicateurs!$B68+1))/3600 -> 0 | AA68: =_xlfn.XLOOKUP(W$31,article,objectifHebdo,0,0)*Paramètres!$K$2 -> 8500
A69: =IF(COUNTA($A$32:A68)<Paramètres!$K$3,Indicateurs!A68+7,"") ->  | F69: 0 | H69: =SUMIFS('Base de données'!$C:$C,'Base de données'!$F:$F,H$31,'Base de données'!$B:$B,">="&Indicateurs!$A69,'Base de données'!$B:$B,"<"&(Indicateurs!$B69+1)) -> 0 | I69: =SUMIFS('Base de données'!$D:$D,'Base de données'!$F:$F,H$31,'Base de données'!$B:$B,">="&Indicateurs!$A69,'Base de données'!$B:$B,"<"&(Indicateurs!$B69+1)) -> 0 | J69: =_xlfn.XLOOKUP(H$31,article,tpsTheorique,0,0)*SUM($H69:$I69)/3600 -> 0 | K69: =SUMIFS('Base de données'!$G:$G,'Base de données'!$F:$F,H$31,'Base de données'!$B:$B,">="&Indicateurs!$A69,'Base de données'!$B:$B,"<"&(Indicateurs!$B69+1))/3600 -> 0 | L69: =_xlfn.XLOOKUP(H$31,article,objectifHebdo,0,0)*Paramètres!$K$2 -> 9500 | M69: =SUMIFS('Base de données'!$C:$C,'Base de données'!$F:$F,M$31,'Base de données'!$B:$B,">="&Indicateurs!$A69,'Base de données'!$B:$B,"<"&(Indicateurs!$B69+1)) -> 0 | N69: =SUMIFS('Base de données'!$D:$D,'Base de données'!$F:$F,M$31,'Base de données'!$B:$B,">="&Indicateurs!$A69,'Base de données'!$B:$B,"<"&(Indicateurs!$B69+1)) -> 0 | O69: =_xlfn.XLOOKUP(M$31,article,tpsTheorique,0,0)*SUM($M69:$N69)/3600 -> 0 | P69: =SUMIFS('Base de données'!$G:$G,'Base de données'!$F:$F,M$31,'Base de données'!$B:$B,">="&Indicateurs!$A69,'Base de données'!$B:$B,"<"&(Indicateurs!$B69+1))/3600 -> 0 | Q69: =_xlfn.XLOOKUP(M$31,article,objectifHebdo,0,0)*Paramètres!$K$2 -> 17000 | R69: =SUMIFS('Base de données'!$C:$C,'Base de données'!$F:$F,R$31,'Base de données'!$B:$B,">="&Indicateurs!$A69,'Base de données'!$B:$B,"<"&(Indicateurs!$B69+1)) -> 0 | S69: =SUMIFS('Base de données'!$D:$D,'Base de données'!$F:$F,R$31,'Base de données'!$B:$B,">="&Indicateurs!$A69,'Base de données'!$B:$B,"<"&(Indicateurs!$B69+1)) -> 0 | T69: =_xlfn.XLOOKUP(R$31,article,tpsTheorique,0,0)*SUM($R69:$S69)/3600 -> 0 | U69: =SUMIFS('Base de données'!$G:$G,'Base de données'!$F:$F,R$31,'Base de données'!$B:$B,">="&Indicateurs!$A69,'Base de données'!$B:$B,"<"&(Indicateurs!$B69+1))/3600 -> 0 | V69: =_xlfn.XLOOKUP(R$31,article,objectifHebdo,0,0)*Paramètres!$K$2 -> 17500 | W69: =SUMIFS('Base de données'!$C:$C,'Base de données'!$F:$F,W$31,'Base de données'!$B:$B,">="&Indicateurs!$A69,'Base de données'!$B:$B,"<"&(Indicateurs!$B69+1)) -> 0 | X69: =SUMIFS('Base de données'!$D:$D,'Base de données'!$F:$F,W$31,'Base de données'!$B:$B,">="&Indicateurs!$A69,'Base de données'!$B:$B,"<"&(Indicateurs!$B69+1)) -> 0 | Y69: =_xlfn.XLOOKUP(W$31,article,tpsTheorique,0,0)*SUM($W69:$X69)/3600 -> 0 | Z69: =SUMIFS('Base de données'!$G:$G,'Base de données'!$F:$F,W$31,'Base de données'!$B:$B,">="&Indicateurs!$A69,'Base de données'!$B:$B,"<"&(Indicateurs!$B69+1))/3600 -> 0 | AA69: =_xlfn.XLOOKUP(W$31,article,objectifHebdo,0,0)*Paramètres!$K$2 -> 8500
A70: =IF(COUNTA($A$32:A69)<Paramètres!$K$3,Indicateurs!A69+7,"") ->  | F70: 0 | H70: =SUMIFS('Base de données'!$C:$C,'Base de données'!$F:$F,H$31,'Base de données'!$B:$B,">="&Indicateurs!$A70,'Base de données'!$B:$B,"<"&(Indicateurs!$B70+1)) -> 0 | I70: =SUMIFS('Base de données'!$D:$D,'Base de données'!$F:$F,H$31,'Base de données'!$B:$B,">="&Indicateurs!$A70,'Base de données'!$B:$B,"<"&(Indicateurs!$B70+1)) -> 0 | J70: =_xlfn.XLOOKUP(H$31,article,tpsTheorique,0,0)*SUM($H70:$I70)/3600 -> 0 | K70: =SUMIFS('Base de données'!$G:$G,'Base de données'!$F:$F,H$31,'Base de données'!$B:$B,">="&Indicateurs!$A70,'Base de données'!$B:$B,"<"&(Indicateurs!$B70+1))/3600 -> 0 | L70: =_xlfn.XLOOKUP(H$31,article,objectifHebdo,0,0)*Paramètres!$K$2 -> 9500 | M70: =SUMIFS('Base de données'!$C:$C,'Base de données'!$F:$F,M$31,'Base de données'!$B:$B,">="&Indicateurs!$A70,'Base de données'!$B:$B,"<"&(Indicateurs!$B70+1)) -> 0 | N70: =SUMIFS('Base de données'!$D:$D,'Base de données'!$F:$F,M$31,'Base de données'!$B:$B,">="&Indicateurs!$A70,'Base de données'!$B:$B,"<"&(Indicateurs!$B70+1)) -> 0 | O70: =_xlfn.XLOOKUP(M$31,article,tpsTheorique,0,0)*SUM($M70:$N70)/3600 -> 0 | P70: =SUMIFS('Base de données'!$G:$G,'Base de données'!$F:$F,M$31,'Base de données'!$B:$B,">="&Indicateurs!$A70,'Base de données'!$B:$B,"<"&(Indicateurs!$B70+1))/3600 -> 0 | Q70: =_xlfn.XLOOKUP(M$31,article,objectifHebdo,0,0)*Paramètres!$K$2 -> 17000 | R70: =SUMIFS('Base de données'!$C:$C,'Base de données'!$F:$F,R$31,'Base de données'!$B:$B,">="&Indicateurs!$A70,'Base de données'!$B:$B,"<"&(Indicateurs!$B70+1)) -> 0 | S70: =SUMIFS('Base de données'!$D:$D,'Base de données'!$F:$F,R$31,'Base de données'!$B:$B,">="&Indicateurs!$A70,'Base de données'!$B:$B,"<"&(Indicateurs!$B70+1)) -> 0 | T70: =_xlfn.XLOOKUP(R$31,article,tpsTheorique,0,0)*SUM($R70:$S70)/3600 -> 0 | U70: =SUMIFS('Base de données'!$G:$G,'Base de données'!$F:$F,R$31,'Base de données'!$B:$B,">="&Indicateurs!$A70,'Base de données'!$B:$B,"<"&(Indicateurs!$B70+1))/3600 -> 0 | V70: =_xlfn.XLOOKUP(R$31,article,objectifHebdo,0,0)*Paramètres!$K$2 -> 17500 | W70: =SUMIFS('Base de données'!$C:$C,'Base de données'!$F:$F,W$31,'Base de données'!$B:$B,">="&Indicateurs!$A70,'Base de données'!$B:$B,"<"&(Indicateurs!$B70+1)) -> 0 | X70: =SUMIFS('Base de données'!$D:$D,'Base de données'!$F:$F,W$31,'Base de données'!$B:$B,">="&Indicateurs!$A70,'Base de données'!$B:$B,"<"&(Indicateurs!$B70+1)) -> 0 | Y70: =_xlfn.XLOOKUP(W$31,article,tpsTheorique,0,0)*SUM($W70:$X70)/3600 -> 0 | Z70: =SUMIFS('Base de données'!$G:$G,'Base de données'!$F:$F,W$31,'Base de données'!$B:$B,">="&Indicateurs!$A70,'Base de données'!$B:$B,"<"&(Indicateurs!$B70+1))/3600 -> 0 | AA70: =_xlfn.XLOOKUP(W$31,article,objectifHebdo,0,0)*Paramètres!$K$2 -> 8500
A71: =IF(COUNTA($A$32:A70)<Paramètres!$K$3,Indicateurs!A70+7,"") ->  | F71: 0 | H71: =SUMIFS('Base de données'!$C:$C,'Base de données'!$F:$F,H$31,'Base de données'!$B:$B,">="&Indicateurs!$A71,'Base de données'!$B:$B,"<"&(Indicateurs!$B71+1)) -> 0 | I71: =SUMIFS('Base de données'!$D:$D,'Base de données'!$F:$F,H$31,'Base de données'!$B:$B,">="&Indicateurs!$A71,'Base de données'!$B:$B,"<"&(Indicateurs!$B71+1)) -> 0 | J71: =_xlfn.XLOOKUP(H$31,article,tpsTheorique,0,0)*SUM($H71:$I71)/3600 -> 0 | K71: =SUMIFS('Base de données'!$G:$G,'Base de données'!$F:$F,H$31,'Base de données'!$B:$B,">="&Indicateurs!$A71,'Base de données'!$B:$B,"<"&(Indicateurs!$B71+1))/3600 -> 0 | L71: =_xlfn.XLOOKUP(H$31,article,objectifHebdo,0,0)*Paramètres!$K$2 -> 9500 | M71: =SUMIFS('Base de données'!$C:$C,'Base de données'!$F:$F,M$31,'Base de données'!$B:$B,">="&Indicateurs!$A71,'Base de données'!$B:$B,"<"&(Indicateurs!$B71+1)) -> 0 | N71: =SUMIFS('Base de données'!$D:$D,'Base de données'!$F:$F,M$31,'Base de données'!$B:$B,">="&Indicateurs!$A71,'Base de données'!$B:$B,"<"&(Indicateurs!$B71+1)) -> 0 | O71: =_xlfn.XLOOKUP(M$31,article,tpsTheorique,0,0)*SUM($M71:$N71)/3600 -> 0 | P71: =SUMIFS('Base de données'!$G:$G,'Base de données'!$F:$F,M$31,'Base de données'!$B:$B,">="&Indicateurs!$A71,'Base de données'!$B:$B,"<"&(Indicateurs!$B71+1))/3600 -> 0 | Q71: =_xlfn.XLOOKUP(M$31,article,objectifHebdo,0,0)*Paramètres!$K$2 -> 17000 | R71: =SUMIFS('Base de données'!$C:$C,'Base de données'!$F:$F,R$31,'Base de données'!$B:$B,">="&Indicateurs!$A71,'Base de données'!$B:$B,"<"&(Indicateurs!$B71+1)) -> 0 | S71: =SUMIFS('Base de données'!$D:$D,'Base de données'!$F:$F,R$31,'Base de données'!$B:$B,">="&Indicateurs!$A71,'Base de données'!$B:$B,"<"&(Indicateurs!$B71+1)) -> 0 | T71: =_xlfn.XLOOKUP(R$31,article,tpsTheorique,0,0)*SUM($R71:$S71)/3600 -> 0 | U71: =SUMIFS('Base de données'!$G:$G,'Base de données'!$F:$F,R$31,'Base de données'!$B:$B,">="&Indicateurs!$A71,'Base de données'!$B:$B,"<"&(Indicateurs!$B71+1))/3600 -> 0 | V71: =_xlfn.XLOOKUP(R$31,article,objectifHebdo,0,0)*Paramètres!$K$2 -> 17500 | W71: =SUMIFS('Base de données'!$C:$C,'Base de données'!$F:$F,W$31,'Base de données'!$B:$B,">="&Indicateurs!$A71,'Base de données'!$B:$B,"<"&(Indicateurs!$B71+1)) -> 0 | X71: =SUMIFS('Base de données'!$D:$D,'Base de données'!$F:$F,W$31,'Base de données'!$B:$B,">="&Indicateurs!$A71,'Base de données'!$B:$B,"<"&(Indicateurs!$B71+1)) -> 0 | Y71: =_xlfn.XLOOKUP(W$31,article,tpsTheorique,0,0)*SUM($W71:$X71)/3600 -> 0 | Z71: =SUMIFS('Base de données'!$G:$G,'Base de données'!$F:$F,W$31,'Base de données'!$B:$B,">="&Indicateurs!$A71,'Base de données'!$B:$B,"<"&(Indicateurs!$B71+1))/3600 -> 0 | AA71: =_xlfn.XLOOKUP(W$31,article,objectifHebdo,0,0)*Paramètres!$K$2 -> 8500
A72: =IF(COUNTA($A$32:A71)<Paramètres!$K$3,Indicateurs!A71+7,"") ->  | F72: 0 | H72: =SUMIFS('Base de données'!$C:$C,'Base de données'!$F:$F,H$31,'Base de données'!$B:$B,">="&Indicateurs!$A72,'Base de données'!$B:$B,"<"&(Indicateurs!$B72+1)) -> 0 | I72: =SUMIFS('Base de données'!$D:$D,'Base de données'!$F:$F,H$31,'Base de données'!$B:$B,">="&Indicateurs!$A72,'Base de données'!$B:$B,"<"&(Indicateurs!$B72+1)) -> 0 | J72: =_xlfn.XLOOKUP(H$31,article,tpsTheorique,0,0)*SUM($H72:$I72)/3600 -> 0 | K72: =SUMIFS('Base de données'!$G:$G,'Base de données'!$F:$F,H$31,'Base de données'!$B:$B,">="&Indicateurs!$A72,'Base de données'!$B:$B,"<"&(Indicateurs!$B72+1))/3600 -> 0 | L72: =_xlfn.XLOOKUP(H$31,article,objectifHebdo,0,0)*Paramètres!$K$2 -> 9500 | M72: =SUMIFS('Base de données'!$C:$C,'Base de données'!$F:$F,M$31,'Base de données'!$B:$B,">="&Indicateurs!$A72,'Base de données'!$B:$B,"<"&(Indicateurs!$B72+1)) -> 0 | N72: =SUMIFS('Base de données'!$D:$D,'Base de données'!$F:$F,M$31,'Base de données'!$B:$B,">="&Indicateurs!$A72,'Base de données'!$B:$B,"<"&(Indicateurs!$B72+1)) -> 0 | O72: =_xlfn.XLOOKUP(M$31,article,tpsTheorique,0,0)*SUM($M72:$N72)/3600 -> 0 | P72: =SUMIFS('Base de données'!$G:$G,'Base de données'!$F:$F,M$31,'Base de données'!$B:$B,">="&Indicateurs!$A72,'Base de données'!$B:$B,"<"&(Indicateurs!$B72+1))/3600 -> 0 | Q72: =_xlfn.XLOOKUP(M$31,article,objectifHebdo,0,0)*Paramètres!$K$2 -> 17000 | R72: =SUMIFS('Base de données'!$C:$C,'Base de données'!$F:$F,R$31,'Base de données'!$B:$B,">="&Indicateurs!$A72,'Base de données'!$B:$B,"<"&(Indicateurs!$B72+1)) -> 0 | S72: =SUMIFS('Base de données'!$D:$D,'Base de données'!$F:$F,R$31,'Base de données'!$B:$B,">="&Indicateurs!$A72,'Base de données'!$B:$B,"<"&(Indicateurs!$B72+1)) -> 0 | T72: =_xlfn.XLOOKUP(R$31,article,tpsTheorique,0,0)*SUM($R72:$S72)/3600 -> 0 | U72: =SUMIFS('Base de données'!$G:$G,'Base de données'!$F:$F,R$31,'Base de données'!$B:$B,">="&Indicateurs!$A72,'Base de données'!$B:$B,"<"&(Indicateurs!$B72+1))/3600 -> 0 | V72: =_xlfn.XLOOKUP(R$31,article,objectifHebdo,0,0)*Paramètres!$K$2 -> 17500 | W72: =SUMIFS('Base de données'!$C:$C,'Base de données'!$F:$F,W$31,'Base de données'!$B:$B,">="&Indicateurs!$A72,'Base de données'!$B:$B,"<"&(Indicateurs!$B72+1)) -> 0 | X72: =SUMIFS('Base de données'!$D:$D,'Base de données'!$F:$F,W$31,'Base de données'!$B:$B,">="&Indicateurs!$A72,'Base de données'!$B:$B,"<"&(Indicateurs!$B72+1)) -> 0 | Y72: =_xlfn.XLOOKUP(W$31,article,tpsTheorique,0,0)*SUM($W72:$X72)/3600 -> 0 | Z72: =SUMIFS('Base de données'!$G:$G,'Base de données'!$F:$F,W$31,'Base de données'!$B:$B,">="&Indicateurs!$A72,'Base de données'!$B:$B,"<"&(Indicateurs!$B72+1))/3600 -> 0 | AA72: =_xlfn.XLOOKUP(W$31,article,objectifHebdo,0,0)*Paramètres!$K$2 -> 8500
A73: =IF(COUNTA($A$32:A72)<Paramètres!$K$3,Indicateurs!A72+7,"") ->  | F73: 0 | H73: =SUMIFS('Base de données'!$C:$C,'Base de données'!$F:$F,H$31,'Base de données'!$B:$B,">="&Indicateurs!$A73,'Base de données'!$B:$B,"<"&(Indicateurs!$B73+1)) -> 0 | I73: =SUMIFS('Base de données'!$D:$D,'Base de données'!$F:$F,H$31,'Base de données'!$B:$B,">="&Indicateurs!$A73,'Base de données'!$B:$B,"<"&(Indicateurs!$B73+1)) -> 0 | J73: =_xlfn.XLOOKUP(H$31,article,tpsTheorique,0,0)*SUM($H73:$I73)/3600 -> 0 | K73: =SUMIFS('Base de données'!$G:$G,'Base de données'!$F:$F,H$31,'Base de données'!$B:$B,">="&Indicateurs!$A73,'Base de données'!$B:$B,"<"&(Indicateurs!$B73+1))/3600 -> 0 | L73: =_xlfn.XLOOKUP(H$31,article,objectifHebdo,0,0)*Paramètres!$K$2 -> 9500 | M73: =SUMIFS('Base de données'!$C:$C,'Base de données'!$F:$F,M$31,'Base de données'!$B:$B,">="&Indicateurs!$A73,'Base de données'!$B:$B,"<"&(Indicateurs!$B73+1)) -> 0 | N73: =SUMIFS('Base de données'!$D:$D,'Base de données'!$F:$F,M$31,'Base de données'!$B:$B,">="&Indicateurs!$A73,'Base de données'!$B:$B,"<"&(Indicateurs!$B73+1)) -> 0 | O73: =_xlfn.XLOOKUP(M$31,article,tpsTheorique,0,0)*SUM($M73:$N73)/3600 -> 0 | P73: =SUMIFS('Base de données'!$G:$G,'Base de données'!$F:$F,M$31,'Base de données'!$B:$B,">="&Indicateurs!$A73,'Base de données'!$B:$B,"<"&(Indicateurs!$B73+1))/3600 -> 0 | Q73: =_xlfn.XLOOKUP(M$31,article,objectifHebdo,0,0)*Paramètres!$K$2 -> 17000 | R73: =SUMIFS('Base de données'!$C:$C,'Base de données'!$F:$F,R$31,'Base de données'!$B:$B,">="&Indicateurs!$A73,'Base de données'!$B:$B,"<"&(Indicateurs!$B73+1)) -> 0 | S73: =SUMIFS('Base de données'!$D:$D,'Base de données'!$F:$F,R$31,'Base de données'!$B:$B,">="&Indicateurs!$A73,'Base de données'!$B:$B,"<"&(Indicateurs!$B73+1)) -> 0 | T73: =_xlfn.XLOOKUP(R$31,article,tpsTheorique,0,0)*SUM($R73:$S73)/3600 -> 0 | U73: =SUMIFS('Base de données'!$G:$G,'Base de données'!$F:$F,R$31,'Base de données'!$B:$B,">="&Indicateurs!$A73,'Base de données'!$B:$B,"<"&(Indicateurs!$B73+1))/3600 -> 0 | V73: =_xlfn.XLOOKUP(R$31,article,objectifHebdo,0,0)*Paramètres!$K$2 -> 17500 | W73: =SUMIFS('Base de données'!$C:$C,'Base de données'!$F:$F,W$31,'Base de données'!$B:$B,">="&Indicateurs!$A73,'Base de données'!$B:$B,"<"&(Indicateurs!$B73+1)) -> 0 | X73: =SUMIFS('Base de données'!$D:$D,'Base de données'!$F:$F,W$31,'Base de données'!$B:$B,">="&Indicateurs!$A73,'Base de données'!$B:$B,"<"&(Indicateurs!$B73+1)) -> 0 | Y73: =_xlfn.XLOOKUP(W$31,article,tpsTheorique,0,0)*SUM($W73:$X73)/3600 -> 0 | Z73: =SUMIFS('Base de données'!$G:$G,'Base de données'!$F:$F,W$31,'Base de données'!$B:$B,">="&Indicateurs!$A73,'Base de données'!$B:$B,"<"&(Indicateurs!$B73+1))/3600 -> 0 | AA73: =_xlfn.XLOOKUP(W$31,article,objectifHebdo,0,0)*Paramètres!$K$2 -> 8500
A74: =IF(COUNTA($A$32:A73)<Paramètres!$K$3,Indicateurs!A73+7,"") ->  | F74: 0 | H74: =SUMIFS('Base de données'!$C:$C,'Base de données'!$F:$F,H$31,'Base de données'!$B:$B,">="&Indicateurs!$A74,'Base de données'!$B:$B,"<"&(Indicateurs!$B74+1)) -> 0 | I74: =SUMIFS('Base de données'!$D:$D,'Base de données'!$F:$F,H$31,'Base de données'!$B:$B,">="&Indicateurs!$A74,'Base de données'!$B:$B,"<"&(Indicateurs!$B74+1)) -> 0 | J74: =_xlfn.XLOOKUP(H$31,article,tpsTheorique,0,0)*SUM($H74:$I74)/3600 -> 0 | K74: =SUMIFS('Base de données'!$G:$G,'Base de données'!$F:$F,H$31,'Base de données'!$B:$B,">="&Indicateurs!$A74,'Base de données'!$B:$B,"<"&(Indicateurs!$B74+1))/3600 -> 0 | L74: =_xlfn.XLOOKUP(H$31,article,objectifHebdo,0,0)*Paramètres!$K$2 -> 9500 | M74: =SUMIFS('Base de données'!$C:$C,'Base de données'!$F:$F,M$31,'Base de données'!$B:$B,">="&Indicateurs!$A74,'Base de données'!$B:$B,"<"&(Indicateurs!$B74+1)) -> 0 | N74: =SUMIFS('Base de données'!$D:$D,'Base de données'!$F:$F,M$31,'Base de données'!$B:$B,">="&Indicateurs!$A74,'Base de données'!$B:$B,"<"&(Indicateurs!$B74+1)) -> 0 | O74: =_xlfn.XLOOKUP(M$31,article,tpsTheorique,0,0)*SUM($M74:$N74)/3600 -> 0 | P74: =SUMIFS('Base de données'!$G:$G,'Base de données'!$F:$F,M$31,'Base de données'!$B:$B,">="&Indicateurs!$A74,'Base de données'!$B:$B,"<"&(Indicateurs!$B74+1))/3600 -> 0 | Q74: =_xlfn.XLOOKUP(M$31,article,objectifHebdo,0,0)*Paramètres!$K$2 -> 17000 | R74: =SUMIFS('Base de données'!$C:$C,'Base de données'!$F:$F,R$31,'Base de données'!$B:$B,">="&Indicateurs!$A74,'Base de données'!$B:$B,"<"&(Indicateurs!$B74+1)) -> 0 | S74: =SUMIFS('Base de données'!$D:$D,'Base de données'!$F:$F,R$31,'Base de données'!$B:$B,">="&Indicateurs!$A74,'Base de données'!$B:$B,"<"&(Indicateurs!$B74+1)) -> 0 | T74: =_xlfn.XLOOKUP(R$31,article,tpsTheorique,0,0)*SUM($R74:$S74)/3600 -> 0 | U74: =SUMIFS('Base de données'!$G:$G,'Base de données'!$F:$F,R$31,'Base de données'!$B:$B,">="&Indicateurs!$A74,'Base de données'!$B:$B,"<"&(Indicateurs!$B74+1))/3600 -> 0 | V74: =_xlfn.XLOOKUP(R$31,article,objectifHebdo,0,0)*Paramètres!$K$2 -> 17500 | W74: =SUMIFS('Base de données'!$C:$C,'Base de données'!$F:$F,W$31,'Base de données'!$B:$B,">="&Indicateurs!$A74,'Base de données'!$B:$B,"<"&(Indicateurs!$B74+1)) -> 0 | X74: =SUMIFS('Base de données'!$D:$D,'Base de données'!$F:$F,W$31,'Base de données'!$B:$B,">="&Indicateurs!$A74,'Base de données'!$B:$B,"<"&(Indicateurs!$B74+1)) -> 0 | Y74: =_xlfn.XLOOKUP(W$31,article,tpsTheorique,0,0)*SUM($W74:$X74)/3600 -> 0 | Z74: =SUMIFS('Base de données'!$G:$G,'Base de données'!$F:$F,W$31,'Base de données'!$B:$B,">="&Indicateurs!$A74,'Base de données'!$B:$B,"<"&(Indicateurs!$B74+1))/3600 -> 0 | AA74: =_xlfn.XLOOKUP(W$31,article,objectifHebdo,0,0)*Paramètres!$K$2 -> 8500
A75: =IF(COUNTA($A$32:A74)<Paramètres!$K$3,Indicateurs!A74+7,"") ->  | F75: 0 | H75: =SUMIFS('Base de données'!$C:$C,'Base de données'!$F:$F,H$31,'Base de données'!$B:$B,">="&Indicateurs!$A75,'Base de données'!$B:$B,"<"&(Indicateurs!$B75+1)) -> 0 | I75: =SUMIFS('Base de données'!$D:$D,'Base de données'!$F:$F,H$31,'Base de données'!$B:$B,">="&Indicateurs!$A75,'Base de données'!$B:$B,"<"&(Indicateurs!$B75+1)) -> 0 | J75: =_xlfn.XLOOKUP(H$31,article,tpsTheorique,0,0)*SUM($H75:$I75)/3600 -> 0 | K75: =SUMIFS('Base de données'!$G:$G,'Base de données'!$F:$F,H$31,'Base de données'!$B:$B,">="&Indicateurs!$A75,'Base de données'!$B:$B,"<"&(Indicateurs!$B75+1))/3600 -> 0 | L75: =_xlfn.XLOOKUP(H$31,article,objectifHebdo,0,0)*Paramètres!$K$2 -> 9500 | M75: =SUMIFS('Base de données'!$C:$C,'Base de données'!$F:$F,M$31,'Base de données'!$B:$B,">="&Indicateurs!$A75,'Base de données'!$B:$B,"<"&(Indicateurs!$B75+1)) -> 0 | N75: =SUMIFS('Base de données'!$D:$D,'Base de données'!$F:$F,M$31,'Base de données'!$B:$B,">="&Indicateurs!$A75,'Base de données'!$B:$B,"<"&(Indicateurs!$B75+1)) -> 0 | O75: =_xlfn.XLOOKUP(M$31,article,tpsTheorique,0,0)*SUM($M75:$N75)/3600 -> 0 | P75: =SUMIFS('Base de données'!$G:$G,'Base de données'!$F:$F,M$31,'Base de données'!$B:$B,">="&Indicateurs!$A75,'Base de données'!$B:$B,"<"&(Indicateurs!$B75+1))/3600 -> 0 | Q75: =_xlfn.XLOOKUP(M$31,article,objectifHebdo,0,0)*Paramètres!$K$2 -> 17000 | R75: =SUMIFS('Base de données'!$C:$C,'Base de données'!$F:$F,R$31,'Base de données'!$B:$B,">="&Indicateurs!$A75,'Base de données'!$B:$B,"<"&(Indicateurs!$B75+1)) -> 0 | S75: =SUMIFS('Base de données'!$D:$D,'Base de données'!$F:$F,R$31,'Base de données'!$B:$B,">="&Indicateurs!$A75,'Base de données'!$B:$B,"<"&(Indicateurs!$B75+1)) -> 0 | T75: =_xlfn.XLOOKUP(R$31,article,tpsTheorique,0,0)*SUM($R75:$S75)/3600 -> 0 | U75: =SUMIFS('Base de données'!$G:$G,'Base de données'!$F:$F,R$31,'Base de données'!$B:$B,">="&Indicateurs!$A75,'Base de données'!$B:$B,"<"&(Indicateurs!$B75+1))/3600 -> 0 | V75: =_xlfn.XLOOKUP(R$31,article,objectifHebdo,0,0)*Paramètres!$K$2 -> 17500 | W75: =SUMIFS('Base de données'!$C:$C,'Base de données'!$F:$F,W$31,'Base de données'!$B:$B,">="&Indicateurs!$A75,'Base de données'!$B:$B,"<"&(Indicateurs!$B75+1)) -> 0 | X75: =SUMIFS('Base de données'!$D:$D,'Base de données'!$F:$F,W$31,'Base de données'!$B:$B,">="&Indicateurs!$A75,'Base de données'!$B:$B,"<"&(Indicateurs!$B75+1)) -> 0 | Y75: =_xlfn.XLOOKUP(W$31,article,tpsTheorique,0,0)*SUM($W75:$X75)/3600 -> 0 | Z75: =SUMIFS('Base de données'!$G:$G,'Base de données'!$F:$F,W$31,'Base de données'!$B:$B,">="&Indicateurs!$A75,'Base de données'!$B:$B,"<"&(Indicateurs!$B75+1))/3600 -> 0 | AA75: =_xlfn.XLOOKUP(W$31,article,objectifHebdo,0,0)*Paramètres!$K$2 -> 8500
A76: =IF(COUNTA($A$32:A75)<Paramètres!$K$3,Indicateurs!A75+7,"") ->  | F76: 0 | H76: =SUMIFS('Base de données'!$C:$C,'Base de données'!$F:$F,H$31,'Base de données'!$B:$B,">="&Indicateurs!$A76,'Base de données'!$B:$B,"<"&(Indicateurs!$B76+1)) -> 0 | I76: =SUMIFS('Base de données'!$D:$D,'Base de données'!$F:$F,H$31,'Base de données'!$B:$B,">="&Indicateurs!$A76,'Base de données'!$B:$B,"<"&(Indicateurs!$B76+1)) -> 0 | J76: =_xlfn.XLOOKUP(H$31,article,tpsTheorique,0,0)*SUM($H76:$I76)/3600 -> 0 | K76: =SUMIFS('Base de données'!$G:$G,'Base de données'!$F:$F,H$31,'Base de données'!$B:$B,">="&Indicateurs!$A76,'Base de données'!$B:$B,"<"&(Indicateurs!$B76+1))/3600 -> 0 | L76: =_xlfn.XLOOKUP(H$31,article,objectifHebdo,0,0)*Paramètres!$K$2 -> 9500 | M76: =SUMIFS('Base de données'!$C:$C,'Base de données'!$F:$F,M$31,'Base de données'!$B:$B,">="&Indicateurs!$A76,'Base de données'!$B:$B,"<"&(Indicateurs!$B76+1)) -> 0 | N76: =SUMIFS('Base de données'!$D:$D,'Base de données'!$F:$F,M$31,'Base de données'!$B:$B,">="&Indicateurs!$A76,'Base de données'!$B:$B,"<"&(Indicateurs!$B76+1)) -> 0 | O76: =_xlfn.XLOOKUP(M$31,article,tpsTheorique,0,0)*SUM($M76:$N76)/3600 -> 0 | P76: =SUMIFS('Base de données'!$G:$G,'Base de données'!$F:$F,M$31,'Base de données'!$B:$B,">="&Indicateurs!$A76,'Base de données'!$B:$B,"<"&(Indicateurs!$B76+1))/3600 -> 0 | Q76: =_xlfn.XLOOKUP(M$31,article,objectifHebdo,0,0)*Paramètres!$K$2 -> 17000 | R76: =SUMIFS('Base de données'!$C:$C,'Base de données'!$F:$F,R$31,'Base de données'!$B:$B,">="&Indicateurs!$A76,'Base de données'!$B:$B,"<"&(Indicateurs!$B76+1)) -> 0 | S76: =SUMIFS('Base de données'!$D:$D,'Base de données'!$F:$F,R$31,'Base de données'!$B:$B,">="&Indicateurs!$A76,'Base de données'!$B:$B,"<"&(Indicateurs!$B76+1)) -> 0 | T76: =_xlfn.XLOOKUP(R$31,article,tpsTheorique,0,0)*SUM($R76:$S76)/3600 -> 0 | U76: =SUMIFS('Base de données'!$G:$G,'Base de données'!$F:$F,R$31,'Base de données'!$B:$B,">="&Indicateurs!$A76,'Base de données'!$B:$B,"<"&(Indicateurs!$B76+1))/3600 -> 0 | V76: =_xlfn.XLOOKUP(R$31,article,objectifHebdo,0,0)*Paramètres!$K$2 -> 17500 | W76: =SUMIFS('Base de données'!$C:$C,'Base de données'!$F:$F,W$31,'Base de données'!$B:$B,">="&Indicateurs!$A76,'Base de données'!$B:$B,"<"&(Indicateurs!$B76+1)) -> 0 | X76: =SUMIFS('Base de données'!$D:$D,'Base de données'!$F:$F,W$31,'Base de données'!$B:$B,">="&Indicateurs!$A76,'Base de données'!$B:$B,"<"&(Indicateurs!$B76+1)) -> 0 | Y76: =_xlfn.XLOOKUP(W$31,article,tpsTheorique,0,0)*SUM($W76:$X76)/3600 -> 0 | Z76: =SUMIFS('Base de données'!$G:$G,'Base de données'!$F:$F,W$31,'Base de données'!$B:$B,">="&Indicateurs!$A76,'Base de données'!$B:$B,"<"&(Indicateurs!$B76+1))/3600 -> 0 | AA76: =_xlfn.XLOOKUP(W$31,article,objectifHebdo,0,0)*Paramètres!$K$2 -> 8500
A77: =IF(COUNTA($A$32:A76)<Paramètres!$K$3,Indicateurs!A76+7,"") ->  | F77: 0 | H77: =SUMIFS('Base de données'!$C:$C,'Base de données'!$F:$F,H$31,'Base de données'!$B:$B,">="&Indicateurs!$A77,'Base de données'!$B:$B,"<"&(Indicateurs!$B77+1)) -> 0 | I77: =SUMIFS('Base de données'!$D:$D,'Base de données'!$F:$F,H$31,'Base de données'!$B:$B,">="&Indicateurs!$A77,'Base de données'!$B:$B,"<"&(Indicateurs!$B77+1)) -> 0 | J77: =_xlfn.XLOOKUP(H$31,article,tpsTheorique,0,0)*SUM($H77:$I77)/3600 -> 0 | K77: =SUMIFS('Base de données'!$G:$G,'Base de données'!$F:$F,H$31,'Base de données'!$B:$B,">="&Indicateurs!$A77,'Base de données'!$B:$B,"<"&(Indicateurs!$B77+1))/3600 -> 0 | L77: =_xlfn.XLOOKUP(H$31,article,objectifHebdo,0,0)*Paramètres!$K$2 -> 9500 | M77: =SUMIFS('Base de données'!$C:$C,'Base de données'!$F:$F,M$31,'Base de données'!$B:$B,">="&Indicateurs!$A77,'Base de données'!$B:$B,"<"&(Indicateurs!$B77+1)) -> 0 | N77: =SUMIFS('Base de données'!$D:$D,'Base de données'!$F:$F,M$31,'Base de données'!$B:$B,">="&Indicateurs!$A77,'Base de données'!$B:$B,"<"&(Indicateurs!$B77+1)) -> 0 | O77: =_xlfn.XLOOKUP(M$31,article,tpsTheorique,0,0)*SUM($M77:$N77)/3600 -> 0 | P77: =SUMIFS('Base de données'!$G:$G,'Base de données'!$F:$F,M$31,'Base de données'!$B:$B,">="&Indicateurs!$A77,'Base de données'!$B:$B,"<"&(Indicateurs!$B77+1))/3600 -> 0 | Q77: =_xlfn.XLOOKUP(M$31,article,objectifHebdo,0,0)*Paramètres!$K$2 -> 17000 | R77: =SUMIFS('Base de données'!$C:$C,'Base de données'!$F:$F,R$31,'Base de données'!$B:$B,">="&Indicateurs!$A77,'Base de données'!$B:$B,"<"&(Indicateurs!$B77+1)) -> 0 | S77: =SUMIFS('Base de données'!$D:$D,'Base de données'!$F:$F,R$31,'Base de données'!$B:$B,">="&Indicateurs!$A77,'Base de données'!$B:$B,"<"&(Indicateurs!$B77+1)) -> 0 | T77: =_xlfn.XLOOKUP(R$31,article,tpsTheorique,0,0)*SUM($R77:$S77)/3600 -> 0 | U77: =SUMIFS('Base de données'!$G:$G,'Base de données'!$F:$F,R$31,'Base de données'!$B:$B,">="&Indicateurs!$A77,'Base de données'!$B:$B,"<"&(Indicateurs!$B77+1))/3600 -> 0 | V77: =_xlfn.XLOOKUP(R$31,article,objectifHebdo,0,0)*Paramètres!$K$2 -> 17500 | W77: =SUMIFS('Base de données'!$C:$C,'Base de données'!$F:$F,W$31,'Base de données'!$B:$B,">="&Indicateurs!$A77,'Base de données'!$B:$B,"<"&(Indicateurs!$B77+1)) -> 0 | X77: =SUMIFS('Base de données'!$D:$D,'Base de données'!$F:$F,W$31,'Base de données'!$B:$B,">="&Indicateurs!$A77,'Base de données'!$B:$B,"<"&(Indicateurs!$B77+1)) -> 0 | Y77: =_xlfn.XLOOKUP(W$31,article,tpsTheorique,0,0)*SUM($W77:$X77)/3600 -> 0 | Z77: =SUMIFS('Base de données'!$G:$G,'Base de données'!$F:$F,W$31,'Base de données'!$B:$B,">="&Indicateurs!$A77,'Base de données'!$B:$B,"<"&(Indicateurs!$B77+1))/3600 -> 0 | AA77: =_xlfn.XLOOKUP(W$31,article,objectifHebdo,0,0)*Paramètres!$K$2 -> 8500
A78: =IF(COUNTA($A$32:A77)<Paramètres!$K$3,Indicateurs!A77+7,"") ->  | F78: 0 | H78: =SUMIFS('Base de données'!$C:$C,'Base de données'!$F:$F,H$31,'Base de données'!$B:$B,">="&Indicateurs!$A78,'Base de données'!$B:$B,"<"&(Indicateurs!$B78+1)) -> 0 | I78: =SUMIFS('Base de données'!$D:$D,'Base de données'!$F:$F,H$31,'Base de données'!$B:$B,">="&Indicateurs!$A78,'Base de données'!$B:$B,"<"&(Indicateurs!$B78+1)) -> 0 | J78: =_xlfn.XLOOKUP(H$31,article,tpsTheorique,0,0)*SUM($H78:$I78)/3600 -> 0 | K78: =SUMIFS('Base de données'!$G:$G,'Base de données'!$F:$F,H$31,'Base de données'!$B:$B,">="&Indicateurs!$A78,'Base de données'!$B:$B,"<"&(Indicateurs!$B78+1))/3600 -> 0 | L78: =_xlfn.XLOOKUP(H$31,article,objectifHebdo,0,0)*Paramètres!$K$2 -> 9500 | M78: =SUMIFS('Base de données'!$C:$C,'Base de données'!$F:$F,M$31,'Base de données'!$B:$B,">="&Indicateurs!$A78,'Base de données'!$B:$B,"<"&(Indicateurs!$B78+1)) -> 0 | N78: =SUMIFS('Base de données'!$D:$D,'Base de données'!$F:$F,M$31,'Base de données'!$B:$B,">="&Indicateurs!$A78,'Base de données'!$B:$B,"<"&(Indicateurs!$B78+1)) -> 0 | O78: =_xlfn.XLOOKUP(M$31,article,tpsTheorique,0,0)*SUM($M78:$N78)/3600 -> 0 | P78: =SUMIFS('Base de données'!$G:$G,'Base de données'!$F:$F,M$31,'Base de données'!$B:$B,">="&Indicateurs!$A78,'Base de données'!$B:$B,"<"&(Indicateurs!$B78+1))/3600 -> 0 | Q78: =_xlfn.XLOOKUP(M$31,article,objectifHebdo,0,0)*Paramètres!$K$2 -> 17000 | R78: =SUMIFS('Base de données'!$C:$C,'Base de données'!$F:$F,R$31,'Base de données'!$B:$B,">="&Indicateurs!$A78,'Base de données'!$B:$B,"<"&(Indicateurs!$B78+1)) -> 0 | S78: =SUMIFS('Base de données'!$D:$D,'Base de données'!$F:$F,R$31,'Base de données'!$B:$B,">="&Indicateurs!$A78,'Base de données'!$B:$B,"<"&(Indicateurs!$B78+1)) -> 0 | T78: =_xlfn.XLOOKUP(R$31,article,tpsTheorique,0,0)*SUM($R78:$S78)/3600 -> 0 | U78: =SUMIFS('Base de données'!$G:$G,'Base de données'!$F:$F,R$31,'Base de données'!$B:$B,">="&Indicateurs!$A78,'Base de données'!$B:$B,"<"&(Indicateurs!$B78+1))/3600 -> 0 | V78: =_xlfn.XLOOKUP(R$31,article,objectifHebdo,0,0)*Paramètres!$K$2 -> 17500 | W78: =SUMIFS('Base de données'!$C:$C,'Base de données'!$F:$F,W$31,'Base de données'!$B:$B,">="&Indicateurs!$A78,'Base de données'!$B:$B,"<"&(Indicateurs!$B78+1)) -> 0 | X78: =SUMIFS('Base de données'!$D:$D,'Base de données'!$F:$F,W$31,'Base de données'!$B:$B,">="&Indicateurs!$A78,'Base de données'!$B:$B,"<"&(Indicateurs!$B78+1)) -> 0 | Y78: =_xlfn.XLOOKUP(W$31,article,tpsTheorique,0,0)*SUM($W78:$X78)/3600 -> 0 | Z78: =SUMIFS('Base de données'!$G:$G,'Base de données'!$F:$F,W$31,'Base de données'!$B:$B,">="&Indicateurs!$A78,'Base de données'!$B:$B,"<"&(Indicateurs!$B78+1))/3600 -> 0 | AA78: =_xlfn.XLOOKUP(W$31,article,objectifHebdo,0,0)*Paramètres!$K$2 -> 8500
A79: =IF(COUNTA($A$32:A78)<Paramètres!$K$3,Indicateurs!A78+7,"") ->  | F79: 0 | H79: =SUMIFS('Base de données'!$C:$C,'Base de données'!$F:$F,H$31,'Base de données'!$B:$B,">="&Indicateurs!$A79,'Base de données'!$B:$B,"<"&(Indicateurs!$B79+1)) -> 0 | I79: =SUMIFS('Base de données'!$D:$D,'Base de données'!$F:$F,H$31,'Base de données'!$B:$B,">="&Indicateurs!$A79,'Base de données'!$B:$B,"<"&(Indicateurs!$B79+1)) -> 0 | J79: =_xlfn.XLOOKUP(H$31,article,tpsTheorique,0,0)*SUM($H79:$I79)/3600 -> 0 | K79: =SUMIFS('Base de données'!$G:$G,'Base de données'!$F:$F,H$31,'Base de données'!$B:$B,">="&Indicateurs!$A79,'Base de données'!$B:$B,"<"&(Indicateurs!$B79+1))/3600 -> 0 | L79: =_xlfn.XLOOKUP(H$31,article,objectifHebdo,0,0)*Paramètres!$K$2 -> 9500 | M79: =SUMIFS('Base de données'!$C:$C,'Base de données'!$F:$F,M$31,'Base de données'!$B:$B,">="&Indicateurs!$A79,'Base de données'!$B:$B,"<"&(Indicateurs!$B79+1)) -> 0 | N79: =SUMIFS('Base de données'!$D:$D,'Base de données'!$F:$F,M$31,'Base de données'!$B:$B,">="&Indicateurs!$A79,'Base de données'!$B:$B,"<"&(Indicateurs!$B79+1)) -> 0 | O79: =_xlfn.XLOOKUP(M$31,article,tpsTheorique,0,0)*SUM($M79:$N79)/3600 -> 0 | P79: =SUMIFS('Base de données'!$G:$G,'Base de données'!$F:$F,M$31,'Base de données'!$B:$B,">="&Indicateurs!$A79,'Base de données'!$B:$B,"<"&(Indicateurs!$B79+1))/3600 -> 0 | Q79: =_xlfn.XLOOKUP(M$31,article,objectifHebdo,0,0)*Paramètres!$K$2 -> 17000 | R79: =SUMIFS('Base de données'!$C:$C,'Base de données'!$F:$F,R$31,'Base de données'!$B:$B,">="&Indicateurs!$A79,'Base de données'!$B:$B,"<"&(Indicateurs!$B79+1)) -> 0 | S79: =SUMIFS('Base de données'!$D:$D,'Base de données'!$F:$F,R$31,'Base de données'!$B:$B,">="&Indicateurs!$A79,'Base de données'!$B:$B,"<"&(Indicateurs!$B79+1)) -> 0 | T79: =_xlfn.XLOOKUP(R$31,article,tpsTheorique,0,0)*SUM($R79:$S79)/3600 -> 0 | U79: =SUMIFS('Base de données'!$G:$G,'Base de données'!$F:$F,R$31,'Base de données'!$B:$B,">="&Indicateurs!$A79,'Base de données'!$B:$B,"<"&(Indicateurs!$B79+1))/3600 -> 0 | V79: =_xlfn.XLOOKUP(R$31,article,objectifHebdo,0,0)*Paramètres!$K$2 -> 17500 | W79: =SUMIFS('Base de données'!$C:$C,'Base de données'!$F:$F,W$31,'Base de données'!$B:$B,">="&Indicateurs!$A79,'Base de données'!$B:$B,"<"&(Indicateurs!$B79+1)) -> 0 | X79: =SUMIFS('Base de données'!$D:$D,'Base de données'!$F:$F,W$31,'Base de données'!$B:$B,">="&Indicateurs!$A79,'Base de données'!$B:$B,"<"&(Indicateurs!$B79+1)) -> 0 | Y79: =_xlfn.XLOOKUP(W$31,article,tpsTheorique,0,0)*SUM($W79:$X79)/3600 -> 0 | Z79: =SUMIFS('Base de données'!$G:$G,'Base de données'!$F:$F,W$31,'Base de données'!$B:$B,">="&Indicateurs!$A79,'Base de données'!$B:$B,"<"&(Indicateurs!$B79+1))/3600 -> 0 | AA79: =_xlfn.XLOOKUP(W$31,article,objectifHebdo,0,0)*Paramètres!$K$2 -> 8500
A80: =IF(COUNTA($A$32:A79)<Paramètres!$K$3,Indicateurs!A79+7,"") ->  | F80: 0 | H80: =SUMIFS('Base de données'!$C:$C,'Base de données'!$F:$F,H$31,'Base de données'!$B:$B,">="&Indicateurs!$A80,'Base de données'!$B:$B,"<"&(Indicateurs!$B80+1)) -> 0 | I80: =SUMIFS('Base de données'!$D:$D,'Base de données'!$F:$F,H$31,'Base de données'!$B:$B,">="&Indicateurs!$A80,'Base de données'!$B:$B,"<"&(Indicateurs!$B80+1)) -> 0 | J80: =_xlfn.XLOOKUP(H$31,article,tpsTheorique,0,0)*SUM($H80:$I80)/3600 -> 0 | K80: =SUMIFS('Base de données'!$G:$G,'Base de données'!$F:$F,H$31,'Base de données'!$B:$B,">="&Indicateurs!$A80,'Base de données'!$B:$B,"<"&(Indicateurs!$B80+1))/3600 -> 0 | L80: =_xlfn.XLOOKUP(H$31,article,objectifHebdo,0,0)*Paramètres!$K$2 -> 9500 | M80: =SUMIFS('Base de données'!$C:$C,'Base de données'!$F:$F,M$31,'Base de données'!$B:$B,">="&Indicateurs!$A80,'Base de données'!$B:$B,"<"&(Indicateurs!$B80+1)) -> 0 | N80: =SUMIFS('Base de données'!$D:$D,'Base de données'!$F:$F,M$31,'Base de données'!$B:$B,">="&Indicateurs!$A80,'Base de données'!$B:$B,"<"&(Indicateurs!$B80+1)) -> 0 | O80: =_xlfn.XLOOKUP(M$31,article,tpsTheorique,0,0)*SUM($M80:$N80)/3600 -> 0 | P80: =SUMIFS('Base de données'!$G:$G,'Base de données'!$F:$F,M$31,'Base de données'!$B:$B,">="&Indicateurs!$A80,'Base de données'!$B:$B,"<"&(Indicateurs!$B80+1))/3600 -> 0 | Q80: =_xlfn.XLOOKUP(M$31,article,objectifHebdo,0,0)*Paramètres!$K$2 -> 17000 | R80: =SUMIFS('Base de données'!$C:$C,'Base de données'!$F:$F,R$31,'Base de données'!$B:$B,">="&Indicateurs!$A80,'Base de données'!$B:$B,"<"&(Indicateurs!$B80+1)) -> 0 | S80: =SUMIFS('Base de données'!$D:$D,'Base de données'!$F:$F,R$31,'Base de données'!$B:$B,">="&Indicateurs!$A80,'Base de données'!$B:$B,"<"&(Indicateurs!$B80+1)) -> 0 | T80: =_xlfn.XLOOKUP(R$31,article,tpsTheorique,0,0)*SUM($R80:$S80)/3600 -> 0 | U80: =SUMIFS('Base de données'!$G:$G,'Base de données'!$F:$F,R$31,'Base de données'!$B:$B,">="&Indicateurs!$A80,'Base de données'!$B:$B,"<"&(Indicateurs!$B80+1))/3600 -> 0 | V80: =_xlfn.XLOOKUP(R$31,article,objectifHebdo,0,0)*Paramètres!$K$2 -> 17500 | W80: =SUMIFS('Base de données'!$C:$C,'Base de données'!$F:$F,W$31,'Base de données'!$B:$B,">="&Indicateurs!$A80,'Base de données'!$B:$B,"<"&(Indicateurs!$B80+1)) -> 0 | X80: =SUMIFS('Base de données'!$D:$D,'Base de données'!$F:$F,W$31,'Base de données'!$B:$B,">="&Indicateurs!$A80,'Base de données'!$B:$B,"<"&(Indicateurs!$B80+1)) -> 0 | Y80: =_xlfn.XLOOKUP(W$31,article,tpsTheorique,0,0)*SUM($W80:$X80)/3600 -> 0 | Z80: =SUMIFS('Base de données'!$G:$G,'Base de données'!$F:$F,W$31,'Base de données'!$B:$B,">="&Indicateurs!$A80,'Base de données'!$B:$B,"<"&(Indicateurs!$B80+1))/3600 -> 0 | AA80: =_xlfn.XLOOKUP(W$31,article,objectifHebdo,0,0)*Paramètres!$K$2 -> 8500
A81: =IF(COUNTA($A$32:A80)<Paramètres!$K$3,Indicateurs!A80+7,"") ->  | F81: 0 | H81: =SUMIFS('Base de données'!$C:$C,'Base de données'!$F:$F,H$31,'Base de données'!$B:$B,">="&Indicateurs!$A81,'Base de données'!$B:$B,"<"&(Indicateurs!$B81+1)) -> 0 | I81: =SUMIFS('Base de données'!$D:$D,'Base de données'!$F:$F,H$31,'Base de données'!$B:$B,">="&Indicateurs!$A81,'Base de données'!$B:$B,"<"&(Indicateurs!$B81+1)) -> 0 | J81: =_xlfn.XLOOKUP(H$31,article,tpsTheorique,0,0)*SUM($H81:$I81)/3600 -> 0 | K81: =SUMIFS('Base de données'!$G:$G,'Base de données'!$F:$F,H$31,'Base de données'!$B:$B,">="&Indicateurs!$A81,'Base de données'!$B:$B,"<"&(Indicateurs!$B81+1))/3600 -> 0 | L81: =_xlfn.XLOOKUP(H$31,article,objectifHebdo,0,0)*Paramètres!$K$2 -> 9500 | M81: =SUMIFS('Base de données'!$C:$C,'Base de données'!$F:$F,M$31,'Base de données'!$B:$B,">="&Indicateurs!$A81,'Base de données'!$B:$B,"<"&(Indicateurs!$B81+1)) -> 0 | N81: =SUMIFS('Base de données'!$D:$D,'Base de données'!$F:$F,M$31,'Base de données'!$B:$B,">="&Indicateurs!$A81,'Base de données'!$B:$B,"<"&(Indicateurs!$B81+1)) -> 0 | O81: =_xlfn.XLOOKUP(M$31,article,tpsTheorique,0,0)*SUM($M81:$N81)/3600 -> 0 | P81: =SUMIFS('Base de données'!$G:$G,'Base de données'!$F:$F,M$31,'Base de données'!$B:$B,">="&Indicateurs!$A81,'Base de données'!$B:$B,"<"&(Indicateurs!$B81+1))/3600 -> 0 | Q81: =_xlfn.XLOOKUP(M$31,article,objectifHebdo,0,0)*Paramètres!$K$2 -> 17000 | R81: =SUMIFS('Base de données'!$C:$C,'Base de données'!$F:$F,R$31,'Base de données'!$B:$B,">="&Indicateurs!$A81,'Base de données'!$B:$B,"<"&(Indicateurs!$B81+1)) -> 0 | S81: =SUMIFS('Base de données'!$D:$D,'Base de données'!$F:$F,R$31,'Base de données'!$B:$B,">="&Indicateurs!$A81,'Base de données'!$B:$B,"<"&(Indicateurs!$B81+1)) -> 0 | T81: =_xlfn.XLOOKUP(R$31,article,tpsTheorique,0,0)*SUM($R81:$S81)/3600 -> 0 | U81: =SUMIFS('Base de données'!$G:$G,'Base de données'!$F:$F,R$31,'Base de données'!$B:$B,">="&Indicateurs!$A81,'Base de données'!$B:$B,"<"&(Indicateurs!$B81+1))/3600 -> 0 | V81: =_xlfn.XLOOKUP(R$31,article,objectifHebdo,0,0)*Paramètres!$K$2 -> 17500 | W81: =SUMIFS('Base de données'!$C:$C,'Base de données'!$F:$F,W$31,'Base de données'!$B:$B,">="&Indicateurs!$A81,'Base de données'!$B:$B,"<"&(Indicateurs!$B81+1)) -> 0 | X81: =SUMIFS('Base de données'!$D:$D,'Base de données'!$F:$F,W$31,'Base de données'!$B:$B,">="&Indicateurs!$A81,'Base de données'!$B:$B,"<"&(Indicateurs!$B81+1)) -> 0 | Y81: =_xlfn.XLOOKUP(W$31,article,tpsTheorique,0,0)*SUM($W81:$X81)/3600 -> 0 | Z81: =SUMIFS('Base de données'!$G:$G,'Base de données'!$F:$F,W$31,'Base de données'!$B:$B,">="&Indicateurs!$A81,'Base de données'!$B:$B,"<"&(Indicateurs!$B81+1))/3600 -> 0 | AA81: =_xlfn.XLOOKUP(W$31,article,objectifHebdo,0,0)*Paramètres!$K$2 -> 8500
A82: =IF(COUNTA($A$32:A81)<Paramètres!$K$3,Indicateurs!A81+7,"") ->  | F82: 0 | H82: =SUMIFS('Base de données'!$C:$C,'Base de données'!$F:$F,H$31,'Base de données'!$B:$B,">="&Indicateurs!$A82,'Base de données'!$B:$B,"<"&(Indicateurs!$B82+1)) -> 0 | I82: =SUMIFS('Base de données'!$D:$D,'Base de données'!$F:$F,H$31,'Base de données'!$B:$B,">="&Indicateurs!$A82,'Base de données'!$B:$B,"<"&(Indicateurs!$B82+1)) -> 0 | J82: =_xlfn.XLOOKUP(H$31,article,tpsTheorique,0,0)*SUM($H82:$I82)/3600 -> 0 | K82: =SUMIFS('Base de données'!$G:$G,'Base de données'!$F:$F,H$31,'Base de données'!$B:$B,">="&Indicateurs!$A82,'Base de données'!$B:$B,"<"&(Indicateurs!$B82+1))/3600 -> 0 | L82: =_xlfn.XLOOKUP(H$31,article,objectifHebdo,0,0)*Paramètres!$K$2 -> 9500 | M82: =SUMIFS('Base de données'!$C:$C,'Base de données'!$F:$F,M$31,'Base de données'!$B:$B,">="&Indicateurs!$A82,'Base de données'!$B:$B,"<"&(Indicateurs!$B82+1)) -> 0 | N82: =SUMIFS('Base de données'!$D:$D,'Base de données'!$F:$F,M$31,'Base de données'!$B:$B,">="&Indicateurs!$A82,'Base de données'!$B:$B,"<"&(Indicateurs!$B82+1)) -> 0 | O82: =_xlfn.XLOOKUP(M$31,article,tpsTheorique,0,0)*SUM($M82:$N82)/3600 -> 0 | P82: =SUMIFS('Base de données'!$G:$G,'Base de données'!$F:$F,M$31,'Base de données'!$B:$B,">="&Indicateurs!$A82,'Base de données'!$B:$B,"<"&(Indicateurs!$B82+1))/3600 -> 0 | Q82: =_xlfn.XLOOKUP(M$31,article,objectifHebdo,0,0)*Paramètres!$K$2 -> 17000 | R82: =SUMIFS('Base de données'!$C:$C,'Base de données'!$F:$F,R$31,'Base de données'!$B:$B,">="&Indicateurs!$A82,'Base de données'!$B:$B,"<"&(Indicateurs!$B82+1)) -> 0 | S82: =SUMIFS('Base de données'!$D:$D,'Base de données'!$F:$F,R$31,'Base de données'!$B:$B,">="&Indicateurs!$A82,'Base de données'!$B:$B,"<"&(Indicateurs!$B82+1)) -> 0 | T82: =_xlfn.XLOOKUP(R$31,article,tpsTheorique,0,0)*SUM($R82:$S82)/3600 -> 0 | U82: =SUMIFS('Base de données'!$G:$G,'Base de données'!$F:$F,R$31,'Base de données'!$B:$B,">="&Indicateurs!$A82,'Base de données'!$B:$B,"<"&(Indicateurs!$B82+1))/3600 -> 0 | V82: =_xlfn.XLOOKUP(R$31,article,objectifHebdo,0,0)*Paramètres!$K$2 -> 17500 | W82: =SUMIFS('Base de données'!$C:$C,'Base de données'!$F:$F,W$31,'Base de données'!$B:$B,">="&Indicateurs!$A82,'Base de données'!$B:$B,"<"&(Indicateurs!$B82+1)) -> 0 | X82: =SUMIFS('Base de données'!$D:$D,'Base de données'!$F:$F,W$31,'Base de données'!$B:$B,">="&Indicateurs!$A82,'Base de données'!$B:$B,"<"&(Indicateurs!$B82+1)) -> 0 | Y82: =_xlfn.XLOOKUP(W$31,article,tpsTheorique,0,0)*SUM($W82:$X82)/3600 -> 0 | Z82: =SUMIFS('Base de données'!$G:$G,'Base de données'!$F:$F,W$31,'Base de données'!$B:$B,">="&Indicateurs!$A82,'Base de données'!$B:$B,"<"&(Indicateurs!$B82+1))/3600 -> 0 | AA82: =_xlfn.XLOOKUP(W$31,article,objectifHebdo,0,0)*Paramètres!$K$2 -> 8500
A83: =IF(COUNTA($A$32:A82)<Paramètres!$K$3,Indicateurs!A82+7,"") ->  | F83: 0 | H83: =SUMIFS('Base de données'!$C:$C,'Base de données'!$F:$F,H$31,'Base de données'!$B:$B,">="&Indicateurs!$A83,'Base de données'!$B:$B,"<"&(Indicateurs!$B83+1)) -> 0 | I83: =SUMIFS('Base de données'!$D:$D,'Base de données'!$F:$F,H$31,'Base de données'!$B:$B,">="&Indicateurs!$A83,'Base de données'!$B:$B,"<"&(Indicateurs!$B83+1)) -> 0 | J83: =_xlfn.XLOOKUP(H$31,article,tpsTheorique,0,0)*SUM($H83:$I83)/3600 -> 0 | K83: =SUMIFS('Base de données'!$G:$G,'Base de données'!$F:$F,H$31,'Base de données'!$B:$B,">="&Indicateurs!$A83,'Base de données'!$B:$B,"<"&(Indicateurs!$B83+1))/3600 -> 0 | L83: =_xlfn.XLOOKUP(H$31,article,objectifHebdo,0,0)*Paramètres!$K$2 -> 9500 | M83: =SUMIFS('Base de données'!$C:$C,'Base de données'!$F:$F,M$31,'Base de données'!$B:$B,">="&Indicateurs!$A83,'Base de données'!$B:$B,"<"&(Indicateurs!$B83+1)) -> 0 | N83: =SUMIFS('Base de données'!$D:$D,'Base de données'!$F:$F,M$31,'Base de données'!$B:$B,">="&Indicateurs!$A83,'Base de données'!$B:$B,"<"&(Indicateurs!$B83+1)) -> 0 | O83: =_xlfn.XLOOKUP(M$31,article,tpsTheorique,0,0)*SUM($M83:$N83)/3600 -> 0 | P83: =SUMIFS('Base de données'!$G:$G,'Base de données'!$F:$F,M$31,'Base de données'!$B:$B,">="&Indicateurs!$A83,'Base de données'!$B:$B,"<"&(Indicateurs!$B83+1))/3600 -> 0 | Q83: =_xlfn.XLOOKUP(M$31,article,objectifHebdo,0,0)*Paramètres!$K$2 -> 17000 | R83: =SUMIFS('Base de données'!$C:$C,'Base de données'!$F:$F,R$31,'Base de données'!$B:$B,">="&Indicateurs!$A83,'Base de données'!$B:$B,"<"&(Indicateurs!$B83+1)) -> 0 | S83: =SUMIFS('Base de données'!$D:$D,'Base de données'!$F:$F,R$31,'Base de données'!$B:$B,">="&Indicateurs!$A83,'Base de données'!$B:$B,"<"&(Indicateurs!$B83+1)) -> 0 | T83: =_xlfn.XLOOKUP(R$31,article,tpsTheorique,0,0)*SUM($R83:$S83)/3600 -> 0 | U83: =SUMIFS('Base de données'!$G:$G,'Base de données'!$F:$F,R$31,'Base de données'!$B:$B,">="&Indicateurs!$A83,'Base de données'!$B:$B,"<"&(Indicateurs!$B83+1))/3600 -> 0 | V83: =_xlfn.XLOOKUP(R$31,article,objectifHebdo,0,0)*Paramètres!$K$2 -> 17500 | W83: =SUMIFS('Base de données'!$C:$C,'Base de données'!$F:$F,W$31,'Base de données'!$B:$B,">="&Indicateurs!$A83,'Base de données'!$B:$B,"<"&(Indicateurs!$B83+1)) -> 0 | X83: =SUMIFS('Base de données'!$D:$D,'Base de données'!$F:$F,W$31,'Base de données'!$B:$B,">="&Indicateurs!$A83,'Base de données'!$B:$B,"<"&(Indicateurs!$B83+1)) -> 0 | Y83: =_xlfn.XLOOKUP(W$31,article,tpsTheorique,0,0)*SUM($W83:$X83)/3600 -> 0 | Z83: =SUMIFS('Base de données'!$G:$G,'Base de données'!$F:$F,W$31,'Base de données'!$B:$B,">="&Indicateurs!$A83,'Base de données'!$B:$B,"<"&(Indicateurs!$B83+1))/3600 -> 0 | AA83: =_xlfn.XLOOKUP(W$31,article,objectifHebdo,0,0)*Paramètres!$K$2 -> 8500

Sheet Base de données
A1: ID Saisie | B1: Date de livraison réelle | C1: Qté bonne | D1: Qté Rebut | E1: Machine | F1: Article | G1: Tps Réel (s) | H1: Saisie par
A2: 1 | B2: 2023-12-30T02:40:16.407 | C2: 885 | D2: 32 | E2: 3 | F2: 655 | G2: 26099.1537 | H2: User 2
A3: 2 | B3: 2023-04-05T07:46:58.628 | C3: 931 | D3: 30 | E3: 2 | F3: 654 | G3: 24980.67654 | H3: User 3
A4: 3 | B4: 2023-05-02T14:02:35.351 | C4: 928 | D4: 4 | E4: 1 | F4: 653 | G4: 55600.95254 | H4: User 3
A5: 4 | B5: 2023-11-11T09:35:15.702 | C5: 912 | D5: 8 | E5: 3 | F5: 655 | G5: 35551.98333 | H5: User 2
A6: 5 | B6: 2023-07-06T00:22:45.862 | C6: 862 | D6: 71 | E6: 3 | F6: 656 | G6: 67324.75597 | H6: User 2
A7: 6 | B7: 2023-11-10T13:19:31.288 | C7: 969 | D7: 21 | E7: 2 | F7: 654 | G7: 34693.01323 | H7: User 1
A8: 7 | B8: 2023-06-06T04:15:56.719 | C8: 970 | D8: 17 | E8: 2 | F8: 654 | G8: 32343.52366 | H8: User 3
A9: 8 | B9: 2023-11-18T08:45:07.114 | C9: 901 | D9: 74 | E9: 3 | F9: 655 | G9: 32263.80185 | H9: User 4
A10: 9 | B10: 2023-07-06T05:10:42.170 | C10: 940 | D10: 56 | E10: 3 | F10: 655 | G10: 33875.42414 | H10: User 4
A11: 10 | B11: 2023-10-09T16:57:19.265 | C11: 974 | D11: 6 | E11: 3 | F11: 654 | G11: 27728.6203 | H11: User 2
A12: 11 | B12: 2023-09-07T12:03:13.805 | C12: 927 | D12: 23 | E12: 2 | F12: 655 | G12: 27633.56995 | H12: User 3
A13: 12 | B13: 2023-12-03T00:08:36.813 | C13: 922 | D13: 27 | E13: 4 | F13: 653 | G13: 52604.63229 | H13: User 2
A14: 13 | B14: 2023-08-03T17:49:55.514 | C14: 871 | D14: 29 | E14: 4 | F14: 656 | G14: 73012.69911 | H14: User 3
A15: 14 | B15: 2023-01-23T02:01:12.292 | C15: 969 | D15: 28 | E15: 3 | F15: 653 | G15: 66605.72397 | H15: User 1
A16: 15 | B16: 2023-11-25T06:18:59.756 | C16: 869 | D16: 78 | E16: 1 | F16: 654 | G16: 30976.62761 | H16: User 3
A17: 16 | B17: 2023-02-12T06:26:59.654 | C17: 958 | D17: 23 | E17: 2 | F17: 656 | G17: 63233.01665 | H17: User 1
A18: 17 | B18: 2023-04-08T08:34:02.640 | C18: 970 | D18: 8 | E18: 2 | F18: 654 | G18: 29725.43517 | H18: User 2
A19: 18 | B19: 2023-11-27T16:10:15.253 | C19: 925 | D19: 19 | E19: 2 | F19: 654 | G19: 30730.8243 | H19: User 4
A20: 19 | B20: 2023-10-07T01:14:08.280 | C20: 965 | D20: 16 | E20: 3 | F20: 655 | G20: 30200.66786 | H20: User 2
A21: 20 | B21: 2023-02-24T23:59:04.627 | C21: 912 | D21: 23 | E21: 4 | F21: 654 | G21: 30440.61392 | H21: User 3
A22: 21 | B22: 2023-09-17T19:12:03.692 | C22: 919 | D22: 54 | E22: 2 | F22: 656 | G22: 69043.17241 | H22: User 4
A23: 22 | B23: 2023-08-06T14:37:02.602 | C23: 962 | D23: 26 | E23: 3 | F23: 655 | G23: 30046.31984 | H23: User 4
A24: 23 | B24: 2023-07-27T04:00:15.381 | C24: 898 | D24: 35 | E24: 2 | F24: 655 | G24: 25423.93815 | H24: User 1
A25: 24 | B25: 2023-04-07T21:38:11.049 | C25: 931 | D25: 5 | E25: 4 | F25: 653 | G25: 52474.7514 | H25: User 4
A26: 25 | B26: 2023-05-25T05:07:37.595 | C26: 885 | D26: 58 | E26: 3 | F26: 653 | G26: 54896.98521 | H26: User 3
A27: 26 | B27: 2023-09-05T12:19:50.515 | C27: 871 | D27: 72 | E27: 2 | F27: 654 | G27: 38337.98969 | H27: User 3
A28: 27 | B28: 2023-04-18T11:10:56.014 | C28: 914 | D28: 61 | E28: 4 | F28: 656 | G28: 60894.54824 | H28: User 2
A29: 28 | B29: 2023-02-01T09:42:20.226 | C29: 886 | D29: 23 | E29: 3 | F29: 656 | G29: 59844.52774 | H29: User 4
A30: 29 | B30: 2023-03-12T03:38:24.892 | C30: 882 | D30: 48 | E30: 2 | F30: 655 | G30: 32284.23297 | H30: User 3
A31: 30 | B31: 2023-10-06T03:06:25.302 | C31: 981 | D31: 2 | E31: 4 | F31: 654 | G31: 32339.59146 | H31: User 2
A32: 31 | B32: 2023-11-20T16:44:24.046 | C32: 907 | D32: 20 | E32: 3 | F32: 655 | G32: 31354.71252 | H32: User 3
A33: 32 | B33: 2023-12-17T07:32:12.664 | C33: 895 | D33: 64 | E33: 1 | F33: 655 | G33: 37685.04534 | H33: User 1
A34: 33 | B34: 2023-12-30T07:12:12.920 | C34: 950 | D34: 21 | E34: 3 | F34: 655 | G34: 34219.73459 | H34: User 2
A35: 34 | B35: 2023-10-27T11:47:50.925 | C35: 908 | D35: 34 | E35: 3 | F35: 655 | G35: 31342.48335 | H35: User 2
A36: 35 | B36: 2023-12-17T14:28:07.332 | C36: 956 | D36: 35 | E36: 4 | F36: 655 | G36: 35150.58523 | H36: User 2
A37: 36 | B37: 2023-12-19T20:03:26.110 | C37: 951 | D37: 46 | E37: 4 | F37: 656 | G37: 65261.39803 | H37: User 2
A38: 37 | B38: 2023-05-10T11:20:09.742 | C38: 898 | D38: 37 | E38: 4 | F38: 655 | G38: 30828.11382 | H38: User 3
A39: 38 | B39: 2023-06-03T07:12:49.836 | C39: 931 | D39: 36 | E39: 2 | F39: 656 | G39: 57617.01838 | H39: User 3
A40: 39 | B40: 2023-09-25T05:17:46.695 | C40: 874 | D40: 58 | E40: 3 | F40: 655 | G40: 33610.18073 | H40: User 2
A41: 40 | B41: 2023-03-21T07:35:35.698 | C41: 889 | D41: 39 | E41: 2 | F41: 655 | G41: 23279.69684 | H41: User 3
A42: 41 | B42: 2023-02-23T09:03:34.570 | C42: 893 | D42: 22 | E42: 3 | F42: 654 | G42: 34695.06035 | H42: User 1
A43: 42 | B43: 2023-10-10T12:57:03.884 | C43: 937 | D43: 41 | E43: 2 | F43: 654 | G43: 27070.10501 | H43: User 1
A44: 43 | B44: 2023-06-21T17:15:09.806 | C44: 837 | D44: 72 | E44: 2 | F44: 654 | G44: 26869.22202 | H44: User 1
A45: 44 | B45: 2023-08-21T03:04:34.557 | C45: 857 | D45: 74 | E45: 2 | F45: 654 | G45: 32554.5535 | H45: User 2
A46: 45 | B46: 2023-11-12T03:43:01.756 | C46: 902 | D46: 61 | E46: 2 | F46: 655 | G46: 30616.66738 | H46: User 2
A47: 46 | B47: 2023-01-19T22:18:10.536 | C47: 907 | D47: 19 | E47: 3 | F47: 656 | G47: 67519.89259 | H47: User 4
A48: 47 | B48: 2023-03-28T05:25:28.135 | C48: 914 | D48: 46 | E48: 2 | F48: 654 | G48: 33607.80763 | H48: User 3
A49: 48 | B49: 2023-11-19T20:12:39.838 | C49: 907 | D49: 19 | E49: 2 | F49: 655 | G49: 29303.34081 | H49: User 3
A50: 49 | B50: 2023-07-08T10:30:01.154 | C50: 876 | D50: 78 | E50: 4 | F50: 653 | G50: 66095.81151 | H50: User 3
A51: 50 | B51: 2023-10-18T12:54:36.223 | C51: 882 | D51: 47 | E51: 3 | F51: 653 | G51: 57937.41714 | H51: User 3
A52: 51 | B52: 2023-03-11T19:38:31.045 | C52: 926 | D52: 10 | E52: 2 | F52: 655 | G52: 29639.99604 | H52: User 3
A53: 52 | B53: 2023-07-18T11:46:55.552 | C53: 953 | D53: 12 | E53: 2 | F53: 655 | G53: 37062.88174 | H53: User 3
A54: 53 | B54: 2023-08-30T02:13:49.054 | C54: 912 | D54: 72 | E54: 1 | F54: 653 | G54: 52865.06077 | H54: User 1
A55: 54 | B55: 2023-12-07T21:43:06.370 | C55: 930 | D55: 8 | E55: 4 | F55: 654 | G55: 30958.50501 | H55: User 3
A56: 55 | B56: 2023-04-07T09:38:20.278 | C56: 941 | D56: 22 | E56: 3 | F56: 656 | G56: 60392.25917 | H56: User 1
A57: 56 | B57: 2023-03-31T18:28:22.713 | C57: 905 | D57: 37 | E57: 1 | F57: 656 | G57: 64228.07606 | H57: User 2
A58: 57 | B58: 2023-08-23T01:43:58.667 | C58: 959 | D58: 32 | E58: 1 | F58: 653 | G58: 56282.69501 | H58: User 2
A59: 58 | B59: 2023-03-16T00:25:13.523 | C59: 930 | D59: 14 | E59: 4 | F59: 654 | G59: 30512.69231 | H59: User 1
A60: 59 | B60: 2023-06-13T09:49:43.209 | C60: 956 | D60: 24 | E60: 2 | F60: 656 | G60: 76831.04073 | H60: User 2
A61: 60 | B61: 2023-11-27T02:02:26.123 | C61: 888 | D61: 17 | E61: 2 | F61: 655 | G61: 31711.51792 | H61: User 4
A62: 61 | B62: 2023-07-11T19:16:59.013 | C62: 910 | D62: 1 | E62: 2 | F62: 656 | G62: 61535.58645 | H62: User 1
A63: 62 | B63: 2023-06-14T16:45:19.419 | C63: 948 | D63: 32 | E63: 1 | F63: 655 | G63: 35999.61838 | H63: User 4
A64: 63 | B64: 2023-07-08T03:50:06.281 | C64: 956 | D64: 35 | E64: 4 | F64: 656 | G64: 60643.02337 | H64: User 2
A65: 64 | B65: 2023-09-14T07:13:08.293 | C65: 904 | D65: 56 | E65: 4 | F65: 654 | G65: 31965.82861 | H65: User 3
A66: 65 | B66: 2023-10-15T09:27:34.262 | C66: 893 | D66: 45 | E66: 2 | F66: 655 | G66: 32307.39599 | H66: User 3
A67: 66 | B67: 2023-09-22T10:06:38.376 | C67: 949 | D67: 20 | E67: 3 | F67: 654 | G67: 31751.19649 | H67: User 2
A68: 67 | B68: 2023-06-07T19:27:26.571 | C68: 918 | D68: 32 | E68: 2 | F68: 654 | G68: 31906.59188 | H68: User 2
A69: 68 | B69: 2023-12-19T02:59:39.235 | C69: 846 | D69: 58 | E69: 2 | F69: 655 | G69: 26735.85041 | H69: User 4
A70: 69 | B70: 2023-04-11T02:41:11.780 | C70: 894 | D70: 16 | E70: 4 | F70: 653 | G70: 49366.57695 | H70: User 2
A71: 70 | B71: 2023-07-02T09:11:52.925 | C71: 937 | D71: 22 | E71: 2 | F71: 654 | G71: 36744.03555 | H71: User 1
A72: 71 | B72: 2023-03-31T15:48:24.764 | C72: 867 | D72: 47 | E72: 2 | F72: 654 | G72: 34876.5108 | H72: User 2
A73: 72 | B73: 2023-08-17T19:53:35.467 | C73: 903 | D73: 23 | E73: 3 | F73: 654 | G73: 28945.88323 | H73: User 3
A74: 73 | B74: 2023-06-18T11:24:09.690 | C74: 893 | D74: 16 | E74: 3 | F74: 654 | G74: 28236.65733 | H74: User 3
A75: 74 | B75: 2023-01-04T18:54:50.066 | C75: 922 | D75: 71 | E75: 2 | F75: 654 | G75: 33673.10353 | H75: User 2
A76: 75 | B76: 2023-09-25T22:21:33.570 | C76: 958 | D76: 16 | E76: 3 | F76: 653 | G76: 54321.50068 | H76: User 2
A77: 76 | B77: 2023-05-25T11:31:32.673 | C77: 945 | D77: 34 | E77: 4 | F77: 656 | G77: 68933.32322 | H77: User 3
A78: 77 | B78: 2023-07-28T07:59:53.847 | C78: 974 | D78: 21 | E78: 4 | F78: 653 | G78: 60458.4648 | H78: User 3
A79: 78 | B79: 2023-01-22T01:45:30.955 | C79: 966 | D79: 1 | E79: 3 | F79: 656 | G79: 78006.15274 | H79: User 1
A80: 79 | B80: 2023-08-10T10:19:52.053 | C80: 966 | D80: 2 | E80: 2 | F80: 654 | G80: 23937.14416 | H80: User 3
A81: 80 | B81: 2023-04-23T06:21:27.417 | C81: 931 | D81: 41 | E81: 1 | F81: 654 | G81: 35366.07603 | H81: User 1
A82: 81 | B82: 2023-07-15T06:59:54.617 | C82: 967 | D82: 11 | E82: 2 | F82: 653 | G82: 59038.83153 | H82: User 2
A83: 82 | B83: 2023-03-22T01:43:21.752 | C83: 900 | D83: 33 | E83: 4 | F83: 653 | G83: 52562.13905 | H83: User 2
A84: 83 | B84: 2023-07-04T14:47:11.703 | C84: 864 | D84: 69 | E84: 3 | F84: 655 | G84: 28147.78886 | H84: User 3
A85: 84 | B85: 2023-10-22T20:53:16.240 | C85: 887 | D85: 25 | E85: 4 | F85: 654 | G85: 27573.31664 | H85: User 3
A86: 85 | B86: 2023-05-17T22:13:52.130 | C86: 897 | D86: 7 | E86: 3 | F86: 654 | G86: 32196.31384 | H86: User 2
A87: 86 | B87: 2023-11-05T22:40:56.398 | C87: 895 | D87: 6 | E87: 4 | F87: 655 | G87: 25261.95806 | H87: User 2
A88: 87 | B88: 2023-08-19T07:21:08.191 | C88: 929 | D88: 12 | E88: 3 | F88: 654 | G88: 25575.75364 | H88: User 2
A89: 88 | B89: 2023-01-12T22:36:19.534 | C89: 965 | D89: 25 | E89: 2 | F89: 654 | G89: 35272.08565 | H89: User 1
A90: 89 | B90: 2023-01-03T02:07:21.444 | C90: 864 | D90: 59 | E90: 1 | F90: 656 | G90: 49493.24564 | H90: User 4
A91: 90 | B91: 2023-10-11T18:48:40.914 | C91: 852 | D91: 50 | E91: 1 | F91: 656 | G91: 54407.13388 | H91: User 1
A92: 91 | B92: 2023-03-30T09:24:48.144 | C92: 952 | D92: 28 | E92: 2 | F92: 656 | G92: 69609.20022 | H92: User 4
A93: 92 | B93: 2023-05-30T07:46:03.256 | C93: 959 | D93: 8 | E93: 1 | F93: 653 | G93: 49773.63863 | H93: User 2
A94: 93 | B94: 2023-01-01T16:15:47.490 | C94: 832 | D94: 80 | E94: 4 | F94: 655 | G94: 29426.99226 | H94: User 3
A95: 94 | B95: 2023-02-24T15:59:10.780 | C95: 942 | D95: 33 | E95: 3 | F95: 655 | G95: 32837.97743 | H95: User 2
A96: 95 | B96: 2023-10-27T01:55:58.513 | C96: 965 | D96: 22 | E96: 1 | F96: 655 | G96: 35497.30912 | H96: User 4
A97: 96 | B97: 2023-04-19T22:38:28.737 | C97: 967 | D97: 2 | E97: 2 | F97: 654 | G97: 31084.60106 | H97: User 1
A98: 97 | B98: 2023-05-14T08:22:58.167 | C98: 939 | D98: 21 | E98: 3 | F98: 654 | G98: 38075.00156 | H98: User 1
A99: 98 | B99: 2023-03-28T06:13:27.520 | C99: 859 | D99: 84 | E99: 1 | F99: 656 | G99: 60604.77122 | H99: User 1
A100: 99 | B100: 2023-03-12T19:22:12.792 | C100: 883 | D100: 46 | E100: 2 | F100: 654 | G100: 31156.15894 | H100: User 1
A101: 100 | B101: 2023-10-04T10:18:56.680 | C101: 924 | D101: 41 | E101: 1 | F101: 653 | G101: 53277.81286 | H101: User 2
A102: 101 | B102: 2023-10-24T08:52:48.554 | C102: 903 | D102: 59 | E102: 2 | F102: 655 | G102: 26647.3152 | H102: User 3
A103: 102 | B103: 2023-09-18T11:27:51.181 | C103: 981 | D103: 12 | E103: 1 | F103: 655 | G103: 35961.82049 | H103: User 2
A104: 103 | B104: 2023-05-16T11:50:18.586 | C104: 899 | D104: 15 | E104: 3 | F104: 655 | G104: 35515.07072 | H104: User 3
A105: 104 | B105: 2023-02-22T23:43:41.747 | C105: 904 | D105: 15 | E105: 3 | F105: 654 | G105: 32362.0024 | H105: User 1
A106: 105 | B106: 2023-08-14T04:42:42.529 | C106: 928 | D106: 51 | E106: 2 | F106: 656 | G106: 74507.54939 | H106: User 4
A107: 106 | B107: 2023-04-02T10:59:51.540 | C107: 886 | D107: 18 | E107: 3 | F107: 654 | G107: 36272.77113 | H107: User 2
A108: 107 | B108: 2023-05-28T04:34:42.632 | C108: 931 | D108: 16 | E108: 2 | F108: 654 | G108: 28601.91243 | H108: User 3
A109: 108 | B109: 2023-09-02T20:36:39.530 | C109: 957 | D109: 30 | E109: 4 | F109: 654 | G109: 33660.22226 | H109: User 3
A110: 109 | B110: 2023-07-17T22:43:05.601 | C110: 929 | D110: 29 | E110: 4 | F110: 655 | G110: 28267.79616 | H110: User 3
A111: 110 | B111: 2023-10-28T13:23:31.237 | C111: 985 | D111: 3 | E111: 2 | F111: 654 | G111: 34885.07619 | H111: User 4
A112: 111 | B112: 2023-01-09T18:53:17.778 | C112: 882 | D112: 42 | E112: 2 | F112: 654 | G112: 35680.97985 | H112: User 4
A113: 112 | B113: 2023-08-09T17:48:04.768 | C113: 969 | D113: 17 | E113: 3 | F113: 653 | G113: 67775.09144 | H113: User 2
A114: 113 | B114: 2023-11-23T07:39:35.646 | C114: 918 | D114: 64 | E114: 3 | F114: 656 | G114: 61845.59324 | H114: User 2
A115: 114 | B115: 2023-09-15T02:24:53.527 | C115: 934 | D115: 36 | E115: 2 | F115: 654 | G115: 33223.72599 | H115: User 4
A116: 115 | B116: 2023-05-13T23:03:05.345 | C116: 863 | D116: 57 | E116: 1 | F116: 654 | G116: 29371.80584 | H116: User 3
A117: 116 | B117: 2023-03-28T12:05:23.008 | C117: 950 | D117: 16 | E117: 3 | F117: 654 | G117: 34124.81339 | H117: User 3
A118: 117 | B118: 2023-03-25T04:22:24.328 | C118: 945 | D118: 23 | E118: 2 | F118: 656 | G118: 61420.84055 | H118: User 1
A119: 118 | B119: 2023-06-19T02:19:58.206 | C119: 908 | D119: 17 | E119: 3 | F119: 653 | G119: 61559.4521 | H119: User 2
A120: 119 | B120: 2023-07-13T18:28:22.713 | C120: 937 | D120: 30 | E120: 1 | F120: 654 | G120: 33965.94943 | H120: User 2
A121: 120 | B121: 2023-04-18T17:18:51.297 | C121: 906 | D121: 78 | E121: 3 | F121: 653 | G121: 53124.62908 | H121: User 1
A122: 121 | B122: 2023-09-20T09:19:15.907 | C122: 905 | D122: 3 | E122: 3 | F122: 654 | G122: 33804.40121 | H122: User 4
A123: 122 | B123: 2023-12-12T10:45:42.491 | C123: 960 | D123: 18 | E123: 1 | F123: 654 | G123: 28542.28472 | H123: User 2
A124: 123 | B124: 2023-04-22T10:05:43.004 | C124: 966 | D124: 28 | E124: 2 | F124: 654 | G124: 38367.35301 | H124: User 2
A125: 124 | B125: 2023-12-16T02:44:34.813 | C125: 938 | D125: 50 | E125: 3 | F125: 654 | G125: 33628.16393 | H125: User 4
A126: 125 | B126: 2023-10-11T21:44:38.658 | C126: 929 | D126: 25 | E126: 2 | F126: 655 | G126: 37838.8522 | H126: User 3
A127: 126 | B127: 2023-08-14T18:02:32.275 | C127: 965 | D127: 1 | E127: 3 | F127: 655 | G127: 26144.5484 | H127: User 2
A128: 127 | B128: 2023-10-06T08:10:21.406 | C128: 893 | D128: 72 | E128: 2 | F128: 656 | G128: 71761.5101 | H128: User 1
A129: 128 | B129: 2023-02-11T15:31:11.139 | C129: 879 | D129: 50 | E129: 3 | F129: 655 | G129: 32273.81825 | H129: User 2
A130: 129 | B130: 2023-11-17T00:13:32.134 | C130: 908 | D130: 45 | E130: 3 | F130: 653 | G130: 55393.32337 | H130: User 2
A131: 130 | B131: 2023-02-25T12:30:54.988 | C131: 891 | D131: 24 | E131: 3 | F131: 654 | G131: 26780.52164 | H131: User 4
A132: 131 | B132: 2023-02-07T02:12:35.223 | C132: 956 | D132: 10 | E132: 2 | F132: 655 | G132: 33706.68623 | H132: User 1
A133: 132 | B133: 2023-01-11T07:40:49.477 | C133: 854 | D133: 63 | E133: 4 | F133: 655 | G133: 32494.19341 | H133: User 1
A134: 133 | B134: 2023-03-05T13:32:26.507 | C134: 893 | D134: 24 | E134: 1 | F134: 655 | G134: 26639.60756 | H134: User 4
A135: 134 | B135: 2023-09-16T14:56:25.430 | C135: 878 | D135: 38 | E135: 4 | F135: 653 | G135: 62548.2449 | H135: User 1
A136: 135 | B136: 2023-06-04T13:04:26.866 | C136: 927 | D136: 36 | E136: 2 | F136: 655 | G136: 38598.29856 | H136: User 2
A137: 136 | B137: 2023-01-30T07:02:59.192 | C137: 957 | D137: 20 | E137: 1 | F137: 656 | G137: 62308.89131 | H137: User 3
A138: 137 | B138: 2023-12-05T01:43:58.667 | C138: 948 | D138: 30 | E138: 1 | F138: 656 | G138: 73425.55073 | H138: User 1
A139: 138 | B139: 2023-10-20T21:09:52.950 | C139: 947 | D139: 22 | E139: 3 | F139: 654 | G139: 29442.35234 | H139: User 3
A140: 139 | B140: 2023-10-22T11:01:23.828 | C140: 926 | D140: 21 | E140: 1 | F140: 656 | G140: 67421.68761 | H140: User 3
A141: 140 | B141: 2023-09-19T09:19:34.364 | C141: 907 | D141: 14 | E141: 2 | F141: 655 | G141: 32010.47053 | H141: User 3
A142: 141 | B142: 2023-04-09T12:17:41.312 | C142: 894 | D142: 67 | E142: 3 | F142: 654 | G142: 35253.39641 | H142: User 1
A143: 142 | B143: 2023-02-18T17:53:00.090 | C143: 936 | D143: 35 | E143: 1 | F143: 656 | G143: 57689.62907 | H143: User 4
A144: 143 | B144: 2023-05-26T03:15:20.573 | C144: 891 | D144: 51 | E144: 3 | F144: 653 | G144: 54970.71447 | H144: User 2
A145: 144 | B145: 2023-04-15T20:15:44.414 | C145: 936 | D145: 27 | E145: 4 | F145: 655 | G145: 30772.50957 | H145: User 1
A146: 145 | B146: 2023-04-29T18:35:27.238 | C146: 834 | D146: 71 | E146: 2 | F146: 654 | G146: 32545.23152 | H146: User 1
A147: 146 | B147: 2023-04-27T19:24:03.538 | C147: 871 | D147: 49 | E147: 3 | F147: 655 | G147: 25950.0672 | H147: User 3
A148: 147 | B148: 2023-10-28T06:43:36.364 | C148: 891 | D148: 83 | E148: 3 | F148: 655 | G148: 32140.3332 | H148: User 3
A149: 148 | B149: 2023-11-25T03:55:01.602 | C149: 963 | D149: 13 | E149: 3 | F149: 653 | G149: 58094.23472 | H149: User 2
A150: 149 | B150: 2023-04-01T14:44:07.127 | C150: 898 | D150: 44 | E150: 3 | F150: 653 | G150: 55301.39822 | H150: User 1
A151: 150 | B151: 2023-12-11T02:14:07.511 | C151: 942 | D151: 57 | E151: 2 | F151: 654 | G151: 32077.35265 | H151: User 3
A152: 151 | B152: 2023-09-23T14:06:16.843 | C152: 899 | D152: 65 | E152: 1 | F152: 655 | G152: 30373.57665 | H152: User 2
A153: 152 | B153: 2023-12-26T18:41:17.932 | C153: 977 | D153: 2 | E153: 2 | F153: 654 | G153: 27436.28359 | H153: User 1
A154: 153 | B154: 2023-03-07T22:35:42.619 | C154: 945 | D154: 30 | E154: 1 | F154: 655 | G154: 33736.0284 | H154: User 1
A155: 154 | B155: 2023-10-13T01:12:17.535 | C155: 887 | D155: 76 | E155: 3 | F155: 654 | G155: 30259.28587 | H155: User 1
A156: 155 | B156: 2023-09-03T09:24:29.686 | C156: 934 | D156: 30 | E156: 3 | F156: 656 | G156: 56233.32534 | H156: User 2
A157: 156 | B157: 2023-09-11T18:41:54.847 | C157: 864 | D157: 51 | E157: 4 | F157: 655 | G157: 32145.97194 | H157: User 1
A158: 157 | B158: 2023-09-05T10:27:51.950 | C158: 919 | D158: 8 | E158: 2 | F158: 655 | G158: 29296.45048 | H158: User 2
A159: 158 | B159: 2023-08-28T00:22:27.404 | C159: 949 | D159: 7 | E159: 4 | F159: 655 | G159: 37397.96064 | H159: User 2
A160: 159 | B160: 2023-03-19T16:24:05.845 | C160: 960 | D160: 6 | E160: 1 | F160: 655 | G160: 34492.58051 | H160: User 4
A161: 160 | B161: 2023-10-18T03:50:43.196 | C161: 947 | D161: 6 | E161: 3 | F161: 655 | G161: 29523.2285 | H161: User 3
A162: 161 | B162: 2023-08-20T01:12:54.450 | C162: 965 | D162: 18 | E162: 3 | F162: 656 | G162: 69993.74729 | H162: User 3
A163: 162 | B163: 2023-10-20T01:58:07.716 | C163: 969 | D163: 29 | E163: 3 | F163: 656 | G163: 74485.43201 | H163: User 1
A164: 163 | B164: 2023-06-02T00:33:13.420 | C164: 924 | D164: 20 | E164: 3 | F164: 654 | G164: 30246.93252 | H164: User 3
A165: 164 | B165: 2023-03-28T18:13:18.291 | C165: 887 | D165: 27 | E165: 1 | F165: 655 | G165: 29861.06312 | H165: User 2
A166: 165 | B166: 2023-03-19T21:12:02.153 | C166: 865 | D166: 45 | E166: 2 | F166: 653 | G166: 51874.10394 | H166: User 4
A167: 166 | B167: 2023-03-01T06:05:46.080 | C167: 919 | D167: 9 | E167: 3 | F167: 655 | G167: 31688.01512 | H167: User 1
A168: 167 | B168: 2023-08-15T12:58:17.714 | C168: 933 | D168: 41 | E168: 2 | F168: 654 | G168: 36170.32252 | H168: User 3
A169: 168 | B169: 2023-01-10T14:21:02.807 | C169: 903 | D169: 46 | E169: 3 | F169: 655 | G169: 28484.47661 | H169: User 3
A170: 169 | B170: 2023-11-11T12:47:13.241 | C170: 877 | D170: 25 | E170: 2 | F170: 655 | G170: 27905.62378 | H170: User 3
A171: 170 | B171: 2023-07-04T18:47:08.626 | C171: 954 | D171: 16 | E171: 2 | F171: 654 | G171: 31815.71579 | H171: User 2
A172: 171 | B172: 2023-09-08T13:22:54.322 | C172: 930 | D172: 66 | E172: 1 | F172: 656 | G172: 74977.03652 | H172: User 2
A173: 172 | B173: 2023-07-26T14:40:25.636 | C173: 917 | D173: 16 | E173: 3 | F173: 654 | G173: 28375.35656 | H173: User 1
A174: 173 | B174: 2023-11-24T11:07:14.523 | C174: 837 | D174: 87 | E174: 3 | F174: 655 | G174: 30550.9745 | H174: User 1
A175: 174 | B175: 2023-10-16T10:47:14.779 | C175: 949 | D175: 21 | E175: 1 | F175: 653 | G175: 51238.94615 | H175: User 1
A176: 175 | B176: 2023-07-21T03:14:06.742 | C176: 988 | D176: 6 | E176: 2 | F176: 656 | G176: 73104.54413 | H176: User 2
A177: 176 | B177: 2023-02-21T13:04:08.408 | C177: 949 | D177: 37 | E177: 4 | F177: 655 | G177: 38584.36014 | H177: User 4
A178: 177 | B178: 2023-09-16T19:28:21.944 | C178: 965 | D178: 6 | E178: 3 | F178: 656 | G178: 72221.7706 | H178: User 3
A179: 178 | B179: 2023-08-28T18:30:13.459 | C179: 899 | D179: 54 | E179: 1 | F179: 655 | G179: 31262.82831 | H179: User 2
A180: 179 | B180: 2023-05-08T20:40:39.479 | C180: 945 | D180: 28 | E180: 3 | F180: 653 | G180: 59501.11378 | H180: User 3
A181: 180 | B181: 2023-08-27T22:30:28.840 | C181: 851 | D181: 73 | E181: 2 | F181: 653 | G181: 59348.40452 | H181: User 1
A182: 181 | B182: 2023-02-14T20:18:12.074 | C182: 872 | D182: 35 | E182: 1 | F182: 654 | G182: 30290.10044 | H182: User 2
A183: 182 | B183: 2023-06-26T01:29:49.618 | C183: 917 | D183: 74 | E183: 4 | F183: 655 | G183: 33112.98639 | H183: User 3
A184: 183 | B184: 2023-11-23T09:31:34.211 | C184: 886 | D184: 35 | E184: 1 | F184: 655 | G184: 31814.43655 | H184: User 3
A185: 184 | B185: 2023-05-06T03:21:29.724 | C185: 952 | D185: 0 | E185: 3 | F185: 654 | G185: 30263.67082 | H185: User 2
A186: 185 | B186: 2023-12-07T15:19:11.292 | C186: 970 | D186: 27 | E186: 4 | F186: 653 | G186: 62657.05213 | H186: User 3
A187: 186 | B187: 2023-11-19T00:44:54.809 | C187: 933 | D187: 9 | E187: 3 | F187: 654 | G187: 27010.83677 | H187: User 4
A188: 187 | B188: 2023-10-15T01:11:40.620 | C188: 922 | D188: 25 | E188: 2 | F188: 656 | G188: 58346.04135 | H188: User 4
A189: 188 | B189: 2023-07-20T01:06:26.840 | C189: 899 | D189: 14 | E189: 4 | F189: 656 | G189: 60827.30123 | H189: User 2
A190: 189 | B190: 2023-03-06T02:36:16.458 | C190: 828 | D190: 106 | E190: 4 | F190: 656 | G190: 61652.76945 | H190: User 4
A191: 190 | B191: 2023-01-31T21:58:29.250 | C191: 908 | D191: 43 | E191: 3 | F191: 655 | G191: 24766.16317 | H191: User 4
A192: 191 | B192: 2023-12-09T17:42:32.532 | C192: 872 | D192: 57 | E192: 3 | F192: 655 | G192: 26900.67982 | H192: User 1
A193: 192 | B193: 2023-04-11T14:41:02.551 | C193: 904 | D193: 8 | E193: 2 | F193: 655 | G193: 29801.27252 | H193: User 3
A194: 193 | B194: 2023-02-05T01:41:12.549 | C194: 925 | D194: 11 | E194: 3 | F194: 655 | G194: 29367.81856 | H194: User 3
A195: 194 | B195: 2023-01-18T04:10:42.940 | C195: 875 | D195: 89 | E195: 3 | F195: 653 | G195: 66107.26257 | H195: User 4
A196: 195 | B196: 2023-10-22T19:17:17.471 | C196: 950 | D196: 1 | E196: 3 | F196: 656 | G196: 64450.7841 | H196: User 1
A197: 196 | B197: 2023-08-20T00:40:54.860 | C197: 869 | D197: 73 | E197: 1 | F197: 653 | G197: 52429.23916 | H197: User 3
A198: 197 | B198: 2023-06-12T09:34:01.871 | C198: 942 | D198: 42 | E198: 1 | F198: 654 | G198: 36282.70633 | H198: User 2
A199: 198 | B199: 2023-10-12T04:24:33.531 | C199: 966 | D199: 10 | E199: 2 | F199: 654 | G199: 31871.41638 | H199: User 2
A200: 199 | B200: 2023-02-03T00:53:50.079 | C200: 940 | D200: 46 | E200: 1 | F200: 654 | G200: 30092.36874 | H200: User 3
... 2801 more rows

Sheet Paramètres
A1: Article | B1: Objectif hebdo | C1: Tps Théorique (s) | D1: =K5 -> 2023-01-01 | F1: Indicateur | G1: Min acceptable | H1: Top | J1: Paramètre | K1: Valeur
A2: 653 | B2: 9500 | C2: 60 | D2: 0 | F2: Qualité | G2: 0.93 | H2: 0.96 | J2: Durée court terme en S | K2: 1
A3: 654 | B3: 17000 | C3: 33 | D3: 0 | F3: Coût | G3: 0.95 | H3: 0.97 | J3: Durée long terme en S | K3: 10
A4: 655 | B4: 17500 | C4: 32 | D4: 0 | F4: Délai | G4: 0.9 | H4: 0.98 | J4: Date de fin | K4: 2023-12-30
A5: 656 | B5: 8500 | C5: 67 | D5: 0 | F5: Total | G5: =G2*G3*G4 -> 0.79515 | H5: =H2*H3*H4 -> 0.912576 | J5: Date de début | K5: 2023-01-01
J6: Répertoire d'exportation du PDF
